Workbook

Sheet 12.1
F9: Market Premium | N9: Price CDS
B10: Inputs | F10: Running | G10: Up-front | H10: Hazard Rate | I10: RDF | J10: Risky Annuity | K10: Default Leg | L10: MTM | N10: Premium | O10: MTM
B11: Interest Rate | C11: 0.05 | E11: 1 | F11: 0.01 | G11: 0 | H11: 0.01666666667 | I11: =EXP(-(H11+IRate)*E11) -> 0.935506985 | J11: =1/(H11+IRate)*(1-I11) -> 0.9673952245 | K11: =H11/(H11+IRate)*(1-I11)*(1-Recovery) -> 0.009673952245 | L11: =K11-J11*F11-G11 -> 1.734723476e-18 | N11: 0.01 | O11: =K11-N11*J11 -> 0
B12: Recovery | C12: 0.4 | E12: 3 | F12: 0.0125 | G12: 0 | H12: 0.02314911008 | I12: =EXP(-(H12+IRate)*(E12-E11)) -> 0.8639000324 | J12: =1/(H12+IRate)*(1-I12)*PRODUCT($I$11:I11)+J11 -> 2.707983323 | K12: =(1-EXP(-(IRate+H12)*(E12-E11)))*H12/(H12+IRate)*0.6*PRODUCT($I$11:I11)+K11 -> 0.03384979153 | L12: =K12-J12*F12-G12 -> 6.938893904e-18 | N12: 0.0125 | O12: =K12-N12*J12 -> 0
E13: 5 | F13: 0.015 | G13: 0 | H13: 0.03257289199 | I13: =EXP(-(H13+IRate)*(E13-E12)) -> 0.8477701038 | J13: =1/(H13+IRate)*(1-I13)*PRODUCT($I$11:I12)+J12 -> 4.197937735 | K13: =(1-EXP(-(IRate+H13)*(E13-E12)))*H13/(H13+IRate)*0.6*PRODUCT($I$11:I12)+K12 -> 0.06296906603 | L13: =K13-J13*F13-G13 -> 0 | N13: 0.015 | O13: =K13-N13*J13 -> 0
E14: 7 | F14: 0.0175 | G14: 0 | H14: 0.04315725057 | I14: =EXP(-(H14+IRate)*(E14-E13)) -> 0.830012514 | J14: =1/(H14+IRate)*(1-I14)*PRODUCT($I$11:I13)+J13 -> 5.448164842 | K14: =(1-EXP(-(IRate+H14)*(E14-E13)))*H14/(H14+IRate)*0.6*PRODUCT($I$11:I13)+K13 -> 0.09534288473 | L14: =K14-J14*F14-G14 -> 1.387778781e-17 | N14: 0.0175 | O14: =K14-N14*J14 -> 0
E15: 10 | F15: 0.02 | G15: 0 | H15: 0.0487063947 | I15: =EXP(-(H15+IRate)*(E15-E14)) -> 0.7436987857 | J15: =1/(H15+IRate)*(1-I15)*PRODUCT($I$11:I14)+J14 -> 6.92481847 | K15: =(1-EXP(-(IRate+H15)*(E15-E14)))*H15/(H15+IRate)*0.6*PRODUCT($I$11:I14)+K14 -> 0.1384963694 | L15: =K15-J15*F15-G15 -> 0 | N15: 0.02 | O15: =K15-N15*J15 -> 0
F17: Spread | G17: Hazard rate | H17: Survival | I17: Accurate | J17: PD | K17: Approx Surv | L17: Approximate
E18: 0 | F18: =CubicSpline($E$11:$E$15,$F$11:$F$15,E18) -> 0.008745598041 | G18: =OFFSET(HazardRates,MIN(5,IF(ISERROR(MATCH(E18,$E$11:$E$15,1)),1,MATCH(E18,$E$11:$E$15,1)+1)),0,1,1) -> 0.01666666667 | H18: =100% -> 1 | I18: =1-H18 -> 0 | K18: =EXP(-F18*E18/(1-Recovery)) -> 1 | L18: =1-K18 -> 0
E19: =E18+0.05 -> 0.05 | F19: =CubicSpline($E$11:$E$15,$F$11:$F$15,E19) -> 0.008808182649 | G19: 0.01666666667 | H19: =EXP(-G19*(E19-E18))*H18 -> 0.9991670138 | I19: =1-H19 -> 0.0008329862075 | J19: =H18-H19 -> 0.0008329862075 | K19: 0.9992662541 | L19: =1-K19 -> 0.0007337458975
E20: =E19+0.05 -> 0.1 | F20: =CubicSpline($E$11:$E$15,$F$11:$F$15,E20) -> 0.008870788165 | G20: 0.01666666667 | H20: =EXP(-G20*(E20-E19))*H19 -> 0.9983347215 | I20: 0.001665278549 | J20: =H19-H20 -> 0.0008322923415 | K20: 0.9985226277 | L20: 0.001477372304
E21: 0.15 | F21: =CubicSpline($E$11:$E$15,$F$11:$F$15,E21) -> 0.008933411625 | G21: 0.01666666667 | H21: 0.9975031224 | I21: 0.002496877603 | J21: 0.0008315990535 | K21: 0.9977691392 | L21: 0.002230860829
E22: 0.2 | F22: =CubicSpline($E$11:$E$15,$F$11:$F$15,E22) -> 0.008996055655 | G22: 0.01666666667 | H22: 0.9966722161 | I22: 0.003327783945 | J22: 0.0008309063429 | K22: 0.9970058063 | L22: 0.002994193652
E23: 0.25 | F23: =CubicSpline($E$11:$E$15,$F$11:$F$15,E23) -> 0.00905871729 | G23: 0.01666666667 | H23: 0.9958420018 | I23: 0.004157998155 | J23: 0.0008302142094 | K23: 0.9962326488 | L23: 0.003767351196
E24: 0.3 | F24: =CubicSpline($E$11:$E$15,$F$11:$F$15,E24) -> 0.009121395431 | G24: 0.01666666667 | H24: 0.9950124792 | I24: 0.004987520807 | J24: 0.0008295226524 | K24: 0.9954496865 | L24: 0.004550313526
E25: 0.35 | F25: =CubicSpline($E$11:$E$15,$F$11:$F$15,E25) -> 0.009184088046 | G25: 0.01666666667 | H25: 0.9941836475 | I25: 0.005816352479 | J25: 0.0008288316715 | K25: 0.9946569405 | L25: 0.005343059502
E26: 0.4 | F26: =CubicSpline($E$11:$E$15,$F$11:$F$15,E26) -> 0.009246794966 | G26: 0.01666666667 | H26: 0.9933555063 | I26: 0.006644493745 | J26: 0.0008281412661 | K26: 0.9938544318 | L26: 0.006145568246
E27: 0.45 | F27: =CubicSpline($E$11:$E$15,$F$11:$F$15,E27) -> 0.009309516023 | G27: 0.01666666667 | H27: 0.9925280548 | I27: 0.007471945181 | J27: 0.0008274514359 | K27: 0.9930421815 | L27: 0.006957818529
E28: 0.5 | F28: =CubicSpline($E$11:$E$15,$F$11:$F$15,E28) -> 0.009372248252 | G28: 0.01666666667 | H28: 0.9917012926 | I28: 0.008298707361 | J28: 0.0008267621803 | K28: 0.9922202135 | L28: 0.007779786459
E29: 0.55 | F29: =CubicSpline($E$11:$E$15,$F$11:$F$15,E29) -> 0.009434992416 | G29: 0.01666666667 | H29: 0.9908752191 | I29: 0.00912478086 | J29: 0.0008260734988 | K29: 0.9913885497 | L29: 0.008611450259
E30: 0.6 | F30: =CubicSpline($E$11:$E$15,$F$11:$F$15,E30) -> 0.009497746483 | G30: 0.01666666667 | H30: 0.9900498337 | I30: 0.009950166251 | J30: 0.0008253853909 | K30: 0.9905472147 | L30: 0.009452785345
E31: 0.65 | F31: =CubicSpline($E$11:$E$15,$F$11:$F$15,E31) -> 0.009560508422 | G31: 0.01666666667 | H31: 0.9892251359 | I31: 0.01077486411 | J31: 0.0008246978563 | K31: 0.9896962338 | L31: 0.01030376618
E32: 0.7 | F32: =CubicSpline($E$11:$E$15,$F$11:$F$15,E32) -> 0.009623278064 | G32: 0.01666666667 | H32: 0.988401125 | I32: 0.011598875 | J32: 0.0008240108944 | K32: 0.9888356316 | L32: 0.01116436841
E33: 0.75 | F33: =CubicSpline($E$11:$E$15,$F$11:$F$15,E33) -> 0.00968605524 | G33: 0.01666666667 | H33: 0.9875778005 | I33: 0.01242219951 | J33: 0.0008233245046 | K33: 0.9879654326 | L33: 0.01203456736
E34: 0.8 | F34: =CubicSpline($E$11:$E$15,$F$11:$F$15,E34) -> 0.009748837918 | G34: 0.01666666667 | H34: 0.9867551618 | I34: 0.01324483819 | J34: 0.0008226386867 | K34: 0.9870856645 | L34: 0.01291433555
E35: 0.85 | F35: =CubicSpline($E$11:$E$15,$F$11:$F$15,E35) -> 0.009811624997 | G35: 0.01666666667 | H35: 0.9859332084 | I35: 0.01406679163 | J35: 0.00082195344 | K35: 0.9861963541 | L35: 0.01380364586
E36: 0.9 | F36: =CubicSpline($E$11:$E$15,$F$11:$F$15,E36) -> 0.009874413514 | G36: 0.01666666667 | H36: 0.9851119396 | I36: 0.0148880604 | J36: 0.0008212687641 | K36: 0.9852975322 | L36: 0.0147024678
E37: 0.95 | F37: =CubicSpline($E$11:$E$15,$F$11:$F$15,E37) -> 0.009937206095 | G37: 0.01666666667 | H37: 0.9842913549 | I37: 0.01570864506 | J37: 0.0008205846586 | K37: 0.9843892217 | L37: 0.01561077832
E38: 1 | F38: =CubicSpline($E$11:$E$15,$F$11:$F$15,E38) -> 0.009999999776 | G38: 0.02314911008 | H38: 0.9831527406 | I38: 0.01684725943 | J38: 0.001138614371 | K38: 0.9834714542 | L38: 0.01652854581
E39: 1.05 | F39: =CubicSpline($E$11:$E$15,$F$11:$F$15,E39) -> 0.01006279346 | G39: 0.02314911008 | H39: 0.9820154433 | I39: 0.01798455666 | J39: 0.001137297238 | K39: 0.9825442594 | L39: 0.01745574063
E40: 1.1 | F40: =CubicSpline($E$11:$E$15,$F$11:$F$15,E40) -> 0.01012558511 | G40: 0.02314911008 | H40: 0.9808794617 | I40: 0.01912053829 | J40: 0.001135981629 | K40: 0.9816076692 | L40: 0.01839233084
E41: 1.15 | F41: =CubicSpline($E$11:$E$15,$F$11:$F$15,E41) -> 0.01018837549 | G41: 0.02314911008 | H41: 0.9797447942 | I41: 0.02025520583 | J41: 0.001134667541 | K41: 0.9806617112 | L41: 0.01933828882
E42: 1.2 | F42: =CubicSpline($E$11:$E$15,$F$11:$F$15,E42) -> 0.01025116164 | G42: 0.02314911008 | H42: 0.9786114392 | I42: 0.02138856081 | J42: 0.001133354974 | K42: 0.9797064203 | L42: 0.02029357965
E43: 1.25 | F43: =CubicSpline($E$11:$E$15,$F$11:$F$15,E43) -> 0.01031394431 | G43: 0.02314911008 | H43: 0.9774793953 | I43: 0.02252060473 | J43: 0.001132043925 | K43: 0.9787418252 | L43: 0.02125817479
E44: 1.3 | F44: =CubicSpline($E$11:$E$15,$F$11:$F$15,E44) -> 0.01037672149 | G44: 0.02314911008 | H44: 0.9763486609 | I44: 0.02365133913 | J44: 0.001130734392 | K44: 0.9777679602 | L44: 0.02223203975
E45: 1.35 | F45: =CubicSpline($E$11:$E$15,$F$11:$F$15,E45) -> 0.01043949113 | G45: 0.02314911008 | H45: 0.9752192345 | I45: 0.0247807655 | J45: 0.001129426375 | K45: 0.9767848608 | L45: 0.02321513917
E46: 1.4 | F46: =CubicSpline($E$11:$E$15,$F$11:$F$15,E46) -> 0.010502254 | G46: 0.02314911008 | H46: 0.9740911146 | I46: 0.02590888537 | J46: 0.00112811987 | K46: 0.9757925569 | L46: 0.02420744312
E47: 1.45 | F47: =CubicSpline($E$11:$E$15,$F$11:$F$15,E47) -> 0.01056500667 | G47: 0.02314911008 | H47: 0.9729642998 | I47: 0.02703570025 | J47: 0.001126814877 | K47: 0.9747910882 | L47: 0.0252089118
E48: 1.5 | F48: =CubicSpline($E$11:$E$15,$F$11:$F$15,E48) -> 0.01062775084 | G48: 0.02314911008 | H48: 0.9718387884 | I48: 0.02816121164 | J48: 0.001125511393 | K48: 0.9737804834 | L48: 0.02621951656
E49: 1.55 | F49: =CubicSpline($E$11:$E$15,$F$11:$F$15,E49) -> 0.010690484 | G49: 0.02314911008 | H49: 0.9707145789 | I49: 0.02928542106 | J49: 0.001124209418 | K49: 0.9727607815 | L49: 0.0272392185
E50: 1.6 | F50: =CubicSpline($E$11:$E$15,$F$11:$F$15,E50) -> 0.01075320412 | G50: 0.02314911008 | H50: 0.96959167 | I50: 0.03040833001 | J50: 0.001122908948 | K50: 0.9717320211 | L50: 0.0282679789
E51: 1.65 | F51: =CubicSpline($E$11:$E$15,$F$11:$F$15,E51) -> 0.01081591197 | G51: 0.02314911008 | H51: 0.96847006 | I51: 0.03152993999 | J51: 0.001121609983 | K51: 0.9706942344 | L51: 0.02930576561
E52: 1.7 | F52: =CubicSpline($E$11:$E$15,$F$11:$F$15,E52) -> 0.01087860459 | G52: 0.02314911008 | H52: 0.9673497475 | I52: 0.03265025251 | J52: 0.00112031252 | K52: 0.9696474637 | L52: 0.03035253627
E53: 1.75 | F53: =CubicSpline($E$11:$E$15,$F$11:$F$15,E53) -> 0.01094128226 | G53: 0.02314911008 | H53: 0.9662307309 | I53: 0.03376926907 | J53: 0.001119016558 | K53: 0.9685917434 | L53: 0.03140825656
E54: 1.8 | F54: =CubicSpline($E$11:$E$15,$F$11:$F$15,E54) -> 0.0110039439 | G54: 0.02314911008 | H54: 0.9651130088 | I54: 0.03488699116 | J54: 0.001117722096 | K54: 0.967527112 | L54: 0.03247288796
E55: 1.85 | F55: =CubicSpline($E$11:$E$15,$F$11:$F$15,E55) -> 0.011066587 | G55: 0.02314911008 | H55: 0.9639965797 | I55: 0.03600342029 | J55: 0.001116429131 | K55: 0.9664536127 | L55: 0.03354638725
E56: 1.9 | F56: =CubicSpline($E$11:$E$15,$F$11:$F$15,E56) -> 0.01112921232 | G56: 0.02314911008 | H56: 0.962881442 | I56: 0.03711855796 | J56: 0.001115137661 | K56: 0.9653712799 | L56: 0.03462872015
E57: 1.95 | F57: =CubicSpline($E$11:$E$15,$F$11:$F$15,E57) -> 0.0111918169 | G57: 0.02314911008 | H57: 0.9617675944 | I57: 0.03823240564 | J57: 0.001113847686 | K57: 0.9642801593 | L57: 0.03571984072
E58: 2 | F58: =CubicSpline($E$11:$E$15,$F$11:$F$15,E58) -> 0.01125440151 | G58: 0.02314911008 | H58: 0.9606550352 | I58: 0.03934496484 | J58: 0.001112559202 | K58: 0.9631802861 | L58: 0.03681971388
E59: 2.05 | F59: =CubicSpline($E$11:$E$15,$F$11:$F$15,E59) -> 0.01131696365 | G59: 0.02314911008 | H59: 0.9595437629 | I59: 0.04045623705 | J59: 0.00111127221 | K59: 0.9620717062 | L59: 0.03792829384
E60: 2.1 | F60: =CubicSpline($E$11:$E$15,$F$11:$F$15,E60) -> 0.01137950267 | G60: 0.02314911008 | H60: 0.9584337762 | I60: 0.04156622376 | J60: 0.001109986706 | K60: 0.9609544599 | L60: 0.03904554009
E61: 2.15 | F61: =CubicSpline($E$11:$E$15,$F$11:$F$15,E61) -> 0.01144201796 | G61: 0.02314911008 | H61: 0.9573250736 | I61: 0.04267492645 | J61: 0.001108702689 | K61: 0.9598285883 | L61: 0.04017141174
E62: 2.2 | F62: =CubicSpline($E$11:$E$15,$F$11:$F$15,E62) -> 0.01150450747 | G62: 0.02314911008 | H62: 0.9562176534 | I62: 0.0437823466 | J62: 0.001107420157 | K62: 0.9586941374 | L62: 0.04130586258
E63: 2.25 | F63: =CubicSpline($E$11:$E$15,$F$11:$F$15,E63) -> 0.01156697034 | G63: 0.02314911008 | H63: 0.9551115143 | I63: 0.04488848571 | J63: 0.001106139109 | K63: 0.9575511502 | L63: 0.04244884979
E64: 2.3 | F64: =CubicSpline($E$11:$E$15,$F$11:$F$15,E64) -> 0.01162940593 | G64: 0.02314911008 | H64: 0.9540066547 | I64: 0.04599334526 | J64: 0.001104859543 | K64: 0.9563996691 | L64: 0.04360033091
E65: 2.35 | F65: =CubicSpline($E$11:$E$15,$F$11:$F$15,E65) -> 0.01169181291 | G65: 0.02314911008 | H65: 0.9529030733 | I65: 0.04709692671 | J65: 0.001103581457 | K65: 0.9552397395 | L65: 0.04476026052
E66: 2.4 | F66: =CubicSpline($E$11:$E$15,$F$11:$F$15,E66) -> 0.01175419041 | G66: 0.02314911008 | H66: 0.9518007684 | I66: 0.04819923156 | J66: 0.001102304849 | K66: 0.9540714056 | L66: 0.04592859436
E67: 2.45 | F67: =CubicSpline($E$11:$E$15,$F$11:$F$15,E67) -> 0.01181653687 | G67: 0.02314911008 | H67: 0.9506997387 | I67: 0.04930026128 | J67: 0.001101029719 | K67: 0.952894715 | L67: 0.04710528503
E68: 2.5 | F68: =CubicSpline($E$11:$E$15,$F$11:$F$15,E68) -> 0.01187885142 | G68: 0.02314911008 | H68: 0.9495999827 | I68: 0.05040001734 | J68: 0.001099756063 | K68: 0.9517097128 | L68: 0.04829028724
E69: 2.55 | F69: =CubicSpline($E$11:$E$15,$F$11:$F$15,E69) -> 0.01194113296 | G69: 0.02314911008 | H69: 0.9485014988 | I69: 0.05149850122 | J69: 0.001098483881 | K69: 0.9505164457 | L69: 0.04948355434
E70: 2.6 | F70: =CubicSpline($E$11:$E$15,$F$11:$F$15,E70) -> 0.01200338062 | G70: 0.02314911008 | H70: 0.9474042856 | I70: 0.05259571439 | J70: 0.00109721317 | K70: 0.9493149599 | L70: 0.05068504011
E71: 2.65 | F71: =CubicSpline($E$11:$E$15,$F$11:$F$15,E71) -> 0.01206559272 | G71: 0.02314911008 | H71: 0.9463083417 | I71: 0.05369165832 | J71: 0.001095943929 | K71: 0.9481053055 | L71: 0.05189469452
E72: 2.7 | F72: =CubicSpline($E$11:$E$15,$F$11:$F$15,E72) -> 0.01212776873 | G72: 0.02314911008 | H72: 0.9452136655 | I72: 0.05478633448 | J72: 0.001094676157 | K72: 0.9468875282 | L72: 0.05311247183
E73: 2.75 | F73: =CubicSpline($E$11:$E$15,$F$11:$F$15,E73) -> 0.01218990722 | G73: 0.02314911008 | H73: 0.9441202557 | I73: 0.05587974433 | J73: 0.001093409851 | K73: 0.945661678 | L73: 0.05433832196
E74: 2.8 | F74: =CubicSpline($E$11:$E$15,$F$11:$F$15,E74) -> 0.01225200731 | G74: 0.02314911008 | H74: 0.9430281107 | I74: 0.05697188934 | J74: 0.00109214501 | K74: 0.9444278032 | L74: 0.05557219679
E75: 2.85 | F75: =CubicSpline($E$11:$E$15,$F$11:$F$15,E75) -> 0.01231406767 | G75: 0.02314911008 | H75: 0.941937229 | I75: 0.05806277097 | J75: 0.001090881632 | K75: 0.9431859543 | L75: 0.05681404574
E76: 2.9 | F76: =CubicSpline($E$11:$E$15,$F$11:$F$15,E76) -> 0.01237608738 | G76: 0.02314911008 | H76: 0.9408476093 | I76: 0.05915239069 | J76: 0.001089619715 | K76: 0.9419361805 | L76: 0.05806381952
E77: 2.95 | F77: =CubicSpline($E$11:$E$15,$F$11:$F$15,E77) -> 0.01243806524 | G77: 0.02314911008 | H77: 0.9397592501 | I77: 0.06024074995 | J77: 0.001088359258 | K77: 0.9406785328 | L77: 0.05932146724
E78: 3 | F78: =CubicSpline($E$11:$E$15,$F$11:$F$15,E78) -> 0.01250000019 | G78: 0.02314911008 | H78: 0.9386721498 | I78: 0.0613278502 | J78: 0.00108710026 | K78: 0.9394130619 | L78: 0.06058693806
E79: 3.05 | F79: =CubicSpline($E$11:$E$15,$F$11:$F$15,E79) -> 0.01256189254 | G79: 0.03257289199 | H79: 0.9371446307 | I79: 0.0628553693 | J79: 0.001527519097 | K79: 0.9381398127 | L79: 0.06186018733
E80: 3.1 | F80: =CubicSpline($E$11:$E$15,$F$11:$F$15,E80) -> 0.01262374544 | G80: 0.03257289199 | H80: 0.9356195974 | I80: 0.06438040264 | J80: 0.001525033336 | K80: 0.9368588159 | L80: 0.06314118407
E81: 3.15 | F81: =CubicSpline($E$11:$E$15,$F$11:$F$15,E81) -> 0.01268556627 | G81: 0.03257289199 | H81: 0.9340970457 | I81: 0.06590295426 | J81: 0.00152255162 | K81: 0.9355700813 | L81: 0.06442991874
E82: 3.2 | F82: =CubicSpline($E$11:$E$15,$F$11:$F$15,E82) -> 0.01274735866 | G82: =OFFSET(HazardRates,MIN(5,IF(ISERROR(MATCH(E82,$E$11:$E$15,1)),1,MATCH(E82,$E$11:$E$15,1)+1)),0,1,1) -> 0.03257289199 | H82: 0.9325769718 | I82: 0.0674230282 | J82: 0.001520073943 | K82: =EXP(-F82*E82/(1-Recovery)) -> 0.9342736348 | L82: 0.06572636525
E83: 3.25 | F83: =CubicSpline($E$11:$E$15,$F$11:$F$15,E83) -> 0.01280912996 | G83: 0.03257289199 | H83: 0.9310593715 | I83: =1-H83 -> 0.0689406285 | J83: 0.001517600298 | K83: 0.9329694828 | L83: =1-K83 -> 0.06703051716
E84: =E83+0.05 -> 3.3 | F84: =CubicSpline($E$11:$E$15,$F$11:$F$15,E84) -> 0.01287088477 | G84: 0.03257289199 | H84: =EXP(-G84*(E84-E83))*H83 -> 0.9295442408 | I84: 0.07045575918 | J84: =H83-H84 -> 0.001515130678 | K84: 0.9316576443 | L84: 0.06834235569
E85: 3.35 | F85: =CubicSpline($E$11:$E$15,$F$11:$F$15,E85) -> 0.01293262856 | G85: 0.03257289199 | H85: 0.9280315757 | I85: 0.07196842425 | J85: 0.001512665077 | K85: 0.930338132 | L85: 0.06966186803
E86: 3.4 | F86: =CubicSpline($E$11:$E$15,$F$11:$F$15,E86) -> 0.01299436686 | G86: 0.03257289199 | H86: 0.9265213723 | I86: 0.07347862774 | J86: 0.001510203488 | K86: 0.9290109573 | L86: 0.07098904272
E87: 3.45 | F87: =CubicSpline($E$11:$E$15,$F$11:$F$15,E87) -> 0.01305610422 | G87: 0.03257289199 | H87: 0.9250136264 | I87: 0.07498637365 | J87: 0.001507745905 | K87: 0.9276761353 | L87: 0.07232386474
E88: 3.5 | F88: =CubicSpline($E$11:$E$15,$F$11:$F$15,E88) -> 0.01311784802 | G88: 0.03257289199 | H88: 0.923508334 | I88: 0.07649166597 | J88: 0.001505292321 | K88: 0.9263336648 | L88: 0.07366633523
E89: 3.55 | F89: =CubicSpline($E$11:$E$15,$F$11:$F$15,E89) -> 0.01317960282 | G89: 0.03257289199 | H89: 0.9220054913 | I89: 0.0779945087 | J89: 0.00150284273 | K89: 0.9249835581 | L89: 0.07501644192
E90: 3.6 | F90: =CubicSpline($E$11:$E$15,$F$11:$F$15,E90) -> 0.01324137319 | G90: 0.03257289199 | H90: 0.9205050942 | I90: 0.07949490582 | J90: 0.001500397126 | K90: 0.9236258264 | L90: 0.0763741736
E91: 3.65 | F91: =CubicSpline($E$11:$E$15,$F$11:$F$15,E91) -> 0.0133031665 | G91: 0.03257289199 | H91: 0.9190071387 | I91: 0.08099286133 | J91: 0.001497955501 | K91: 0.9222604642 | L91: 0.07773953582
E92: 3.7 | F92: =CubicSpline($E$11:$E$15,$F$11:$F$15,E92) -> 0.01336498639 | G92: 0.03257289199 | H92: 0.9175116208 | I92: 0.08248837918 | J92: 0.001495517849 | K92: 0.9208874852 | L92: 0.07911251476
E93: 3.75 | F93: =CubicSpline($E$11:$E$15,$F$11:$F$15,E93) -> 0.01342684022 | G93: 0.03257289199 | H93: 0.9160185367 | I93: 0.08398146334 | J93: 0.001493084165 | K93: 0.9195068812 | L93: 0.08049311882
E94: 3.8 | F94: =CubicSpline($E$11:$E$15,$F$11:$F$15,E94) -> 0.01348873256 | G94: 0.03257289199 | H94: 0.9145278822 | I94: 0.08547211778 | J94: 0.00149065444 | K94: 0.9181186581 | L94: 0.08188134191
E95: 3.85 | F95: =CubicSpline($E$11:$E$15,$F$11:$F$15,E95) -> 0.01355066845 | G95: 0.03257289199 | H95: 0.9130396535 | I95: 0.08696034645 | J95: 0.00148822867 | K95: 0.9167228183 | L95: 0.0832771817
E96: 3.9 | F96: =CubicSpline($E$11:$E$15,$F$11:$F$15,E96) -> 0.01361265432 | G96: 0.03257289199 | H96: 0.9115538467 | I96: 0.0884461533 | J96: 0.001485806847 | K96: 0.9153193547 | L96: 0.08468064529
E97: 3.95 | F97: =CubicSpline($E$11:$E$15,$F$11:$F$15,E97) -> 0.01367469427 | G97: 0.03257289199 | H97: 0.9100704577 | I97: 0.08992954226 | J97: 0.001483388965 | K97: 0.9139082727 | L97: 0.08609172728
E98: 4 | F98: =CubicSpline($E$11:$E$15,$F$11:$F$15,E98) -> 0.01373679568 | G98: 0.03257289199 | H98: 0.9085894827 | I98: 0.09141051728 | J98: 0.001480975018 | K98: 0.9124895571 | L98: 0.08751044291
E99: 4.05 | F99: =CubicSpline($E$11:$E$15,$F$11:$F$15,E99) -> 0.01379896264 | G99: 0.03257289199 | H99: 0.9071109177 | I99: 0.09288908228 | J99: 0.001478564999 | K99: 0.9110632109 | L99: 0.0889367891
E100: 4.1 | F100: =CubicSpline($E$11:$E$15,$F$11:$F$15,E100) -> 0.01386120113 | G100: 0.03257289199 | H100: 0.9056347588 | I100: 0.09436524118 | J100: 0.001476158902 | K100: 0.9096292248 | L100: 0.09037077516
E101: 4.15 | F101: =CubicSpline($E$11:$E$15,$F$11:$F$15,E101) -> 0.01392351711 | G101: 0.03257289199 | H101: 0.9041610021 | I101: 0.0958389979 | J101: 0.001473756721 | K101: 0.9081875883 | L101: 0.09181241169
E102: 4.2 | F102: =CubicSpline($E$11:$E$15,$F$11:$F$15,E102) -> 0.01398591561 | G102: 0.03257289199 | H102: 0.9026896436 | I102: 0.09731035635 | J102: 0.001471358448 | K102: 0.9067382953 | L102: 0.09326170467
E103: 4.25 | F103: =CubicSpline($E$11:$E$15,$F$11:$F$15,E103) -> 0.01404840168 | G103: 0.03257289199 | H103: 0.9012206796 | I103: 0.09877932043 | J103: 0.001468964078 | K103: 0.9052813389 | L103: 0.0947186611
E104: 4.3 | F104: =CubicSpline($E$11:$E$15,$F$11:$F$15,E104) -> 0.01411098127 | G104: 0.03257289199 | H104: 0.899754106 | I104: 0.100245894 | J104: 0.001466573605 | K104: 0.903816705 | L104: 0.09618329502
E105: 4.35 | F105: =CubicSpline($E$11:$E$15,$F$11:$F$15,E105) -> 0.0141736599 | G105: 0.03257289199 | H105: 0.8982899189 | I105: 0.1017100811 | J105: 0.001464187022 | K105: 0.9023443813 | L105: 0.09765561866
E106: 4.4 | F106: =CubicSpline($E$11:$E$15,$F$11:$F$15,E106) -> 0.01423644353 | G106: 0.03257289199 | H106: 0.8968281146 | I106: 0.1031718854 | J106: 0.001461804322 | K106: 0.9008643516 | L106: 0.09913564842
E107: 4.45 | F107: =CubicSpline($E$11:$E$15,$F$11:$F$15,E107) -> 0.01429933696 | G107: 0.03257289199 | H107: 0.8953686891 | I107: 0.1046313109 | J107: 0.0014594255 | K107: 0.8993766059 | L107: 0.1006233941
E108: 4.5 | F108: =CubicSpline($E$11:$E$15,$F$11:$F$15,E108) -> 0.0143623457 | G108: 0.03257289199 | H108: 0.8939116386 | I108: 0.1060883614 | J108: 0.001457050549 | K108: 0.8978811288 | L108: 0.1021188712
E109: 4.55 | F109: =CubicSpline($E$11:$E$15,$F$11:$F$15,E109) -> 0.01442547547 | G109: 0.03257289199 | H109: 0.8924569591 | I109: 0.1075430409 | J109: 0.001454679463 | K109: 0.8963779023 | L109: 0.1036220977
E110: 4.6 | F110: =CubicSpline($E$11:$E$15,$F$11:$F$15,E110) -> 0.01448873226 | G110: 0.03257289199 | H110: 0.8910046469 | I110: 0.1089953531 | J110: 0.001452312236 | K110: 0.8948669056 | L110: 0.1051330944
E111: 4.65 | F111: =CubicSpline($E$11:$E$15,$F$11:$F$15,E111) -> 0.01455212062 | G111: 0.03257289199 | H111: 0.889554698 | I111: 0.110445302 | J111: 0.00144994886 | K111: 0.8933481265 | L111: 0.1066518735
E112: 4.7 | F112: =CubicSpline($E$11:$E$15,$F$11:$F$15,E112) -> 0.01461564676 | G112: 0.03257289199 | H112: 0.8881071087 | I112: 0.1118928913 | J112: 0.001447589331 | K112: 0.8918215407 | L112: 0.1081784593
E113: 4.75 | F113: =CubicSpline($E$11:$E$15,$F$11:$F$15,E113) -> 0.01467931582 | G113: 0.03257289199 | H113: 0.886661875 | I113: 0.113338125 | J113: 0.001445233641 | K113: 0.89028713 | L113: 0.10971287
E114: 4.8 | F114: =CubicSpline($E$11:$E$15,$F$11:$F$15,E114) -> 0.01474313356 | G114: 0.03257289199 | H114: 0.8852189933 | I114: 0.1147810067 | J114: 0.001442881785 | K114: 0.8887448714 | L114: 0.1112551286
E115: 4.85 | F115: =CubicSpline($E$11:$E$15,$F$11:$F$15,E115) -> 0.01480710523 | G115: 0.03257289199 | H115: 0.8837784595 | I115: 0.1162215405 | J115: 0.001440533756 | K115: 0.887194744 | L115: 0.112805256
E116: 4.9 | F116: =CubicSpline($E$11:$E$15,$F$11:$F$15,E116) -> 0.0148712365 | G116: 0.03257289199 | H116: 0.88234027 | I116: 0.11765973 | J116: 0.001438189548 | K116: 0.8856367232 | L116: 0.1143632768
E117: 4.95 | F117: =CubicSpline($E$11:$E$15,$F$11:$F$15,E117) -> 0.01493553281 | G117: 0.03257289199 | H117: 0.8809044208 | I117: 0.1190955792 | J117: 0.001435849154 | K117: 0.8840707853 | L117: 0.1159292147
E118: 5 | F118: =CubicSpline($E$11:$E$15,$F$11:$F$15,E118) -> 0.01499999966 | G118: 0.03257289199 | H118: 0.8794709082 | I118: 0.1205290918 | J118: 0.00143351257 | K118: 0.8824969051 | L118: 0.1175030949
E119: 5.05 | F119: =CubicSpline($E$11:$E$15,$F$11:$F$15,E119) -> 0.01506463836 | G119: 0.04315725057 | H119: 0.877575177 | I119: 0.122424823 | J119: 0.001895731219 | K119: 0.8809150876 | L119: 0.1190849124
E120: 5.1 | F120: =CubicSpline($E$11:$E$15,$F$11:$F$15,E120) -> 0.01512943127 | G120: 0.04315725057 | H120: 0.8756835321 | I120: 0.1243164679 | J120: 0.001891644902 | K120: 0.8793254796 | L120: 0.1206745204
E121: 5.15 | F121: =CubicSpline($E$11:$E$15,$F$11:$F$15,E121) -> 0.0151943603 | G121: 0.04315725057 | H121: 0.8737959647 | I121: 0.1262040353 | J121: 0.001887567393 | K121: 0.8777282362 | L121: 0.1222717638
E122: 5.2 | F122: =CubicSpline($E$11:$E$15,$F$11:$F$15,E122) -> 0.01525940079 | G122: 0.04315725057 | H122: 0.871912466 | I122: 0.128087534 | J122: 0.001883498673 | K122: 0.8761235666 | L122: 0.1238764334
E123: 5.25 | F123: =CubicSpline($E$11:$E$15,$F$11:$F$15,E123) -> 0.01532453465 | G123: 0.04315725057 | H123: 0.8700330273 | I123: 0.1299669727 | J123: 0.001879438724 | K123: 0.8745116364 | L123: 0.1254883636
E124: 5.3 | F124: =CubicSpline($E$11:$E$15,$F$11:$F$15,E124) -> 0.01538974004 | G124: 0.04315725057 | H124: 0.8681576398 | I124: 0.1318423602 | J124: 0.001875387526 | K124: 0.8728926446 | L124: 0.1271073554
E125: 5.35 | F125: =CubicSpline($E$11:$E$15,$F$11:$F$15,E125) -> 0.01545499604 | G125: 0.04315725057 | H125: 0.8662862947 | I125: 0.1337137053 | J125: 0.001871345061 | K125: 0.8712667882 | L125: 0.1287332118
E126: 5.4 | F126: =CubicSpline($E$11:$E$15,$F$11:$F$15,E126) -> 0.01552028175 | G126: 0.04315725057 | H126: 0.8644189834 | I126: 0.1355810166 | J126: 0.001867311309 | K126: 0.8696342694 | L126: 0.1303657306
E127: 5.45 | F127: =CubicSpline($E$11:$E$15,$F$11:$F$15,E127) -> 0.01558557533 | G127: 0.04315725057 | H127: 0.8625556972 | I127: 0.1374443028 | J127: 0.001863286252 | K127: 0.8679953028 | L127: 0.1320046972
E128: 5.5 | F128: =CubicSpline($E$11:$E$15,$F$11:$F$15,E128) -> 0.01565085774 | G128: 0.04315725057 | H128: 0.8606964273 | I128: 0.1393035727 | J128: 0.001859269872 | K128: 0.8663500858 | L128: 0.1336499142
E129: 5.55 | F129: =CubicSpline($E$11:$E$15,$F$11:$F$15,E129) -> 0.01571610714 | G129: 0.04315725057 | H129: 0.8588411651 | I129: 0.1411588349 | J129: 0.001855262149 | K129: 0.864698843 | L129: 0.135301157
E130: 5.6 | F130: =CubicSpline($E$11:$E$15,$F$11:$F$15,E130) -> 0.01578130263 | G130: 0.04315725057 | H130: 0.8569899021 | I130: 0.1430100979 | J130: 0.001851263064 | K130: 0.8630417961 | L130: 0.1369582039
E131: 5.65 | F131: =CubicSpline($E$11:$E$15,$F$11:$F$15,E131) -> 0.01584642329 | G131: 0.04315725057 | H131: 0.8551426295 | I131: 0.1448573705 | J131: 0.0018472726 | K131: 0.8613791719 | L131: 0.1386208281
E132: 5.7 | F132: =CubicSpline($E$11:$E$15,$F$11:$F$15,E132) -> 0.01591144729 | G132: 0.04315725057 | H132: 0.8532993387 | I132: 0.1467006613 | J132: 0.001843290737 | K132: 0.8597112093 | L132: 0.1402887907
E133: 5.75 | F133: =CubicSpline($E$11:$E$15,$F$11:$F$15,E133) -> 0.01597635559 | G133: 0.04315725057 | H133: 0.8514600213 | I133: 0.1485399787 | J133: 0.001839317458 | K133: 0.858038129 | L133: 0.141961871
E134: 5.8 | F134: =CubicSpline($E$11:$E$15,$F$11:$F$15,E134) -> 0.01604112727 | G134: 0.04315725057 | H134: 0.8496246685 | I134: 0.1503753315 | J134: 0.001835352743 | K134: 0.8563601715 | L134: 0.1436398285
E135: 5.85 | F135: =CubicSpline($E$11:$E$15,$F$11:$F$15,E135) -> 0.01610573864 | G135: 0.04315725057 | H135: 0.847793272 | I135: 0.152206728 | J135: 0.001831396574 | K135: 0.8546776046 | L135: 0.1453223954
E136: 5.9 | F136: =CubicSpline($E$11:$E$15,$F$11:$F$15,E136) -> 0.01617017159 | G136: 0.04315725057 | H136: 0.845965823 | I136: 0.154034177 | J136: 0.001827448933 | K136: 0.8529906548 | L136: 0.1470093452
E137: 5.95 | F137: =CubicSpline($E$11:$E$15,$F$11:$F$15,E137) -> 0.01623440334 | G137: 0.04315725057 | H137: 0.8441423132 | I137: 0.1558576868 | J137: 0.001823509801 | K137: 0.8512995911 | L137: 0.1487004089
E138: 6 | F138: =CubicSpline($E$11:$E$15,$F$11:$F$15,E138) -> 0.01629841531 | G138: 0.04315725057 | H138: 0.8423227341 | I138: 0.1576772659 | J138: 0.00181957916 | K138: 0.8496046519 | L138: 0.1503953481
E139: 6.05 | F139: =CubicSpline($E$11:$E$15,$F$11:$F$15,E139) -> 0.01636218428 | G139: 0.04315725057 | H139: 0.8405070771 | I139: 0.1594929229 | J139: 0.001815656991 | K139: 0.8479061189 | L139: 0.1520938811
E140: 6.1 | F140: =CubicSpline($E$11:$E$15,$F$11:$F$15,E140) -> 0.01642569073 | G140: 0.04315725057 | H140: 0.8386953338 | I140: 0.1613046662 | J140: 0.001811743277 | K140: 0.8462042465 | L140: 0.1537957535
E141: 6.15 | F141: =CubicSpline($E$11:$E$15,$F$11:$F$15,E141) -> 0.01648891329 | G141: 0.04315725057 | H141: 0.8368874958 | I141: 0.1631125042 | J141: 0.001807837999 | K141: 0.8444993088 | L141: 0.1555006912
E142: 6.2 | F142: =CubicSpline($E$11:$E$15,$F$11:$F$15,E142) -> 0.01655183105 | G142: 0.04315725057 | H142: 0.8350835547 | I142: 0.1649164453 | J142: 0.001803941139 | K142: 0.8427915801 | L142: 0.1572084199
E143: 6.25 | F143: =CubicSpline($E$11:$E$15,$F$11:$F$15,E143) -> 0.01661442264 | G143: 0.04315725057 | H143: 0.833283502 | I143: 0.166716498 | J143: 0.001800052679 | K143: 0.8410813425 | L143: 0.1589186575
E144: 6.3 | F144: =CubicSpline($E$11:$E$15,$F$11:$F$15,E144) -> 0.01667666809 | G144: 0.04315725057 | H144: 0.8314873294 | I144: 0.1685126706 | J144: 0.001796172601 | K144: 0.8393688699 | L144: 0.1606311301
E145: 6.35 | F145: =CubicSpline($E$11:$E$15,$F$11:$F$15,E145) -> 0.01673854555 | G145: 0.04315725057 | H145: 0.8296950285 | I145: 0.1703049715 | J145: 0.001792300886 | K145: 0.8376544561 | L145: 0.1623455439
E146: 6.4 | F146: =CubicSpline($E$11:$E$15,$F$11:$F$15,E146) -> 0.01680003552 | G146: =OFFSET(HazardRates,MIN(5,IF(ISERROR(MATCH(E146,$E$11:$E$15,1)),1,MATCH(E146,$E$11:$E$15,1)+1)),0,1,1) -> 0.04315725057 | H146: 0.827906591 | I146: 0.172093409 | J146: 0.001788437517 | K146: =EXP(-F146*E146/(1-Recovery)) -> 0.8359383782 | L146: 0.1640616218
E147: 6.45 | F147: =CubicSpline($E$11:$E$15,$F$11:$F$15,E147) -> 0.01686111523 | G147: 0.04315725057 | H147: 0.8261220085 | I147: =1-H147 -> 0.1738779915 | J147: 0.001784582476 | K147: 0.8342209458 | L147: =1-K147 -> 0.1657790542
E148: =E147+0.05 -> 6.5 | F148: =CubicSpline($E$11:$E$15,$F$11:$F$15,E148) -> 0.01692176493 | G148: 0.04315725057 | H148: =EXP(-G148*(E148-E147))*H147 -> 0.8243412728 | I148: 0.1756587272 | J148: =H147-H148 -> 0.001780735744 | K148: 0.8325024451 | L148: 0.1674975549
E149: 6.55 | F149: =CubicSpline($E$11:$E$15,$F$11:$F$15,E149) -> 0.01698196349 | G149: 0.04315725057 | H149: 0.8225643755 | I149: 0.1774356245 | J149: 0.001776897304 | K149: 0.8307831784 | L149: 0.1692168216
E150: 6.6 | F150: =CubicSpline($E$11:$E$15,$F$11:$F$15,E150) -> 0.01704169022 | G150: 0.04315725057 | H150: 0.8207913083 | I150: 0.1792086917 | J150: 0.001773067138 | K150: 0.8290634469 | L150: 0.1709365531
E151: 6.65 | F151: =CubicSpline($E$11:$E$15,$F$11:$F$15,E151) -> 0.01710092377 | G151: 0.04315725057 | H151: 0.8190220631 | I151: 0.1809779369 | J151: 0.001769245227 | K151: 0.8273435621 | L151: 0.1726564379
E152: 6.7 | F152: =CubicSpline($E$11:$E$15,$F$11:$F$15,E152) -> 0.01715964369 | G152: 0.04315725057 | H152: 0.8172566315 | I152: 0.1827433685 | J152: 0.001765431556 | K152: 0.8256238297 | L152: 0.1743761703
E153: 6.75 | F153: =CubicSpline($E$11:$E$15,$F$11:$F$15,E153) -> 0.01721782848 | G153: 0.04315725057 | H153: 0.8154950054 | I153: 0.1845049946 | J153: 0.001761626104 | K153: 0.8239045687 | L153: 0.1760954313
E154: 6.8 | F154: =CubicSpline($E$11:$E$15,$F$11:$F$15,E154) -> 0.01727545783 | G154: 0.04315725057 | H154: 0.8137371766 | I154: 0.1862628234 | J154: 0.001757828856 | K154: 0.8221860905 | L154: 0.1778139095
E155: 6.85 | F155: =CubicSpline($E$11:$E$15,$F$11:$F$15,E155) -> 0.01733251059 | G155: 0.04315725057 | H155: 0.8119831368 | I155: 0.1880168632 | J155: 0.001754039792 | K155: 0.820468717 | L155: 0.179531283
E156: 6.9 | F156: =CubicSpline($E$11:$E$15,$F$11:$F$15,E156) -> 0.01738896575 | G156: 0.04315725057 | H156: 0.8102328779 | I156: 0.1897671221 | J156: 0.001750258896 | K156: 0.8187527722 | L156: 0.1812472278
E157: 6.95 | F157: =CubicSpline($E$11:$E$15,$F$11:$F$15,E157) -> 0.01744480256 | G157: 0.04315725057 | H157: 0.8084863917 | I157: 0.1915136083 | J157: 0.00174648615 | K157: 0.8170385805 | L157: 0.1829614195
E158: 7 | F158: =CubicSpline($E$11:$E$15,$F$11:$F$15,E158) -> 0.01750000007 | G158: 0.04315725057 | H158: 0.8067436702 | I158: 0.1932563298 | J158: 0.001742721537 | K158: 0.8153264714 | L158: 0.1846735286
E159: 7.05 | F159: =CubicSpline($E$11:$E$15,$F$11:$F$15,E159) -> 0.01755454334 | G159: 0.0487063947 | H159: 0.8047813818 | I159: 0.1952186182 | J159: 0.001962288411 | K159: 0.8136167196 | L159: 0.1863832804
E160: 7.1 | F160: =CubicSpline($E$11:$E$15,$F$11:$F$15,E160) -> 0.01760843559 | G160: 0.0487063947 | H160: 0.8028238664 | I160: 0.1971761336 | J160: 0.001957515426 | K160: 0.8119094273 | L160: 0.1880905727
E161: 7.15 | F161: =CubicSpline($E$11:$E$15,$F$11:$F$15,E161) -> 0.01766169144 | G161: 0.0487063947 | H161: 0.8008711123 | I161: 0.1991288877 | J161: 0.00195275405 | K161: 0.8102045846 | L161: 0.1897954154
E162: 7.2 | F162: =CubicSpline($E$11:$E$15,$F$11:$F$15,E162) -> 0.0177143201 | G162: 0.0487063947 | H162: 0.7989231081 | I162: 0.2010768919 | J162: 0.001948004256 | K162: 0.8085022305 | L162: 0.1914977695
E163: 7.25 | F163: =CubicSpline($E$11:$E$15,$F$11:$F$15,E163) -> 0.01776633069 | G163: 0.0487063947 | H163: 0.7969798421 | I163: 0.2030201579 | J163: 0.001943266014 | K163: 0.8068024019 | L163: 0.1931975981
E164: 7.3 | F164: =CubicSpline($E$11:$E$15,$F$11:$F$15,E164) -> 0.01781773799 | G164: 0.0487063947 | H164: 0.7950413028 | I164: 0.2049586972 | J164: 0.001938539298 | K164: 0.8051050776 | L164: 0.1948949224
E165: 7.35 | F165: =CubicSpline($E$11:$E$15,$F$11:$F$15,E165) -> 0.01786855013 | G165: 0.0487063947 | H165: 0.7931074787 | I165: 0.2068925213 | J165: 0.001933824079 | K165: 0.803410298 | L165: 0.196589702
E166: 7.4 | F166: =CubicSpline($E$11:$E$15,$F$11:$F$15,E166) -> 0.01791878002 | G166: 0.0487063947 | H166: 0.7911783583 | I166: 0.2088216417 | J166: 0.001929120329 | K166: 0.8017180537 | L166: 0.1982819463
E167: 7.45 | F167: =CubicSpline($E$11:$E$15,$F$11:$F$15,E167) -> 0.01796843679 | G167: 0.0487063947 | H167: 0.7892539303 | I167: 0.2107460697 | J167: 0.00192442802 | K167: 0.8000283694 | L167: 0.1999716306
E168: 7.5 | F168: =CubicSpline($E$11:$E$15,$F$11:$F$15,E168) -> 0.01801753241 | G168: 0.0487063947 | H168: 0.7873341832 | I168: 0.2126658168 | J168: 0.001919747124 | K168: 0.798341239 | L168: 0.201658761
E169: 7.55 | F169: =CubicSpline($E$11:$E$15,$F$11:$F$15,E169) -> 0.01806607783 | G169: 0.0487063947 | H169: 0.7854191056 | I169: 0.2145808944 | J169: 0.001915077615 | K169: 0.7966566633 | L169: 0.2033433367
E170: 7.6 | F170: =CubicSpline($E$11:$E$15,$F$11:$F$15,E170) -> 0.018114085 | G170: 0.0487063947 | H170: 0.7835086861 | I170: 0.2164913139 | J170: 0.001910419463 | K170: 0.7949746301 | L170: 0.2050253699
E171: 7.65 | F171: =CubicSpline($E$11:$E$15,$F$11:$F$15,E171) -> 0.01816156308 | G171: 0.0487063947 | H171: 0.7816029135 | I171: 0.2183970865 | J171: 0.001905772641 | K171: 0.7932951525 | L171: 0.2067048475
E172: 7.7 | F172: =CubicSpline($E$11:$E$15,$F$11:$F$15,E172) -> 0.018208524 | G172: 0.0487063947 | H172: 0.7797017764 | I172: 0.2202982236 | J172: 0.001901137122 | K172: 0.7916182127 | L172: 0.2083817873
E173: 7.75 | F173: =CubicSpline($E$11:$E$15,$F$11:$F$15,E173) -> 0.01825497968 | G173: 0.0487063947 | H173: 0.7778052635 | I173: 0.2221947365 | J173: 0.001896512878 | K173: 0.7899437903 | L173: 0.2100562097
E174: 7.8 | F174: =CubicSpline($E$11:$E$15,$F$11:$F$15,E174) -> 0.01830093927 | G174: 0.0487063947 | H174: 0.7759133636 | I174: 0.2240866364 | J174: 0.001891899882 | K174: 0.7882718901 | L174: 0.2117281099
E175: 7.85 | F175: =CubicSpline($E$11:$E$15,$F$11:$F$15,E175) -> 0.01834641471 | G175: 0.0487063947 | H175: 0.7740260655 | I175: 0.2259739345 | J175: 0.001887298107 | K175: 0.7866024855 | L175: 0.2133975145
E176: 7.9 | F176: =CubicSpline($E$11:$E$15,$F$11:$F$15,E176) -> 0.01839141699 | G176: 0.0487063947 | H176: 0.772143358 | I176: 0.227856642 | J176: 0.001882707525 | K176: 0.7849355574 | L176: 0.2150644426
E177: 7.95 | F177: =CubicSpline($E$11:$E$15,$F$11:$F$15,E177) -> 0.01843595806 | G177: 0.0487063947 | H177: 0.7702652299 | I177: 0.2297347701 | J177: 0.001878128108 | K177: 0.7832710735 | L177: 0.2167289265
E178: 8 | F178: =CubicSpline($E$11:$E$15,$F$11:$F$15,E178) -> 0.01848004705 | G178: 0.0487063947 | H178: 0.76839167 | I178: 0.23160833 | J178: 0.001873559831 | K178: 0.7816090283 | L178: 0.2183909717
E179: 8.05 | F179: =CubicSpline($E$11:$E$15,$F$11:$F$15,E179) -> 0.0185236959 | G179: 0.0487063947 | H179: 0.7665226674 | I179: 0.2334773326 | J179: 0.001869002665 | K179: 0.7799493843 | L179: 0.2200506157
E180: 8.1 | F180: =CubicSpline($E$11:$E$15,$F$11:$F$15,E180) -> 0.01856691561 | G180: 0.0487063947 | H180: 0.7646582108 | I180: 0.2353417892 | J180: 0.001864456584 | K180: 0.7782921114 | L180: 0.2217078886
E181: 8.15 | F181: =CubicSpline($E$11:$E$15,$F$11:$F$15,E181) -> 0.01860971812 | G181: 0.0487063947 | H181: 0.7627982892 | I181: 0.2372017108 | J181: 0.00185992156 | K181: 0.7766371668 | L181: 0.2233628332
E182: 8.2 | F182: =CubicSpline($E$11:$E$15,$F$11:$F$15,E182) -> 0.01865211349 | G182: 0.0487063947 | H182: 0.7609428917 | I182: 0.2390571083 | J182: 0.001855397567 | K182: 0.7749845249 | L182: 0.2250154751
E183: 8.25 | F183: =CubicSpline($E$11:$E$15,$F$11:$F$15,E183) -> 0.01869411088 | G183: 0.0487063947 | H183: 0.7590920071 | I183: 0.2409079929 | J183: 0.001850884578 | K183: 0.7733341673 | L183: 0.2266658327
E184: 8.3 | F184: =CubicSpline($E$11:$E$15,$F$11:$F$15,E184) -> 0.01873572501 | G184: 0.0487063947 | H184: 0.7572456245 | I184: 0.2427543755 | J184: 0.001846382567 | K184: 0.771686014 | L184: 0.228313986
E185: 8.35 | F185: =CubicSpline($E$11:$E$15,$F$11:$F$15,E185) -> 0.01877696408 | G185: 0.0487063947 | H185: 0.755403733 | I185: 0.244596267 | J185: 0.001841891506 | K185: 0.7700400518 | L185: 0.2299599482
E186: 8.4 | F186: =CubicSpline($E$11:$E$15,$F$11:$F$15,E186) -> 0.01881784097 | G186: 0.0487063947 | H186: 0.7535663216 | I186: 0.2464336784 | J186: 0.001837411369 | K186: 0.7683962152 | L186: 0.2316037848
E187: 8.45 | F187: =CubicSpline($E$11:$E$15,$F$11:$F$15,E187) -> 0.01885836388 | G187: 0.0487063947 | H187: 0.7517333795 | I187: 0.2482666205 | J187: 0.001832942129 | K187: 0.7667544865 | L187: 0.2332455135
E188: 8.5 | F188: =CubicSpline($E$11:$E$15,$F$11:$F$15,E188) -> 0.01889854755 | G188: 0.0487063947 | H188: 0.7499048957 | I188: 0.2500951043 | J188: 0.001828483759 | K188: 0.7651147751 | L188: 0.2348852249
E189: 8.55 | F189: =CubicSpline($E$11:$E$15,$F$11:$F$15,E189) -> 0.01893840018 | G189: 0.0487063947 | H189: 0.7480808595 | I189: 0.2519191405 | J189: 0.001824036235 | K189: 0.7634770585 | L189: 0.2365229415
E190: 8.6 | F190: =CubicSpline($E$11:$E$15,$F$11:$F$15,E190) -> 0.01897793464 | G190: 0.0487063947 | H190: 0.74626126 | I190: 0.25373874 | J190: 0.001819599528 | K190: 0.7618412616 | L190: 0.2381587384
E191: 8.65 | F191: =CubicSpline($E$11:$E$15,$F$11:$F$15,E191) -> 0.01901716006 | G191: 0.0487063947 | H191: 0.7444460864 | I191: 0.2555539136 | J191: 0.001815173613 | K191: 0.7602073472 | L191: 0.2397926528
E192: 8.7 | F192: =CubicSpline($E$11:$E$15,$F$11:$F$15,E192) -> 0.01905608887 | G192: 0.0487063947 | H192: 0.7426353279 | I192: 0.2573646721 | J192: 0.001810758463 | K192: 0.7585752406 | L192: 0.2414247594
E193: 8.75 | F193: =CubicSpline($E$11:$E$15,$F$11:$F$15,E193) -> 0.0190947311 | G193: 0.0487063947 | H193: 0.7408289739 | I193: 0.2591710261 | J193: 0.001806354052 | K193: 0.7569448901 | L193: 0.2430551099
E194: 8.8 | F194: =CubicSpline($E$11:$E$15,$F$11:$F$15,E194) -> 0.01913309872 | G194: 0.0487063947 | H194: 0.7390270135 | I194: 0.2609729865 | J194: 0.001801960355 | K194: 0.7553162213 | L194: 0.2446837787
E195: 8.85 | F195: =CubicSpline($E$11:$E$15,$F$11:$F$15,E195) -> 0.01917120179 | G195: 0.0487063947 | H195: 0.7372294362 | I195: 0.2627705638 | J195: 0.001797577344 | K195: 0.7536891783 | L195: 0.2463108217
E196: 8.9 | F196: =CubicSpline($E$11:$E$15,$F$11:$F$15,E196) -> 0.01920905224 | G196: 0.0487063947 | H196: 0.7354362312 | I196: 0.2645637688 | J196: 0.001793204995 | K196: 0.7520636821 | L196: 0.2479363179
E197: 8.95 | F197: =CubicSpline($E$11:$E$15,$F$11:$F$15,E197) -> 0.01924666015 | G197: 0.0487063947 | H197: 0.7336473879 | I197: 0.2663526121 | J197: 0.001788843281 | K197: 0.7504396728 | L197: 0.2495603272
E198: 9 | F198: =CubicSpline($E$11:$E$15,$F$11:$F$15,E198) -> 0.01928403745 | G198: 0.0487063947 | H198: 0.7318628957 | I198: 0.2681371043 | J198: 0.001784492176 | K198: 0.7488170669 | L198: 0.2511829331
E199: 9.05 | F199: =CubicSpline($E$11:$E$15,$F$11:$F$15,E199) -> 0.01932119421 | G199: 0.0487063947 | H199: 0.7300827441 | I199: 0.2699172559 | J199: 0.001780151654 | K199: 0.7471958003 | L199: 0.2528041997
E200: 9.1 | F200: =CubicSpline($E$11:$E$15,$F$11:$F$15,E200) -> 0.01935814284 | G200: 0.0487063947 | H200: 0.7283069224 | I200: 0.2716930776 | J200: 0.00177582169 | K200: 0.7455757802 | L200: 0.2544242198
E201: 9.15 | F201: =CubicSpline($E$11:$E$15,$F$11:$F$15,E201) -> 0.01939489247 | G201: 0.0487063947 | H201: 0.7265354201 | I201: 0.2734645799 | J201: 0.001771502258 | K201: 0.743956949 | L201: 0.256043051
E202: 9.2 | F202: =CubicSpline($E$11:$E$15,$F$11:$F$15,E202) -> 0.01943145551 | G202: 0.0487063947 | H202: 0.7247682268 | I202: 0.2752317732 | J202: 0.001767193333 | K202: 0.7423392096 | L202: 0.2576607904
E203: 9.25 | F203: =CubicSpline($E$11:$E$15,$F$11:$F$15,E203) -> 0.01946784202 | G203: 0.0487063947 | H203: 0.7230053319 | I203: 0.2769946681 | J203: 0.001762894888 | K203: 0.7407224901 | L203: 0.2592775099
E204: 9.3 | F204: =CubicSpline($E$11:$E$15,$F$11:$F$15,E204) -> 0.01950406395 | G204: 0.0487063947 | H204: 0.721246725 | I204: 0.278753275 | J204: 0.001758606899 | K204: 0.7391066948 | L204: 0.2608933052
E205: 9.35 | F205: =CubicSpline($E$11:$E$15,$F$11:$F$15,E205) -> 0.01954013159 | G205: 0.0487063947 | H205: 0.7194923956 | I205: 0.2805076044 | J205: 0.00175432934 | K205: 0.737491745 | L205: 0.262508255
E206: 9.4 | F206: =CubicSpline($E$11:$E$15,$F$11:$F$15,E206) -> 0.01957605619 | G206: 0.0487063947 | H206: 0.7177423335 | I206: 0.2822576665 | J206: 0.001750062185 | K206: 0.7358775495 | L206: 0.2641224505
E207: 9.45 | F207: =CubicSpline($E$11:$E$15,$F$11:$F$15,E207) -> 0.01961184875 | G207: 0.0487063947 | H207: 0.715996528 | I207: 0.284003472 | J207: 0.001745805409 | K207: 0.7342640178 | L207: 0.2657359822
E208: 9.5 | F208: =CubicSpline($E$11:$E$15,$F$11:$F$15,E208) -> 0.01964752027 | G208: 0.0487063947 | H208: 0.7142549691 | I208: 0.2857450309 | J208: 0.001741558988 | K208: 0.7326510574 | L208: 0.2673489426
E209: 9.55 | F209: =CubicSpline($E$11:$E$15,$F$11:$F$15,E209) -> 0.01968308199 | G209: 0.0487063947 | H209: 0.7125176462 | I209: 0.2874823538 | J209: 0.001737322895 | K209: 0.7310385717 | L209: 0.2689614283
... 9 more rows

Sheet 12.1b
B9: Credit Curve | G9: Default probability
B10: Recovery | C10: 0.4 | F10: Credit spread | G10: Actual | H10: Flat curve
B11: 1Y | C11: 100 | E11: 0 | F11: =CubicSpline($B$34:$B$38,$C$11:$C$15,E11) -> 87.45598591
B12: 3Y | C12: 125 | E12: =E11+0.05 -> 0.05 | F12: =CubicSpline($B$34:$B$38,$C$11:$C$15,E12) -> 88.08182768 | G12: =1-EXP(-E12*F12/(1-RecoveryRate)/10000) -> 0.0007337459074 | H12: =1-EXP(-E12*$C$15/(1-RecoveryRate)/10000) -> 0.001665278549
B13: 5Y | C13: 150 | E13: =E12+0.05 -> 0.1 | F13: =CubicSpline($B$34:$B$38,$C$11:$C$15,E13) -> 88.70787852 | G13: 0.001477372252 | H13: =1-EXP(-E13*fiveyrspread/(1-RecoveryRate)/10000) -> 0.002496877603
B14: 7Y | C14: 175 | E14: =E13+0.05 -> 0.15 | F14: 89.33412742 | G14: 0.002230861108 | H14: 0.003742977531
B15: 10Y | C15: 200 | E15: =E14+0.05 -> 0.2 | F15: 89.96056338 | G15: 0.00299419388 | H15: 0.004987520807
E16: =E14+0.05 -> 0.2 | F16: 89.96056338 | G16: 0.00299419388 | H16: 0.004987520807
E17: =E15+0.05 -> 0.25 | F17: 90.5871754 | G17: 0.0037673513 | H17: 0.006230509377
E18: =E16+0.05 -> 0.25 | F18: 90.5871754 | G18: 0.0037673513 | H18: 0.006230509377
E19: =E18+0.05 -> 0.3 | F19: 91.21395246 | G19: 0.004550313434 | H19: 0.007471945181
E20: 0.35 | F20: 91.84088358 | G20: 0.005343059683 | H20: 0.00871183016
E21: 0.4 | F21: 92.46795775 | G21: 0.006145568782 | H21: 0.009950166251
E22: 0.45 | F22: 93.09516395 | G22: 0.006957818807 | H22: 0.01118695539
E23: 0.5 | F23: 93.7224912 | G23: 0.007779787176 | H23: 0.01242219951
E24: 0.55 | F24: 94.34992848 | G24: 0.008611450652 | H24: 0.01365590053
E25: 0.6 | F25: 94.97747242 | G25: 0.009452786096 | H25: 0.0148880604
E26: 0.65 | F26: 95.6050815 | G26: 0.01030376588 | H26: 0.01611868102
E27: 0.7 | F27: 96.23279049 | G27: 0.01116436954 | H27: 0.01734776433
E28: 0.75 | F28: 96.86055788 | G28: 0.01203456803 | H28: 0.01857531225
E29: 0.8 | F29: 97.48838028 | G29: 0.01291433569 | H29: 0.01980132669
E30: 0.85 | F30: 98.11625433 | G30: 0.01380364647 | H30: 0.02102580957
E31: 0.9 | F31: 98.7441385 | G31: 0.01470246829 | H31: 0.02224876281
E32: 0.95 | F32: 99.37206756 | G32: 0.01561077935 | H32: 0.0234701883
B33: 0 | C33: =fiveyrspread -> 150 | E33: 1 | F33: 100 | G33: 0.01652854618 | H33: 0.02469008797
B34: =LEFT(B11,LEN(B11)-1)*1 -> 1 | C34: 150 | E34: 1.05 | F34: 100.6279324 | G34: 0.01745574026 | H34: 0.02590846372
B35: =LEFT(B12,LEN(B12)-1)*1 -> 3 | C35: 150 | E35: 1.1 | F35: 101.2558539 | G35: 0.01839233134 | H35: 0.02712531745
B36: =LEFT(B13,LEN(B13)-1)*1 -> 5 | C36: 150 | E36: 1.15 | F36: 101.8837533 | G36: 0.01933828853 | H36: 0.02834065106
B37: =LEFT(B14,LEN(B14)-1)*1 -> 7 | C37: 150 | E37: 1.2 | F37: 102.5116197 | G37: 0.02029358031 | H37: 0.02955446645
B38: =LEFT(B15,LEN(B15)-1)*1 -> 10 | C38: 150 | E38: 1.25 | F38: 103.1394421 | G38: 0.02125817458 | H38: 0.03076676552
E39: 1.3 | F39: 103.7672095 | G39: 0.02223203861 | H39: 0.03197755017
E40: 1.35 | F40: 104.3949109 | G40: 0.02321513907 | H40: 0.03318682228
E41: 1.4 | F41: 105.0225352 | G41: 0.02420744202 | H41: 0.03439458374
E42: 1.45 | F42: 105.6500715 | G42: 0.02520891293 | H42: 0.03560083645
E43: 1.5 | F43: 106.2775088 | G43: 0.02621951667 | H43: 0.03680558228
E44: 1.55 | F44: 106.904836 | G44: 0.02723921752 | H44: 0.03800882312
E45: 1.6 | F45: 107.5320423 | G45: 0.02826797917 | H45: 0.03921056085
E46: 1.65 | F46: 108.1591164 | G46: 0.02930576473 | H46: 0.04041079734
E47: 1.7 | F47: 108.7860475 | G47: 0.03035253673 | H47: 0.04160953448
E48: 1.75 | F48: 109.4128246 | G48: 0.03140825712 | H48: 0.04280677413
E49: 1.8 | F49: 110.0394404 | G49: 0.03247288839 | H49: 0.04400251817
E50: 1.85 | F50: 110.6658726 | G50: 0.03354638803 | H50: 0.04519676846
E51: 1.9 | F51: 111.2921215 | G51: 0.03462871962 | H51: 0.04638952687
E52: 1.95 | F52: 111.9181685 | G52: 0.03571984055 | H52: 0.04758079526
E53: 2 | F53: 112.5440141 | G53: 0.03681971355 | H53: 0.0487705755
E54: 2.05 | F54: 113.1696358 | G54: 0.03792829361 | H54: 0.04995886944
E55: 2.1 | F55: 113.7950264 | G55: 0.03904553997 | H55: 0.05114567894
E56: 2.15 | F56: 114.420175 | G56: 0.04017141014 | H56: 0.05233100586
E57: 2.2 | F57: 115.0450704 | G57: 0.04130586108 | H57: 0.05351485205
E58: 2.25 | F58: 115.6697018 | G58: 0.04244884922 | H58: 0.05469721935
E59: 2.3 | F59: 116.2940581 | G59: 0.04360033047 | H59: 0.05587810961
E60: 2.35 | F60: 116.9181283 | G60: 0.04476026022 | H60: 0.05705752469
E61: 2.4 | F61: 117.5419033 | G61: 0.04592859405 | H61: 0.05823546642
E62: 2.45 | F62: 118.1653664 | G62: 0.04710528413 | H62: 0.05941193664
E63: 2.5 | F63: 118.7885123 | G63: 0.04829028649 | H63: 0.06058693719
E64: 2.55 | F64: 119.4113281 | G64: 0.04948355374 | H64: 0.0617604699
E65: 2.6 | F65: 120.0338028 | G65: 0.05068503872 | H65: 0.06293253662
E66: 2.65 | F66: 120.6559254 | G66: 0.05189469378 | H66: 0.06410313917
E67: 2.7 | F67: 121.2776858 | G67: 0.05311247118 | H67: 0.06527227938
E68: 2.75 | F68: 121.8990702 | G68: 0.05433832108 | H68: 0.06643995908
E69: 2.8 | F69: 122.5200704 | G69: 0.0555721956 | H69: 0.06760618009
E70: 2.85 | F70: 123.140675 | G70: 0.05681404496 | H70: 0.06877094424
E71: 2.9 | F71: 123.7608715 | G71: 0.05806381847 | H71: 0.06993425334
E72: 2.95 | F72: 124.3806503 | G72: 0.05932146628 | H72: 0.07109610921
E73: 3 | F73: 125 | G73: 0.06058693719 | H73: 0.07225651367
E74: 3.05 | F74: 125.6189205 | G74: 0.06186018503 | H74: 0.07341546853
E75: 3.1 | F75: 126.237456 | G75: 0.06314118481 | H75: 0.0745729756
E76: 3.15 | F76: 126.8556613 | G76: =1-EXP(-E76*F76/(1-RecoveryRate)/10000) -> 0.06442991806 | H76: =1-EXP(-E76*fiveyrspread/(1-RecoveryRate)/10000) -> 0.0757290367
E77: 3.2 | F77: =CubicSpline($B$34:$B$38,$C$11:$C$15,E77) -> 127.4735916 | G77: 0.06572636773 | H77: 0.07688365361
E78: 3.25 | F78: 128.0913017 | G78: 0.06703051821 | H78: 0.07803682816
E79: 3.3 | F79: 128.7088468 | G79: 0.06834235526 | H79: 0.07918856214
E80: 3.35 | F80: 129.3262819 | G80: 0.06966186609 | H80: 0.08033885736
E81: 3.4 | F81: 129.943662 | G81: 0.07098903924 | H81: 0.0814877156
E82: =E81+0.05 -> 3.45 | F82: 130.561042 | G82: 0.07232386463 | H82: 0.08263513867
E83: 3.5 | F83: 131.1784771 | G83: 0.07366633356 | H83: 0.08378112835
E84: 3.55 | F84: 131.7960222 | G84: 0.07501643866 | H84: 0.08492568644
E85: 3.6 | F85: 132.4137324 | G85: 0.07637417388 | H85: 0.08606881473
E86: 3.65 | F86: 133.0316626 | G86: 0.07773953449 | H86: 0.087210515
E87: 3.7 | F87: 133.649868 | G87: 0.07911251708 | H87: 0.08835078904
E88: 3.75 | F88: 134.2684034 | G88: 0.08049311952 | H88: 0.08948963862
E89: 3.8 | F89: 134.8873239 | G89: 0.08188134096 | H89: 0.09062706553
E90: 3.85 | F90: 135.5066846 | G90: 0.0832771818 | H90: 0.09176307155
E91: 3.9 | F91: 136.1265405 | G91: 0.0846806437 | H91: 0.09289765844
E92: 3.95 | F92: 136.7469465 | G92: 0.08609172955 | H92: 0.09403082799
E93: 4 | F93: 137.3679577 | G93: 0.08751044348 | H93: 0.09516258196
E94: 4.05 | F94: 137.9896292 | G94: 0.08893679078 | H94: 0.09629292213
E95: 4.1 | F95: 138.6120158 | G95: 0.09037077798 | H95: 0.09742185025
E96: 4.15 | F96: 139.2351728 | G96: 0.09181241274 | H96: 0.09854936809
E97: 4.2 | F97: 139.8591549 | G97: 0.09326170392 | H97: 0.09967547741
E98: 4.25 | F98: 140.4840174 | G98: 0.09471866149 | H98: 0.10080018
E99: 4.3 | F99: 141.1098151 | G99: 0.09618329658 | H99: 0.1019234775
E100: 4.35 | F100: 141.7366032 | G100: 0.0976556214 | H100: 0.1030453719
E101: 4.4 | F101: 142.3644366 | G101: 0.09913564929 | H101: 0.1041658647
E102: 4.45 | F102: 142.9933704 | G102: 0.1006233946 | H102: 0.1052849578
E103: 4.5 | F103: 143.6234595 | G103: 0.1021188729 | H103: 0.1064026529
E104: 4.55 | F104: 144.254759 | G104: 0.1036221007 | H104: 0.1075189517
E105: 4.6 | F105: 144.8873239 | G105: 0.1051330954 | H105: 0.1086338561
E106: 4.65 | F106: 145.5212093 | G106: 0.1066518757 | H106: 0.1097473677
E107: 4.7 | F107: 146.1564701 | G107: 0.1081784611 | H107: 0.1108594883
E108: 4.75 | F108: 146.7931613 | G108: 0.1097128721 | H108: 0.1119702195
E109: 4.8 | F109: 147.431338 | G109: 0.1112551303 | H109: 0.1130795633
E110: 4.85 | F110: 148.0710552 | G110: 0.1128052582 | H110: 0.1141875212
E111: 4.9 | F111: 148.712368 | G111: 0.1143632789 | H111: 0.1152940951
E112: 4.95 | F112: 149.3553312 | G112: 0.115929217 | H112: 0.1163992865
E113: 5 | F113: 150 | G113: 0.1175030974 | H113: 0.1175030974
E114: 5.05 | F114: 150.6463854 | G114: 0.1190849137 | H114: 0.1186055294
E115: 5.1 | F115: 151.2943222 | G115: 0.1206745274 | H115: 0.1197065842
E116: 5.15 | F116: 151.9436015 | G116: 0.1222717627 | H116: 0.1208062635
E117: 5.2 | F117: 152.5940141 | G117: 0.123876438 | H117: 0.1219045691
E118: 5.25 | F118: 153.245351 | G118: 0.125488367 | H118: 0.1230015026
E119: 5.3 | F119: 153.8974032 | G119: 0.1271073576 | H119: 0.1240970659
E120: 5.35 | F120: 154.5499615 | G120: 0.1287332127 | H120: 0.1251912605
E121: 5.4 | F121: 155.2028169 | G121: 0.1303657302 | H121: 0.1262840883
E122: 5.45 | F122: 155.8557603 | G122: 0.1320047028 | H122: 0.1273755509
E123: 5.5 | F123: 156.5085827 | G123: 0.1336499184 | H123: 0.12846565
E124: 5.55 | F124: 157.161075 | G124: 0.1353011599 | H124: 0.1295543873
E125: 5.6 | F125: 157.8130282 | G125: 0.1369582054 | H125: 0.1306417646
E126: 5.65 | F126: 158.4642331 | G126: 0.1386208282 | H126: 0.1317277835
E127: 5.7 | F127: 159.1144806 | G127: 0.140288797 | H127: 0.1328124457
E128: 5.75 | F128: 159.7635618 | G128: 0.1419618759 | H128: 0.1338957529
E129: 5.8 | F129: 160.4112676 | G129: 0.1436398243 | H129: 0.1349777069
E130: 5.85 | F130: 161.0573889 | G130: 0.1453223974 | H130: 0.1360583092
E131: 5.9 | F131: 161.7017165 | G131: 0.1470093458 | H131: 0.1371375617
E132: 5.95 | F132: 162.3440416 | G132: 0.1487004158 | H132: 0.1382154659
E133: 6 | F133: 162.9841549 | G133: 0.1503953496 | H133: 0.1392920236
E134: 6.05 | F134: 163.6218475 | G134: 0.1520938851 | H134: 0.1403672364
E135: 6.1 | F135: 164.2569102 | G135: 0.153795756 | H135: 0.141441106
E136: 6.15 | F136: 164.889134 | G136: 0.1555006922 | H136: 0.1425136342
E137: 6.2 | F137: 165.5183099 | G137: 0.1572084194 | H137: 0.1435848225
E138: 6.25 | F138: 166.1442286 | G138: 0.1589186595 | H138: 0.1446546727
E139: 6.3 | F139: 166.7666813 | G139: 0.1606311305 | H139: 0.1457231864
E140: 6.35 | F140: 167.3854588 | G140: =1-EXP(-E140*F140/(1-RecoveryRate)/10000) -> 0.1623455468 | H140: =1-EXP(-E140*fiveyrspread/(1-RecoveryRate)/10000) -> 0.1467903653
E141: 6.4 | F141: =CubicSpline($B$34:$B$38,$C$11:$C$15,E141) -> 168.0003521 | G141: 0.164061619 | H141: 0.147856211
E142: 6.45 | F142: 168.6111521 | G142: 0.165779054 | H142: 0.1489207253
E143: 6.5 | F143: 169.2176496 | G143: 0.1674975552 | H143: 0.1499839098
E144: 6.55 | F144: 169.8196358 | G144: 0.1692168225 | H144: 0.1510457661
E145: 6.6 | F145: 170.4169014 | G145: 0.1709365523 | H145: 0.1521062959
E146: =E145+0.05 -> 6.65 | F146: 171.0092375 | G146: 0.1726564377 | H146: 0.1531655009
E147: 6.7 | F147: 171.5964349 | G147: 0.1743761684 | H147: 0.1542233827
E148: 6.75 | F148: 172.1782845 | G148: 0.176095431 | H148: 0.155279943
E149: 6.8 | F149: 172.7545775 | G149: 0.1778139087 | H149: 0.1563351834
E150: 6.85 | F150: 173.3251045 | G150: 0.1795312817 | H150: 0.1573891056
E151: 6.9 | F151: 173.8896567 | G151: 0.181247227 | H151: 0.1584417112
E152: 6.95 | F152: 174.4480249 | G152: 0.1829614187 | H152: 0.1594930019
E153: 7 | F153: 175 | G153: 0.1846735279 | H153: 0.1605429792
E154: 7.05 | F154: 175.5454363 | G154: 0.1863832831 | H154: 0.161591645
E155: 7.1 | F155: 176.0843504 | G155: 0.1880905674 | H155: 0.1626390007
E156: 7.15 | F156: 176.6169125 | G156: 0.1897954136 | H156: 0.163685048
E157: 7.2 | F157: 177.1431874 | G157: 0.1914977563 | H157: 0.1647297886
E158: 7.25 | F158: 177.6633156 | G158: 0.1931976065 | H158: 0.1657732241
E159: 7.3 | F159: 178.1773769 | G159: 0.1948949194 | H159: 0.1668153561
E160: 7.35 | F160: 178.685496 | G160: 0.1965896967 | H160: 0.1678561862
E161: 7.4 | F161: 179.1877985 | G161: 0.1982819446 | H161: 0.1688957161
E162: 7.45 | F162: 179.6843639 | G162: 0.1999716266 | H162: 0.1699339475
E163: 7.5 | F163: 180.1753178 | G163: 0.2016587547 | H163: 0.1709708818
E164: 7.55 | F164: 180.6607849 | G164: 0.2033433433 | H164: 0.1720065208
E165: 7.6 | F165: 181.140845 | G165: 0.2050253649 | H165: 0.1730408661
E166: 7.65 | F166: 181.6156387 | G166: 0.2067048556 | H166: 0.1740739192
E167: 7.7 | F167: 182.0852305 | G167: 0.2083817776 | H167: 0.1751056818
E168: 7.75 | F168: 182.5497909 | G168: 0.2100562037 | H168: 0.1761361555
E169: 7.8 | F169: 183.0093998 | G169: 0.2117281172 | H169: 0.1771653419
E170: 7.85 | F170: 183.4641444 | G170: 0.2133975116 | H170: 0.1781932427
E171: 7.9 | F171: 183.9141726 | G171: 0.2150644453 | H171: 0.1792198594
E172: 7.95 | F172: 184.3595793 | G172: 0.2167289251 | H172: 0.1802451936
E173: 8 | F173: 184.8004745 | G173: 0.218390976 | H173: 0.1812692469
E174: 8.05 | F174: 185.2369532 | G174: 0.2200506096 | H174: 0.182292021
E175: 8.1 | F175: 185.6691557 | G175: 0.2217078882 | H175: 0.1833135174
E176: 8.15 | F176: 186.0971845 | G176: 0.2233628367 | H176: 0.1843337377
E177: 8.2 | F177: 186.5211344 | G177: 0.2250154745 | H177: 0.1853526836
E178: 8.25 | F178: 186.9411077 | G178: 0.2266658316 | H178: 0.1863703566
E179: 8.3 | F179: 187.3572451 | G179: 0.2283139807 | H179: 0.1873867582
E180: 8.35 | F180: 187.7696413 | G180: 0.2299599487 | H180: 0.1884018902
E181: 8.4 | F181: 188.1784063 | G181: 0.2316037811 | H181: 0.189415754
E182: 8.45 | F182: 188.5836425 | G182: 0.2332455175 | H182: 0.1904283513
E183: 8.5 | F183: 188.9854753 | G183: 0.2348852248 | H183: 0.1914396837
E184: 8.55 | F184: 189.3839994 | G184: 0.2365229389 | H184: 0.1924497526
E185: 8.6 | F185: 189.7793402 | G185: 0.2381587317 | H185: 0.1934585598
E186: 8.65 | F186: 190.1715999 | G186: 0.2397926519 | H186: 0.1944661068
E187: 8.7 | F187: 190.5608887 | G187: 0.2414247595 | H187: 0.1954723951
E188: 8.75 | F188: 190.9473089 | G188: 0.2430551076 | H188: 0.1964774263
E189: 8.8 | F189: 191.3309859 | G189: 0.2446837773 | H189: 0.197481202
E190: 8.85 | F190: 191.7120144 | G190: 0.2463108179 | H190: 0.1984837238
E191: 8.9 | F191: 192.0905274 | G191: 0.2479363234 | H191: 0.1994849932
E192: 8.95 | F192: 192.4666043 | G192: 0.2495603304 | H192: 0.2004850119
E193: 9 | F193: 192.8403782 | G193: 0.2511829372 | H193: 0.2014837812
E194: 9.05 | F194: 193.2119436 | G194: 0.2528042014 | H194: 0.2024813029
E195: 9.1 | F195: 193.5814299 | G195: 0.2544242215 | H195: 0.2034775785
E196: 9.15 | F196: 193.948924 | G196: 0.2560430503 | H196: 0.2044726095
E197: 9.2 | F197: 194.3145553 | G197: 0.2576607906 | H197: 0.2054663975
E198: 9.25 | F198: 194.6784221 | G198: 0.2592775121 | H198: 0.206458944
E199: 9.3 | F199: 195.0406384 | G199: 0.260893304 | H199: 0.2074502507
E200: 9.35 | F200: 195.401318 | G200: 0.2625082574 | H200: 0.2084403189
E201: 9.4 | F201: 195.7605634 | G201: 0.2641224522 | H201: 0.2094291504
E202: 9.45 | F202: 196.1184921 | G202: 0.2657359876 | H202: 0.2104167466
E203: 9.5 | F203: 196.4752067 | G203: 0.2673489472 | H203: 0.211403109
E204: 9.55 | F204: 196.8308228 | G204: =1-EXP(-E204*F204/(1-RecoveryRate)/10000) -> 0.2689614317 | H204: =1-EXP(-E204*fiveyrspread/(1-RecoveryRate)/10000) -> 0.2123882393
E205: 9.6 | F205: =CubicSpline($B$34:$B$38,$C$11:$C$15,E205) -> 197.1854467 | G205: 0.2705735326 | H205: 0.2133721389
E206: 9.65 | F206: 197.5391902 | G206: 0.2721853496 | H206: 0.2143548095
E207: 9.7 | F207: 197.8921655 | G207: 0.2737969845 | H207: 0.2153362524
E208: 9.75 | F208: 198.2444805 | G208: 0.275408536 | H208: 0.2163164693
... 5 more rows

Sheet 12.2
B9: CDS Data | H9: Rating Coefficients | K9: Region Coefficients | N9: Industry Coefficients | S9: =TRANSPOSE(H10:H16) -> AAA | T9: AA | U9: A | V9: BBB | W9: BB | X9: B | Y9: CCC | Z9: =TRANSPOSE(K10:K17) -> Asia | AA9: E.Eur | AB9: Europe | AC9: Japan | AD9: MiddleEast | AE9: Lat.Amer | AF9: N.Amer | AG9: Oceania | AH9: =TRANSPOSE(N10:N21) -> Basic Materials | AI9: Consumer Goods | AJ9: Consumer Services | AK9: Energy | AL9: Financials | AM9: Government | AN9: Healthcare | AO9: Industrials | AP9: Muni | AQ9: Technology | AR9: Telecommunications Services | AS9: Utilities
B10: Rating | C10: Region | D10: Industry | E10: CDS | F10: LOG(CDS) | H10: AAA | I10: =R11 -> -3.728303963 | K10: Asia | L10: =R18 -> -0.1788040127 | N10: Basic Materials | O10: =R26 -> -0.3231295965 | R10: =TRANSPOSE(ReverseArray(LINEST(F11:F1082,S10:AS1081))) -> -1.869979092 | S10: =IF($B11=S$9,1,0) -> 0 | T10: =IF($B11=T$9,1,0) -> 0 | U10: =IF($B11=U$9,1,0) -> 1 | V10: =IF($B11=V$9,1,0) -> 0 | W10: =IF($B11=W$9,1,0) -> 0 | X10: =IF($B11=X$9,1,0) -> 0 | Y10: =IF($B11=Y$9,1,0) -> 0 | Z10: =IF($C11=Z$9,1,0) -> 0 | AA10: =IF($C11=AA$9,1,0) -> 0 | AB10: =IF($C11=AB$9,1,0) -> 0 | AC10: =IF($C11=AC$9,1,0) -> 0 | AD10: =IF($C11=AD$9,1,0) -> 1 | AE10: =IF($C11=AE$9,1,0) -> 0 | AF10: =IF($C11=AF$9,1,0) -> 0 | AG10: =IF($C11=AG$9,1,0) -> 0 | AH10: =IF($D11=AH$9,1,0) -> 0 | AI10: =IF($D11=AI$9,1,0) -> 0 | AJ10: =IF($D11=AJ$9,1,0) -> 0 | AK10: =IF($D11=AK$9,1,0) -> 0 | AL10: =IF($D11=AL$9,1,0) -> 0 | AM10: =IF($D11=AM$9,1,0) -> 0 | AN10: =IF($D11=AN$9,1,0) -> 0 | AO10: =IF($D11=AO$9,1,0) -> 0 | AP10: =IF($D11=AP$9,1,0) -> 0 | AQ10: =IF($D11=AQ$9,1,0) -> 0 | AR10: =IF($D11=AR$9,1,0) -> 0 | AS10: =IF($D11=AS$9,1,0) -> 1
B11: A | C11: MiddleEast | D11: Utilities | E11: 0.00728 | F11: =LN(E11) -> -4.922624417 | H11: AA | I11: -3.289218285 | K11: E.Eur | L11: -0.06802527311 | N11: Consumer Goods | O11: -0.327770714 | R11: -3.728303963 | S11: 0 | T11: 0 | U11: 1 | V11: 0 | W11: 0 | X11: 0 | Y11: 0 | Z11: 0 | AA11: 0 | AB11: 0 | AC11: 1 | AD11: 0 | AE11: 0 | AF11: 0 | AG11: 0 | AH11: 0 | AI11: 0 | AJ11: 0 | AK11: 0 | AL11: 1 | AM11: 0 | AN11: 0 | AO11: 0 | AP11: 0 | AQ11: 0 | AR11: 0 | AS11: 0
B12: A | C12: Japan | D12: Financials | E12: 0.00383 | F12: =LN(E12) -> -5.564890476 | H12: A | I12: -2.992646473 | K12: Europe | L12: -0.4374622935 | N12: Consumer Services | O12: -0.3338467117 | R12: -3.289218285 | S12: 0 | T12: 0 | U12: 1 | V12: 0 | W12: 0 | X12: 0 | Y12: 0 | Z12: 0 | AA12: 0 | AB12: 1 | AC12: 0 | AD12: 0 | AE12: 0 | AF12: 0 | AG12: 0 | AH12: 0 | AI12: 0 | AJ12: 0 | AK12: 0 | AL12: 1 | AM12: 0 | AN12: 0 | AO12: 0 | AP12: 0 | AQ12: 0 | AR12: 0 | AS12: 0
B13: A | C13: Europe | D13: Financials | E13: 0.0065 | F13: -5.035953102 | H13: BBB | I13: -2.532474149 | K13: Japan | L13: -0.6385738431 | N13: Energy | O13: -0.1054577919 | R13: -2.992646473 | S13: 0 | T13: 0 | U13: 1 | V13: 0 | W13: 0 | X13: 0 | Y13: 0 | Z13: 0 | AA13: 0 | AB13: 0 | AC13: 0 | AD13: 0 | AE13: 0 | AF13: 1 | AG13: 0 | AH13: 1 | AI13: 0 | AJ13: 0 | AK13: 0 | AL13: 0 | AM13: 0 | AN13: 0 | AO13: 0 | AP13: 0 | AQ13: 0 | AR13: 0 | AS13: 0
B14: A | C14: N.Amer | D14: Basic Materials | E14: 0.00366 | F14: -5.610292132 | H14: BB | I14: -1.848049403 | K14: MiddleEast | L14: 0.1537364844 | N14: Financials | O14: -0.1445403799 | R14: -2.532474149 | S14: 0 | T14: 0 | U14: 1 | V14: 0 | W14: 0 | X14: 0 | Y14: 0 | Z14: 0 | AA14: 0 | AB14: 0 | AC14: 1 | AD14: 0 | AE14: 0 | AF14: 0 | AG14: 0 | AH14: 0 | AI14: 1 | AJ14: 0 | AK14: 0 | AL14: 0 | AM14: 0 | AN14: 0 | AO14: 0 | AP14: 0 | AQ14: 0 | AR14: 0 | AS14: 0
B15: A | C15: Japan | D15: Consumer Goods | E15: 0.00168 | F15: -6.388961486 | H15: B | I15: -1.175180012 | K15: Lat.Amer | L15: 0 | N15: Government | O15: -0.4976388033 | R15: -1.848049403 | S15: 0 | T15: 0 | U15: 1 | V15: 0 | W15: 0 | X15: 0 | Y15: 0 | Z15: 0 | AA15: 0 | AB15: 0 | AC15: 0 | AD15: 0 | AE15: 0 | AF15: 1 | AG15: 0 | AH15: 0 | AI15: 0 | AJ15: 0 | AK15: 0 | AL15: 1 | AM15: 0 | AN15: 0 | AO15: 0 | AP15: 0 | AQ15: 0 | AR15: 0 | AS15: 0
B16: A | C16: N.Amer | D16: Financials | E16: 0.00375 | F16: -5.585999439 | H16: CCC | I16: 0 | K16: N.Amer | L16: -0.266059715 | N16: Healthcare | O16: -0.562812451 | R16: -1.175180012 | S16: 0 | T16: 0 | U16: 1 | V16: 0 | W16: 0 | X16: 0 | Y16: 0 | Z16: 0 | AA16: 0 | AB16: 0 | AC16: 0 | AD16: 0 | AE16: 0 | AF16: 1 | AG16: 0 | AH16: 0 | AI16: 0 | AJ16: 0 | AK16: 0 | AL16: 1 | AM16: 0 | AN16: 0 | AO16: 0 | AP16: 0 | AQ16: 0 | AR16: 0 | AS16: 0
B17: A | C17: N.Amer | D17: Financials | E17: 0.00375 | F17: -5.585999439 | K17: Oceania | L17: -0.1984464306 | N17: Industrials | O17: -0.3865756841 | R17: 0 | S17: 0 | T17: 0 | U17: 1 | V17: 0 | W17: 0 | X17: 0 | Y17: 0 | Z17: 0 | AA17: 0 | AB17: 0 | AC17: 0 | AD17: 0 | AE17: 0 | AF17: 1 | AG17: 0 | AH17: 0 | AI17: 0 | AJ17: 0 | AK17: 0 | AL17: 0 | AM17: 0 | AN17: 1 | AO17: 0 | AP17: 0 | AQ17: 0 | AR17: 0 | AS17: 0
B18: A | C18: N.Amer | D18: Healthcare | E18: 0.00397 | F18: -5.528989184 | H18: Intercept | I18: =R10 -> -1.869979092 | N18: Muni | O18: 0 | R18: -0.1788040127 | S18: 0 | T18: 0 | U18: 1 | V18: 0 | W18: 0 | X18: 0 | Y18: 0 | Z18: 0 | AA18: 0 | AB18: 0 | AC18: 0 | AD18: 0 | AE18: 0 | AF18: 1 | AG18: 0 | AH18: 0 | AI18: 0 | AJ18: 0 | AK18: 0 | AL18: 0 | AM18: 0 | AN18: 0 | AO18: 0 | AP18: 0 | AQ18: 1 | AR18: 0 | AS18: 0
B19: A | C19: N.Amer | D19: Technology | E19: 0.00521 | F19: -5.257175423 | N19: Technology | O19: -0.3097046798 | R19: -0.06802527311 | S19: 0 | T19: 0 | U19: 1 | V19: 0 | W19: 0 | X19: 0 | Y19: 0 | Z19: 0 | AA19: 0 | AB19: 0 | AC19: 0 | AD19: 0 | AE19: 0 | AF19: 1 | AG19: 0 | AH19: 0 | AI19: 1 | AJ19: 0 | AK19: 0 | AL19: 0 | AM19: 0 | AN19: 0 | AO19: 0 | AP19: 0 | AQ19: 0 | AR19: 0 | AS19: 0
B20: A | C20: N.Amer | D20: Consumer Goods | E20: 0.00712 | F20: -4.944847554 | N20: Telecommunications Services | O20: -0.4044146152 | R20: -0.4374622935 | S20: 0 | T20: 0 | U20: 1 | V20: 0 | W20: 0 | X20: 0 | Y20: 0 | Z20: 0 | AA20: 0 | AB20: 0 | AC20: 0 | AD20: 0 | AE20: 0 | AF20: 1 | AG20: 0 | AH20: 0 | AI20: 0 | AJ20: 0 | AK20: 0 | AL20: 1 | AM20: 0 | AN20: 0 | AO20: 0 | AP20: 0 | AQ20: 0 | AR20: 0 | AS20: 0
B21: A | C21: N.Amer | D21: Financials | E21: 0.00699 | F21: -4.963274723 | N21: Utilities | O21: -0.4124457955 | R21: -0.6385738431 | S21: 0 | T21: 0 | U21: 1 | V21: 0 | W21: 0 | X21: 0 | Y21: 0 | Z21: 0 | AA21: 0 | AB21: 0 | AC21: 0 | AD21: 0 | AE21: 0 | AF21: 1 | AG21: 0 | AH21: 0 | AI21: 0 | AJ21: 0 | AK21: 0 | AL21: 1 | AM21: 0 | AN21: 0 | AO21: 0 | AP21: 0 | AQ21: 0 | AR21: 0 | AS21: 0
B22: A | C22: N.Amer | D22: Financials | E22: 0.00632 | F22: -5.064036071 | R22: 0.1537364844 | S22: 0 | T22: 0 | U22: 1 | V22: 0 | W22: 0 | X22: 0 | Y22: 0 | Z22: 0 | AA22: 0 | AB22: 1 | AC22: 0 | AD22: 0 | AE22: 0 | AF22: 0 | AG22: 0 | AH22: 0 | AI22: 0 | AJ22: 0 | AK22: 0 | AL22: 0 | AM22: 0 | AN22: 1 | AO22: 0 | AP22: 0 | AQ22: 0 | AR22: 0 | AS22: 0
B23: A | C23: Europe | D23: Healthcare | E23: 0.00254 | F23: -5.975591198 | H23: Examples | R23: 0 | S23: 0 | T23: 0 | U23: 1 | V23: 0 | W23: 0 | X23: 0 | Y23: 0 | Z23: 0 | AA23: 0 | AB23: 1 | AC23: 0 | AD23: 0 | AE23: 0 | AF23: 0 | AG23: 0 | AH23: 0 | AI23: 0 | AJ23: 0 | AK23: 0 | AL23: 0 | AM23: 0 | AN23: 0 | AO23: 1 | AP23: 0 | AQ23: 0 | AR23: 0 | AS23: 0
B24: A | C24: Europe | D24: Industrials | E24: 0.00562 | F24: -5.181423615 | H24: AAA | I24: N.Amer | J24: Financials | K24: =Intercept+OFFSET($I$9,MATCH(H24,$H$10:$H$16,0),0,1,1)+OFFSET($L$9,MATCH(I24,$K$10:$K$17,0),0,1,1)+OFFSET($O$9,MATCH(J24,$N$10:$N$21,0),0,1,1) -> -6.00888315 | L24: =EXP(K24) -> 0.00245683056 | R24: -0.266059715 | S24: 0 | T24: 0 | U24: 1 | V24: 0 | W24: 0 | X24: 0 | Y24: 0 | Z24: 0 | AA24: 0 | AB24: 1 | AC24: 0 | AD24: 0 | AE24: 0 | AF24: 0 | AG24: 0 | AH24: 0 | AI24: 0 | AJ24: 0 | AK24: 1 | AL24: 0 | AM24: 0 | AN24: 0 | AO24: 0 | AP24: 0 | AQ24: 0 | AR24: 0 | AS24: 0
B25: A | C25: Europe | D25: Energy | E25: 0.00413 | F25: -5.489477872 | H25: A | I25: Europe | J25: Basic Materials | K25: =Intercept+OFFSET($I$9,MATCH(H25,$H$10:$H$16,0),0,1,1)+OFFSET($L$9,MATCH(I25,$K$10:$K$17,0),0,1,1)+OFFSET($O$9,MATCH(J25,$N$10:$N$21,0),0,1,1) -> -5.623217454 | L25: =EXP(K25) -> 0.003612997734 | R25: -0.1984464306 | S25: 0 | T25: 0 | U25: 1 | V25: 0 | W25: 0 | X25: 0 | Y25: 0 | Z25: 0 | AA25: 0 | AB25: 1 | AC25: 0 | AD25: 0 | AE25: 0 | AF25: 0 | AG25: 0 | AH25: 0 | AI25: 0 | AJ25: 0 | AK25: 0 | AL25: 1 | AM25: 0 | AN25: 0 | AO25: 0 | AP25: 0 | AQ25: 0 | AR25: 0 | AS25: 0
B26: A | C26: Europe | D26: Financials | E26: 0.00317 | F26: -5.754023691 | H26: BBB | I26: Japan | J26: Industrials | K26: =Intercept+OFFSET($I$9,MATCH(H26,$H$10:$H$16,0),0,1,1)+OFFSET($L$9,MATCH(I26,$K$10:$K$17,0),0,1,1)+OFFSET($O$9,MATCH(J26,$N$10:$N$21,0),0,1,1) -> -5.427602768 | L26: =EXP(K26) -> 0.004393615706 | R26: -0.3231295965 | S26: 0 | T26: 0 | U26: 1 | V26: 0 | W26: 0 | X26: 0 | Y26: 0 | Z26: 0 | AA26: 0 | AB26: 0 | AC26: 0 | AD26: 0 | AE26: 0 | AF26: 1 | AG26: 0 | AH26: 0 | AI26: 0 | AJ26: 0 | AK26: 1 | AL26: 0 | AM26: 0 | AN26: 0 | AO26: 0 | AP26: 0 | AQ26: 0 | AR26: 0 | AS26: 0
B27: A | C27: N.Amer | D27: Energy | E27: 0.00394 | F27: -5.536574556 | H27: BB | I27: Asia | J27: Consumer Goods | K27: =Intercept+OFFSET($I$9,MATCH(H27,$H$10:$H$16,0),0,1,1)+OFFSET($L$9,MATCH(I27,$K$10:$K$17,0),0,1,1)+OFFSET($O$9,MATCH(J27,$N$10:$N$21,0),0,1,1) -> -4.224603222 | L27: =EXP(K27) -> 0.01463113888 | R27: -0.327770714 | S27: 0 | T27: 0 | U27: 1 | V27: 0 | W27: 0 | X27: 0 | Y27: 0 | Z27: 0 | AA27: 0 | AB27: 1 | AC27: 0 | AD27: 0 | AE27: 0 | AF27: 0 | AG27: 0 | AH27: 0 | AI27: 0 | AJ27: 0 | AK27: 0 | AL27: 1 | AM27: 0 | AN27: 0 | AO27: 0 | AP27: 0 | AQ27: 0 | AR27: 0 | AS27: 0
B28: A | C28: Europe | D28: Financials | E28: 0.0069 | F28: -4.976233867 | R28: -0.3338467117 | S28: 0 | T28: 0 | U28: 1 | V28: 0 | W28: 0 | X28: 0 | Y28: 0 | Z28: 0 | AA28: 0 | AB28: 0 | AC28: 0 | AD28: 0 | AE28: 0 | AF28: 1 | AG28: 0 | AH28: 0 | AI28: 0 | AJ28: 0 | AK28: 0 | AL28: 1 | AM28: 0 | AN28: 0 | AO28: 0 | AP28: 0 | AQ28: 0 | AR28: 0 | AS28: 0
B29: A | C29: N.Amer | D29: Financials | E29: 0.00164 | F29: -6.413059037 | R29: -0.1054577919 | S29: 0 | T29: 0 | U29: 1 | V29: 0 | W29: 0 | X29: 0 | Y29: 0 | Z29: 0 | AA29: 0 | AB29: 0 | AC29: 0 | AD29: 0 | AE29: 0 | AF29: 1 | AG29: 0 | AH29: 0 | AI29: 0 | AJ29: 0 | AK29: 0 | AL29: 0 | AM29: 0 | AN29: 0 | AO29: 1 | AP29: 0 | AQ29: 0 | AR29: 0 | AS29: 0
B30: A | C30: N.Amer | D30: Industrials | E30: 0.00491 | F30: -5.316481337 | R30: -0.1445403799 | S30: 0 | T30: 0 | U30: 1 | V30: 0 | W30: 0 | X30: 0 | Y30: 0 | Z30: 0 | AA30: 0 | AB30: 0 | AC30: 1 | AD30: 0 | AE30: 0 | AF30: 0 | AG30: 0 | AH30: 0 | AI30: 1 | AJ30: 0 | AK30: 0 | AL30: 0 | AM30: 0 | AN30: 0 | AO30: 0 | AP30: 0 | AQ30: 0 | AR30: 0 | AS30: 0
B31: A | C31: Japan | D31: Consumer Goods | E31: 0.00288 | F31: -5.849964985 | R31: -0.4976388033 | S31: 0 | T31: 0 | U31: 1 | V31: 0 | W31: 0 | X31: 0 | Y31: 0 | Z31: 0 | AA31: 0 | AB31: 0 | AC31: 0 | AD31: 0 | AE31: 0 | AF31: 1 | AG31: 0 | AH31: 0 | AI31: 0 | AJ31: 0 | AK31: 0 | AL31: 0 | AM31: 0 | AN31: 0 | AO31: 0 | AP31: 0 | AQ31: 0 | AR31: 1 | AS31: 0
B32: A | C32: N.Amer | D32: Telecommunications Services | E32: 0.00296 | F32: -5.822566011 | R32: -0.562812451 | S32: 0 | T32: 0 | U32: 1 | V32: 0 | W32: 0 | X32: 0 | Y32: 0 | Z32: 0 | AA32: 0 | AB32: 1 | AC32: 0 | AD32: 0 | AE32: 0 | AF32: 0 | AG32: 0 | AH32: 0 | AI32: 1 | AJ32: 0 | AK32: 0 | AL32: 0 | AM32: 0 | AN32: 0 | AO32: 0 | AP32: 0 | AQ32: 0 | AR32: 0 | AS32: 0
B33: A | C33: Europe | D33: Consumer Goods | E33: 0.00253 | F33: -5.979535976 | R33: -0.3865756841 | S33: 0 | T33: 0 | U33: 1 | V33: 0 | W33: 0 | X33: 0 | Y33: 0 | Z33: 0 | AA33: 0 | AB33: 0 | AC33: 0 | AD33: 0 | AE33: 0 | AF33: 1 | AG33: 0 | AH33: 0 | AI33: 0 | AJ33: 0 | AK33: 0 | AL33: 1 | AM33: 0 | AN33: 0 | AO33: 0 | AP33: 0 | AQ33: 0 | AR33: 0 | AS33: 0
B34: A | C34: N.Amer | D34: Financials | E34: 0.00241 | F34: -6.028128531 | R34: 0 | S34: 0 | T34: 0 | U34: 1 | V34: 0 | W34: 0 | X34: 0 | Y34: 0 | Z34: 0 | AA34: 0 | AB34: 0 | AC34: 0 | AD34: 0 | AE34: 0 | AF34: 1 | AG34: 0 | AH34: 0 | AI34: 0 | AJ34: 0 | AK34: 0 | AL34: 0 | AM34: 0 | AN34: 0 | AO34: 0 | AP34: 0 | AQ34: 0 | AR34: 1 | AS34: 0
B35: A | C35: N.Amer | D35: Telecommunications Services | E35: 0.00307 | F35: -5.786077717 | R35: -0.3097046798 | S35: 0 | T35: 0 | U35: 1 | V35: 0 | W35: 0 | X35: 0 | Y35: 0 | Z35: 0 | AA35: 0 | AB35: 0 | AC35: 1 | AD35: 0 | AE35: 0 | AF35: 0 | AG35: 0 | AH35: 1 | AI35: 0 | AJ35: 0 | AK35: 0 | AL35: 0 | AM35: 0 | AN35: 0 | AO35: 0 | AP35: 0 | AQ35: 0 | AR35: 0 | AS35: 0
B36: A | C36: Japan | D36: Basic Materials | E36: 0.00379 | F36: -5.57538926 | R36: -0.4044146152 | S36: 0 | T36: 0 | U36: 1 | V36: 0 | W36: 0 | X36: 0 | Y36: 0 | Z36: 0 | AA36: 0 | AB36: 0 | AC36: 0 | AD36: 0 | AE36: 0 | AF36: 1 | AG36: 0 | AH36: 0 | AI36: 0 | AJ36: 0 | AK36: 0 | AL36: 1 | AM36: 0 | AN36: 0 | AO36: 0 | AP36: 0 | AQ36: 0 | AR36: 0 | AS36: 0
B37: A | C37: N.Amer | D37: Financials | E37: 0.00557 | F37: -5.190360225 | R37: -0.4124457955 | S37: 0 | T37: 0 | U37: 1 | V37: 0 | W37: 0 | X37: 0 | Y37: 0 | Z37: 0 | AA37: 0 | AB37: 0 | AC37: 0 | AD37: 0 | AE37: 0 | AF37: 1 | AG37: 0 | AH37: 0 | AI37: 0 | AJ37: 0 | AK37: 0 | AL37: 1 | AM37: 0 | AN37: 0 | AO37: 0 | AP37: 0 | AQ37: 0 | AR37: 0 | AS37: 0
B38: A | C38: N.Amer | D38: Financials | E38: 0.0052 | F38: -5.259096653 | S38: 0 | T38: 0 | U38: 1 | V38: 0 | W38: 0 | X38: 0 | Y38: 0 | Z38: 0 | AA38: 0 | AB38: 0 | AC38: 0 | AD38: 0 | AE38: 0 | AF38: 1 | AG38: 0 | AH38: 0 | AI38: 0 | AJ38: 0 | AK38: 0 | AL38: 0 | AM38: 0 | AN38: 1 | AO38: 0 | AP38: 0 | AQ38: 0 | AR38: 0 | AS38: 0
B39: A | C39: N.Amer | D39: Healthcare | E39: 0.0034 | F39: -5.683979847 | S39: 0 | T39: 0 | U39: 1 | V39: 0 | W39: 0 | X39: 0 | Y39: 0 | Z39: 0 | AA39: 0 | AB39: 1 | AC39: 0 | AD39: 0 | AE39: 0 | AF39: 0 | AG39: 0 | AH39: 0 | AI39: 1 | AJ39: 0 | AK39: 0 | AL39: 0 | AM39: 0 | AN39: 0 | AO39: 0 | AP39: 0 | AQ39: 0 | AR39: 0 | AS39: 0
B40: A | C40: Europe | D40: Consumer Goods | E40: 0.00549 | F40: -5.204827023 | S40: 0 | T40: 0 | U40: 1 | V40: 0 | W40: 0 | X40: 0 | Y40: 0 | Z40: 0 | AA40: 0 | AB40: 0 | AC40: 1 | AD40: 0 | AE40: 0 | AF40: 0 | AG40: 0 | AH40: 0 | AI40: 1 | AJ40: 0 | AK40: 0 | AL40: 0 | AM40: 0 | AN40: 0 | AO40: 0 | AP40: 0 | AQ40: 0 | AR40: 0 | AS40: 0
B41: A | C41: Japan | D41: Consumer Goods | E41: 0.00292 | F41: -5.836171663 | S41: 0 | T41: 0 | U41: 1 | V41: 0 | W41: 0 | X41: 0 | Y41: 0 | Z41: 0 | AA41: 0 | AB41: 0 | AC41: 1 | AD41: 0 | AE41: 0 | AF41: 0 | AG41: 0 | AH41: 0 | AI41: 0 | AJ41: 0 | AK41: 0 | AL41: 0 | AM41: 0 | AN41: 0 | AO41: 0 | AP41: 0 | AQ41: 1 | AR41: 0 | AS41: 0
B42: A | C42: Japan | D42: Technology | E42: 0.00253 | F42: -5.979535976 | S42: 0 | T42: 0 | U42: 1 | V42: 0 | W42: 0 | X42: 0 | Y42: 0 | Z42: 0 | AA42: 0 | AB42: 0 | AC42: 0 | AD42: 0 | AE42: 0 | AF42: 1 | AG42: 0 | AH42: 0 | AI42: 0 | AJ42: 0 | AK42: 0 | AL42: 1 | AM42: 0 | AN42: 0 | AO42: 0 | AP42: 0 | AQ42: 0 | AR42: 0 | AS42: 0
B43: A | C43: N.Amer | D43: Financials | E43: 0.00503 | F43: -5.292335295 | S43: 0 | T43: 0 | U43: 1 | V43: 0 | W43: 0 | X43: 0 | Y43: 0 | Z43: 0 | AA43: 0 | AB43: 0 | AC43: 0 | AD43: 0 | AE43: 0 | AF43: 1 | AG43: 0 | AH43: 0 | AI43: 0 | AJ43: 0 | AK43: 0 | AL43: 0 | AM43: 0 | AN43: 0 | AO43: 1 | AP43: 0 | AQ43: 0 | AR43: 0 | AS43: 0
B44: A | C44: N.Amer | D44: Industrials | E44: 0.00435 | F44: -5.437579434 | S44: 0 | T44: 0 | U44: 1 | V44: 0 | W44: 0 | X44: 0 | Y44: 0 | Z44: 0 | AA44: 0 | AB44: 0 | AC44: 0 | AD44: 0 | AE44: 1 | AF44: 0 | AG44: 0 | AH44: 0 | AI44: 0 | AJ44: 0 | AK44: 0 | AL44: 0 | AM44: 1 | AN44: 0 | AO44: 0 | AP44: 0 | AQ44: 0 | AR44: 0 | AS44: 0
B45: A | C45: Lat.Amer | D45: Government | E45: 0.00333 | F45: -5.704782975 | S45: 0 | T45: 0 | U45: 1 | V45: 0 | W45: 0 | X45: 0 | Y45: 0 | Z45: 0 | AA45: 0 | AB45: 0 | AC45: 0 | AD45: 0 | AE45: 0 | AF45: 1 | AG45: 0 | AH45: 0 | AI45: 0 | AJ45: 0 | AK45: 0 | AL45: 1 | AM45: 0 | AN45: 0 | AO45: 0 | AP45: 0 | AQ45: 0 | AR45: 0 | AS45: 0
B46: A | C46: N.Amer | D46: Financials | E46: 0.0061 | F46: -5.099466508 | S46: 0 | T46: 0 | U46: 1 | V46: 0 | W46: 0 | X46: 0 | Y46: 0 | Z46: 1 | AA46: 0 | AB46: 0 | AC46: 0 | AD46: 0 | AE46: 0 | AF46: 0 | AG46: 0 | AH46: 0 | AI46: 0 | AJ46: 0 | AK46: 0 | AL46: 0 | AM46: 0 | AN46: 0 | AO46: 0 | AP46: 0 | AQ46: 0 | AR46: 0 | AS46: 1
B47: A | C47: Asia | D47: Utilities | E47: 0.00549 | F47: -5.204827023 | S47: 0 | T47: 0 | U47: 1 | V47: 0 | W47: 0 | X47: 0 | Y47: 0 | Z47: 0 | AA47: 0 | AB47: 0 | AC47: 0 | AD47: 0 | AE47: 0 | AF47: 1 | AG47: 0 | AH47: 0 | AI47: 1 | AJ47: 0 | AK47: 0 | AL47: 0 | AM47: 0 | AN47: 0 | AO47: 0 | AP47: 0 | AQ47: 0 | AR47: 0 | AS47: 0
B48: A | C48: N.Amer | D48: Consumer Goods | E48: 0.00303 | F48: -5.799192659 | S48: 0 | T48: 0 | U48: 1 | V48: 0 | W48: 0 | X48: 0 | Y48: 0 | Z48: 0 | AA48: 0 | AB48: 0 | AC48: 0 | AD48: 0 | AE48: 0 | AF48: 1 | AG48: 0 | AH48: 0 | AI48: 1 | AJ48: 0 | AK48: 0 | AL48: 0 | AM48: 0 | AN48: 0 | AO48: 0 | AP48: 0 | AQ48: 0 | AR48: 0 | AS48: 0
B49: A | C49: N.Amer | D49: Consumer Goods | E49: 0.00207 | F49: -6.180206672 | S49: 0 | T49: 0 | U49: 1 | V49: 0 | W49: 0 | X49: 0 | Y49: 0 | Z49: 0 | AA49: 0 | AB49: 0 | AC49: 0 | AD49: 0 | AE49: 0 | AF49: 1 | AG49: 0 | AH49: 0 | AI49: 0 | AJ49: 0 | AK49: 0 | AL49: 0 | AM49: 0 | AN49: 1 | AO49: 0 | AP49: 0 | AQ49: 0 | AR49: 0 | AS49: 0
B50: A | C50: N.Amer | D50: Healthcare | E50: 0.0033 | F50: -5.713832811 | S50: 0 | T50: 0 | U50: 1 | V50: 0 | W50: 0 | X50: 0 | Y50: 0 | Z50: 0 | AA50: 0 | AB50: 0 | AC50: 0 | AD50: 0 | AE50: 0 | AF50: 1 | AG50: 0 | AH50: 0 | AI50: 0 | AJ50: 0 | AK50: 0 | AL50: 0 | AM50: 0 | AN50: 0 | AO50: 1 | AP50: 0 | AQ50: 0 | AR50: 0 | AS50: 0
B51: A | C51: N.Amer | D51: Industrials | E51: 0.00253 | F51: -5.979535976 | S51: 0 | T51: 0 | U51: 1 | V51: 0 | W51: 0 | X51: 0 | Y51: 0 | Z51: 0 | AA51: 0 | AB51: 0 | AC51: 0 | AD51: 0 | AE51: 0 | AF51: 1 | AG51: 0 | AH51: 0 | AI51: 0 | AJ51: 0 | AK51: 1 | AL51: 0 | AM51: 0 | AN51: 0 | AO51: 0 | AP51: 0 | AQ51: 0 | AR51: 0 | AS51: 0
B52: A | C52: N.Amer | D52: Energy | E52: 0.0056 | F52: -5.184988681 | S52: 0 | T52: 0 | U52: 1 | V52: 0 | W52: 0 | X52: 0 | Y52: 0 | Z52: 1 | AA52: 0 | AB52: 0 | AC52: 0 | AD52: 0 | AE52: 0 | AF52: 0 | AG52: 0 | AH52: 0 | AI52: 0 | AJ52: 0 | AK52: 1 | AL52: 0 | AM52: 0 | AN52: 0 | AO52: 0 | AP52: 0 | AQ52: 0 | AR52: 0 | AS52: 0
B53: A | C53: Asia | D53: Energy | E53: 0.00718 | F53: -4.936455896 | S53: 0 | T53: 0 | U53: 1 | V53: 0 | W53: 0 | X53: 0 | Y53: 0 | Z53: 0 | AA53: 0 | AB53: 0 | AC53: 0 | AD53: 0 | AE53: 0 | AF53: 1 | AG53: 0 | AH53: 0 | AI53: 0 | AJ53: 0 | AK53: 1 | AL53: 0 | AM53: 0 | AN53: 0 | AO53: 0 | AP53: 0 | AQ53: 0 | AR53: 0 | AS53: 0
B54: A | C54: N.Amer | D54: Energy | E54: 0.00732 | F54: -4.917144951 | S54: 0 | T54: 0 | U54: 1 | V54: 0 | W54: 0 | X54: 0 | Y54: 0 | Z54: 0 | AA54: 0 | AB54: 0 | AC54: 0 | AD54: 0 | AE54: 0 | AF54: 1 | AG54: 0 | AH54: 0 | AI54: 0 | AJ54: 0 | AK54: 0 | AL54: 0 | AM54: 0 | AN54: 0 | AO54: 1 | AP54: 0 | AQ54: 0 | AR54: 0 | AS54: 0
B55: A | C55: N.Amer | D55: Industrials | E55: 0.00252 | F55: -5.983496377 | S55: 0 | T55: 0 | U55: 1 | V55: 0 | W55: 0 | X55: 0 | Y55: 0 | Z55: 0 | AA55: 0 | AB55: 0 | AC55: 0 | AD55: 0 | AE55: 0 | AF55: 1 | AG55: 0 | AH55: 0 | AI55: 0 | AJ55: 0 | AK55: 0 | AL55: 1 | AM55: 0 | AN55: 0 | AO55: 0 | AP55: 0 | AQ55: 0 | AR55: 0 | AS55: 0
B56: A | C56: N.Amer | D56: Financials | E56: 0.00281 | F56: -5.874570796 | S56: 0 | T56: 0 | U56: 1 | V56: 0 | W56: 0 | X56: 0 | Y56: 0 | Z56: 0 | AA56: 0 | AB56: 0 | AC56: 0 | AD56: 0 | AE56: 0 | AF56: 1 | AG56: 0 | AH56: 0 | AI56: 1 | AJ56: 0 | AK56: 0 | AL56: 0 | AM56: 0 | AN56: 0 | AO56: 0 | AP56: 0 | AQ56: 0 | AR56: 0 | AS56: 0
B57: A | C57: N.Amer | D57: Consumer Goods | E57: 0.00604 | F57: -5.109351267 | S57: 0 | T57: 0 | U57: 1 | V57: 0 | W57: 0 | X57: 0 | Y57: 0 | Z57: 0 | AA57: 0 | AB57: 0 | AC57: 0 | AD57: 0 | AE57: 1 | AF57: 0 | AG57: 0 | AH57: 0 | AI57: 0 | AJ57: 1 | AK57: 0 | AL57: 0 | AM57: 0 | AN57: 0 | AO57: 0 | AP57: 0 | AQ57: 0 | AR57: 0 | AS57: 0
B58: A | C58: Lat.Amer | D58: Consumer Services | E58: 0.00491 | F58: -5.316481337 | S58: 0 | T58: 0 | U58: 1 | V58: 0 | W58: 0 | X58: 0 | Y58: 0 | Z58: 0 | AA58: 0 | AB58: 0 | AC58: 0 | AD58: 0 | AE58: 0 | AF58: 1 | AG58: 0 | AH58: 0 | AI58: 0 | AJ58: 0 | AK58: 0 | AL58: 0 | AM58: 0 | AN58: 0 | AO58: 0 | AP58: 0 | AQ58: 0 | AR58: 1 | AS58: 0
B59: A | C59: N.Amer | D59: Telecommunications Services | E59: 0.00626 | F59: -5.073575094 | S59: 0 | T59: 0 | U59: 1 | V59: 0 | W59: 0 | X59: 0 | Y59: 0 | Z59: 0 | AA59: 0 | AB59: 0 | AC59: 0 | AD59: 0 | AE59: 0 | AF59: 1 | AG59: 0 | AH59: 0 | AI59: 0 | AJ59: 0 | AK59: 0 | AL59: 1 | AM59: 0 | AN59: 0 | AO59: 0 | AP59: 0 | AQ59: 0 | AR59: 0 | AS59: 0
B60: A | C60: N.Amer | D60: Financials | E60: 0.00207 | F60: -6.180206672 | S60: 0 | T60: 0 | U60: 1 | V60: 0 | W60: 0 | X60: 0 | Y60: 0 | Z60: 0 | AA60: 0 | AB60: 0 | AC60: 1 | AD60: 0 | AE60: 0 | AF60: 0 | AG60: 0 | AH60: 0 | AI60: 0 | AJ60: 0 | AK60: 0 | AL60: 0 | AM60: 0 | AN60: 0 | AO60: 0 | AP60: 0 | AQ60: 0 | AR60: 0 | AS60: 1
B61: A | C61: Japan | D61: Utilities | E61: 0.00275 | F61: -5.896154367 | S61: 0 | T61: 0 | U61: 1 | V61: 0 | W61: 0 | X61: 0 | Y61: 0 | Z61: 0 | AA61: 0 | AB61: 0 | AC61: 1 | AD61: 0 | AE61: 0 | AF61: 0 | AG61: 0 | AH61: 0 | AI61: 0 | AJ61: 0 | AK61: 0 | AL61: 0 | AM61: 0 | AN61: 0 | AO61: 0 | AP61: 0 | AQ61: 0 | AR61: 0 | AS61: 1
B62: A | C62: Japan | D62: Utilities | E62: 0.00263 | F62: -5.940771433 | S62: 0 | T62: 0 | U62: 1 | V62: 0 | W62: 0 | X62: 0 | Y62: 0 | Z62: 0 | AA62: 0 | AB62: 0 | AC62: 0 | AD62: 0 | AE62: 0 | AF62: 1 | AG62: 0 | AH62: 0 | AI62: 0 | AJ62: 0 | AK62: 0 | AL62: 0 | AM62: 0 | AN62: 0 | AO62: 0 | AP62: 0 | AQ62: 0 | AR62: 0 | AS62: 1
B63: A | C63: N.Amer | D63: Utilities | E63: 0.00222 | F63: -6.110248083 | S63: 0 | T63: 0 | U63: 1 | V63: 0 | W63: 0 | X63: 0 | Y63: 0 | Z63: 0 | AA63: 0 | AB63: 0 | AC63: 0 | AD63: 0 | AE63: 0 | AF63: 1 | AG63: 0 | AH63: 0 | AI63: 0 | AJ63: 0 | AK63: 0 | AL63: 0 | AM63: 0 | AN63: 0 | AO63: 0 | AP63: 0 | AQ63: 1 | AR63: 0 | AS63: 0
B64: A | C64: N.Amer | D64: Technology | E64: 0.00198 | F64: -6.224658434 | S64: 0 | T64: 0 | U64: 1 | V64: 0 | W64: 0 | X64: 0 | Y64: 0 | Z64: 0 | AA64: 0 | AB64: 0 | AC64: 0 | AD64: 0 | AE64: 0 | AF64: 1 | AG64: 0 | AH64: 0 | AI64: 0 | AJ64: 0 | AK64: 1 | AL64: 0 | AM64: 0 | AN64: 0 | AO64: 0 | AP64: 0 | AQ64: 0 | AR64: 0 | AS64: 0
B65: A | C65: N.Amer | D65: Energy | E65: 0.00673 | F65: -5.001180135 | S65: 0 | T65: 0 | U65: 1 | V65: 0 | W65: 0 | X65: 0 | Y65: 0 | Z65: 0 | AA65: 0 | AB65: 0 | AC65: 0 | AD65: 0 | AE65: 0 | AF65: 1 | AG65: 0 | AH65: 0 | AI65: 0 | AJ65: 0 | AK65: 0 | AL65: 0 | AM65: 0 | AN65: 0 | AO65: 0 | AP65: 0 | AQ65: 0 | AR65: 0 | AS65: 1
B66: A | C66: N.Amer | D66: Utilities | E66: 0.00476 | F66: -5.347507611 | S66: 0 | T66: 0 | U66: 1 | V66: 0 | W66: 0 | X66: 0 | Y66: 0 | Z66: 0 | AA66: 0 | AB66: 0 | AC66: 0 | AD66: 0 | AE66: 0 | AF66: 1 | AG66: 0 | AH66: 0 | AI66: 0 | AJ66: 0 | AK66: 0 | AL66: 0 | AM66: 0 | AN66: 0 | AO66: 1 | AP66: 0 | AQ66: 0 | AR66: 0 | AS66: 0
B67: A | C67: N.Amer | D67: Industrials | E67: 0.00676 | F67: -4.996732389 | S67: 0 | T67: 0 | U67: 1 | V67: 0 | W67: 0 | X67: 0 | Y67: 0 | Z67: 0 | AA67: 0 | AB67: 0 | AC67: 0 | AD67: 0 | AE67: 0 | AF67: 1 | AG67: 0 | AH67: 0 | AI67: 0 | AJ67: 0 | AK67: 0 | AL67: 0 | AM67: 0 | AN67: 0 | AO67: 0 | AP67: 0 | AQ67: 0 | AR67: 0 | AS67: 1
B68: A | C68: N.Amer | D68: Utilities | E68: 0.00174 | F68: -6.353870166 | S68: 0 | T68: 0 | U68: 1 | V68: 0 | W68: 0 | X68: 0 | Y68: 0 | Z68: 0 | AA68: 0 | AB68: 1 | AC68: 0 | AD68: 0 | AE68: 0 | AF68: 0 | AG68: 0 | AH68: 0 | AI68: 0 | AJ68: 0 | AK68: 1 | AL68: 0 | AM68: 0 | AN68: 0 | AO68: 0 | AP68: 0 | AQ68: 0 | AR68: 0 | AS68: 0
B69: A | C69: Europe | D69: Energy | E69: 0.00494 | F69: -5.310389948 | S69: 0 | T69: 0 | U69: 1 | V69: 0 | W69: 0 | X69: 0 | Y69: 0 | Z69: 0 | AA69: 0 | AB69: 0 | AC69: 0 | AD69: 0 | AE69: 0 | AF69: 1 | AG69: 0 | AH69: 0 | AI69: 0 | AJ69: 0 | AK69: 0 | AL69: 1 | AM69: 0 | AN69: 0 | AO69: 0 | AP69: 0 | AQ69: 0 | AR69: 0 | AS69: 0
B70: A | C70: N.Amer | D70: Financials | E70: 0.00354 | F70: -5.643628552 | S70: 0 | T70: 0 | U70: 1 | V70: 0 | W70: 0 | X70: 0 | Y70: 0 | Z70: 0 | AA70: 0 | AB70: 0 | AC70: 0 | AD70: 0 | AE70: 0 | AF70: 1 | AG70: 0 | AH70: 0 | AI70: 0 | AJ70: 0 | AK70: 0 | AL70: 0 | AM70: 0 | AN70: 0 | AO70: 1 | AP70: 0 | AQ70: 0 | AR70: 0 | AS70: 0
B71: A | C71: N.Amer | D71: Industrials | E71: 0.00464 | F71: -5.373040913 | S71: 0 | T71: 0 | U71: 1 | V71: 0 | W71: 0 | X71: 0 | Y71: 0 | Z71: 0 | AA71: 0 | AB71: 1 | AC71: 0 | AD71: 0 | AE71: 0 | AF71: 0 | AG71: 0 | AH71: 0 | AI71: 0 | AJ71: 0 | AK71: 0 | AL71: 0 | AM71: 0 | AN71: 0 | AO71: 0 | AP71: 0 | AQ71: 0 | AR71: 0 | AS71: 1
B72: A | C72: Europe | D72: Utilities | E72: 0.00278 | F72: -5.885304351 | S72: 0 | T72: 0 | U72: 1 | V72: 0 | W72: 0 | X72: 0 | Y72: 0 | Z72: 0 | AA72: 0 | AB72: 0 | AC72: 0 | AD72: 0 | AE72: 0 | AF72: 1 | AG72: 0 | AH72: 0 | AI72: 0 | AJ72: 1 | AK72: 0 | AL72: 0 | AM72: 0 | AN72: 0 | AO72: 0 | AP72: 0 | AQ72: 0 | AR72: 0 | AS72: 0
B73: A | C73: N.Amer | D73: Consumer Services | E73: 0.00323 | F73: -5.735273142 | S73: 0 | T73: 0 | U73: 1 | V73: 0 | W73: 0 | X73: 0 | Y73: 0 | Z73: 0 | AA73: 0 | AB73: 0 | AC73: 0 | AD73: 0 | AE73: 0 | AF73: 1 | AG73: 0 | AH73: 0 | AI73: 0 | AJ73: 1 | AK73: 0 | AL73: 0 | AM73: 0 | AN73: 0 | AO73: 0 | AP73: 0 | AQ73: 0 | AR73: 0 | AS73: 0
B74: A | C74: N.Amer | D74: Consumer Services | E74: 0.00474 | F74: -5.351718143 | S74: =IF($B75=S$9,1,0) -> 0 | T74: =IF($B75=T$9,1,0) -> 0 | U74: =IF($B75=U$9,1,0) -> 1 | V74: =IF($B75=V$9,1,0) -> 0 | W74: =IF($B75=W$9,1,0) -> 0 | X74: =IF($B75=X$9,1,0) -> 0 | Y74: =IF($B75=Y$9,1,0) -> 0 | Z74: =IF($C75=Z$9,1,0) -> 0 | AA74: =IF($C75=AA$9,1,0) -> 0 | AB74: =IF($C75=AB$9,1,0) -> 1 | AC74: =IF($C75=AC$9,1,0) -> 0 | AD74: =IF($C75=AD$9,1,0) -> 0 | AE74: =IF($C75=AE$9,1,0) -> 0 | AF74: =IF($C75=AF$9,1,0) -> 0 | AG74: =IF($C75=AG$9,1,0) -> 0 | AH74: =IF($D75=AH$9,1,0) -> 0 | AI74: =IF($D75=AI$9,1,0) -> 0 | AJ74: =IF($D75=AJ$9,1,0) -> 0 | AK74: =IF($D75=AK$9,1,0) -> 0 | AL74: =IF($D75=AL$9,1,0) -> 1 | AM74: =IF($D75=AM$9,1,0) -> 0 | AN74: =IF($D75=AN$9,1,0) -> 0 | AO74: =IF($D75=AO$9,1,0) -> 0 | AP74: =IF($D75=AP$9,1,0) -> 0 | AQ74: =IF($D75=AQ$9,1,0) -> 0 | AR74: =IF($D75=AR$9,1,0) -> 0 | AS74: =IF($D75=AS$9,1,0) -> 0
B75: A | C75: Europe | D75: Financials | E75: 0.00416 | F75: -5.482240205 | S75: 0 | T75: 0 | U75: 1 | V75: 0 | W75: 0 | X75: 0 | Y75: 0 | Z75: 0 | AA75: 0 | AB75: 1 | AC75: 0 | AD75: 0 | AE75: 0 | AF75: 0 | AG75: 0 | AH75: 0 | AI75: 0 | AJ75: 1 | AK75: 0 | AL75: 0 | AM75: 0 | AN75: 0 | AO75: 0 | AP75: 0 | AQ75: 0 | AR75: 0 | AS75: 0
B76: A | C76: Europe | D76: Consumer Services | E76: 0.00284 | F76: =LN(E76) -> -5.863951227 | S76: 0 | T76: 0 | U76: 1 | V76: 0 | W76: 0 | X76: 0 | Y76: 0 | Z76: 0 | AA76: 0 | AB76: 0 | AC76: 0 | AD76: 0 | AE76: 0 | AF76: 1 | AG76: 0 | AH76: 0 | AI76: 0 | AJ76: 1 | AK76: 0 | AL76: 0 | AM76: 0 | AN76: 0 | AO76: 0 | AP76: 0 | AQ76: 0 | AR76: 0 | AS76: 0
B77: A | C77: N.Amer | D77: Consumer Services | E77: 0.00353 | F77: -5.646457408 | S77: 0 | T77: 0 | U77: 1 | V77: 0 | W77: 0 | X77: 0 | Y77: 0 | Z77: 0 | AA77: 0 | AB77: 0 | AC77: 0 | AD77: 0 | AE77: 0 | AF77: 1 | AG77: 0 | AH77: 0 | AI77: 0 | AJ77: 0 | AK77: 0 | AL77: 1 | AM77: 0 | AN77: 0 | AO77: 0 | AP77: 0 | AQ77: 0 | AR77: 0 | AS77: 0
B78: A | C78: N.Amer | D78: Financials | E78: 0.007 | F78: -4.96184513 | S78: 0 | T78: 0 | U78: 1 | V78: 0 | W78: 0 | X78: 0 | Y78: 0 | Z78: 0 | AA78: 0 | AB78: 0 | AC78: 0 | AD78: 0 | AE78: 0 | AF78: 1 | AG78: 0 | AH78: 0 | AI78: 0 | AJ78: 0 | AK78: 0 | AL78: 0 | AM78: 0 | AN78: 0 | AO78: 1 | AP78: 0 | AQ78: 0 | AR78: 0 | AS78: 0
B79: A | C79: N.Amer | D79: Industrials | E79: 0.00555 | F79: -5.193957351 | S79: 0 | T79: 0 | U79: 1 | V79: 0 | W79: 0 | X79: 0 | Y79: 0 | Z79: 0 | AA79: 0 | AB79: 0 | AC79: 1 | AD79: 0 | AE79: 0 | AF79: 0 | AG79: 0 | AH79: 0 | AI79: 0 | AJ79: 0 | AK79: 0 | AL79: 1 | AM79: 0 | AN79: 0 | AO79: 0 | AP79: 0 | AQ79: 0 | AR79: 0 | AS79: 0
B80: A | C80: Japan | D80: Financials | E80: 0.00423 | F80: -5.465553286 | S80: 0 | T80: 0 | U80: 1 | V80: 0 | W80: 0 | X80: 0 | Y80: 0 | Z80: 0 | AA80: 0 | AB80: 1 | AC80: 0 | AD80: 0 | AE80: 0 | AF80: 0 | AG80: 0 | AH80: 0 | AI80: 0 | AJ80: 0 | AK80: 0 | AL80: 1 | AM80: 0 | AN80: 0 | AO80: 0 | AP80: 0 | AQ80: 0 | AR80: 0 | AS80: 0
B81: A | C81: Europe | D81: Financials | E81: 0.0041 | F81: -5.496768305 | S81: 0 | T81: 0 | U81: 1 | V81: 0 | W81: 0 | X81: 0 | Y81: 0 | Z81: 0 | AA81: 0 | AB81: 0 | AC81: 0 | AD81: 0 | AE81: 0 | AF81: 1 | AG81: 0 | AH81: 0 | AI81: 0 | AJ81: 0 | AK81: 0 | AL81: 0 | AM81: 0 | AN81: 0 | AO81: 1 | AP81: 0 | AQ81: 0 | AR81: 0 | AS81: 0
B82: A | C82: N.Amer | D82: Industrials | E82: 0.00434 | F82: -5.439880931 | S82: 0 | T82: 0 | U82: 1 | V82: 0 | W82: 0 | X82: 0 | Y82: 0 | Z82: 0 | AA82: 0 | AB82: 1 | AC82: 0 | AD82: 0 | AE82: 0 | AF82: 0 | AG82: 0 | AH82: 0 | AI82: 1 | AJ82: 0 | AK82: 0 | AL82: 0 | AM82: 0 | AN82: 0 | AO82: 0 | AP82: 0 | AQ82: 0 | AR82: 0 | AS82: 0
B83: A | C83: Europe | D83: Consumer Goods | E83: 0.00235 | F83: -6.053339951 | S83: 0 | T83: 0 | U83: 1 | V83: 0 | W83: 0 | X83: 0 | Y83: 0 | Z83: 0 | AA83: 0 | AB83: 0 | AC83: 0 | AD83: 0 | AE83: 0 | AF83: 1 | AG83: 0 | AH83: 1 | AI83: 0 | AJ83: 0 | AK83: 0 | AL83: 0 | AM83: 0 | AN83: 0 | AO83: 0 | AP83: 0 | AQ83: 0 | AR83: 0 | AS83: 0
B84: A | C84: N.Amer | D84: Basic Materials | E84: 0.00176 | F84: -6.34244147 | S84: 0 | T84: 0 | U84: 1 | V84: 0 | W84: 0 | X84: 0 | Y84: 0 | Z84: 0 | AA84: 0 | AB84: 0 | AC84: 0 | AD84: 0 | AE84: 0 | AF84: 1 | AG84: 0 | AH84: 0 | AI84: 0 | AJ84: 0 | AK84: 0 | AL84: 0 | AM84: 0 | AN84: 0 | AO84: 1 | AP84: 0 | AQ84: 0 | AR84: 0 | AS84: 0
B85: A | C85: N.Amer | D85: Industrials | E85: 0.00255 | F85: -5.97166192 | S85: 0 | T85: 0 | U85: 1 | V85: 0 | W85: 0 | X85: 0 | Y85: 0 | Z85: 0 | AA85: 0 | AB85: 0 | AC85: 0 | AD85: 0 | AE85: 0 | AF85: 1 | AG85: 0 | AH85: 0 | AI85: 1 | AJ85: 0 | AK85: 0 | AL85: 0 | AM85: 0 | AN85: 0 | AO85: 0 | AP85: 0 | AQ85: 0 | AR85: 0 | AS85: 0
B86: A | C86: N.Amer | D86: Consumer Goods | E86: 0.00462 | F86: -5.377360574 | S86: 0 | T86: 0 | U86: 1 | V86: 0 | W86: 0 | X86: 0 | Y86: 0 | Z86: 0 | AA86: 0 | AB86: 1 | AC86: 0 | AD86: 0 | AE86: 0 | AF86: 0 | AG86: 0 | AH86: 0 | AI86: 0 | AJ86: 0 | AK86: 0 | AL86: 0 | AM86: 0 | AN86: 1 | AO86: 0 | AP86: 0 | AQ86: 0 | AR86: 0 | AS86: 0
B87: A | C87: Europe | D87: Healthcare | E87: 0.00222 | F87: -6.110248083 | S87: 0 | T87: 0 | U87: 1 | V87: 0 | W87: 0 | X87: 0 | Y87: 0 | Z87: 0 | AA87: 0 | AB87: 0 | AC87: 0 | AD87: 0 | AE87: 0 | AF87: 1 | AG87: 0 | AH87: 0 | AI87: 0 | AJ87: 0 | AK87: 0 | AL87: 1 | AM87: 0 | AN87: 0 | AO87: 0 | AP87: 0 | AQ87: 0 | AR87: 0 | AS87: 0
B88: A | C88: N.Amer | D88: Financials | E88: 0.00702 | F88: -4.958992061 | S88: 0 | T88: 0 | U88: 1 | V88: 0 | W88: 0 | X88: 0 | Y88: 0 | Z88: 0 | AA88: 0 | AB88: 0 | AC88: 0 | AD88: 0 | AE88: 0 | AF88: 1 | AG88: 0 | AH88: 0 | AI88: 0 | AJ88: 0 | AK88: 0 | AL88: 0 | AM88: 0 | AN88: 0 | AO88: 0 | AP88: 0 | AQ88: 0 | AR88: 0 | AS88: 1
B89: A | C89: N.Amer | D89: Utilities | E89: 0.00383 | F89: -5.564890476 | S89: 0 | T89: 0 | U89: 1 | V89: 0 | W89: 0 | X89: 0 | Y89: 0 | Z89: 0 | AA89: 0 | AB89: 1 | AC89: 0 | AD89: 0 | AE89: 0 | AF89: 0 | AG89: 0 | AH89: 0 | AI89: 1 | AJ89: 0 | AK89: 0 | AL89: 0 | AM89: 0 | AN89: 0 | AO89: 0 | AP89: 0 | AQ89: 0 | AR89: 0 | AS89: 0
B90: A | C90: Europe | D90: Consumer Goods | E90: 0.00219 | F90: -6.123853735 | S90: 0 | T90: 0 | U90: 1 | V90: 0 | W90: 0 | X90: 0 | Y90: 0 | Z90: 0 | AA90: 0 | AB90: 0 | AC90: 0 | AD90: 0 | AE90: 0 | AF90: 1 | AG90: 0 | AH90: 0 | AI90: 1 | AJ90: 0 | AK90: 0 | AL90: 0 | AM90: 0 | AN90: 0 | AO90: 0 | AP90: 0 | AQ90: 0 | AR90: 0 | AS90: 0
B91: A | C91: N.Amer | D91: Consumer Goods | E91: 0.00504 | F91: -5.290349197 | S91: 0 | T91: 0 | U91: 1 | V91: 0 | W91: 0 | X91: 0 | Y91: 0 | Z91: 0 | AA91: 0 | AB91: 0 | AC91: 0 | AD91: 0 | AE91: 0 | AF91: 1 | AG91: 0 | AH91: 0 | AI91: 0 | AJ91: 1 | AK91: 0 | AL91: 0 | AM91: 0 | AN91: 0 | AO91: 0 | AP91: 0 | AQ91: 0 | AR91: 0 | AS91: 0
B92: A | C92: N.Amer | D92: Consumer Services | E92: 0.00249 | F92: -5.995472569 | S92: 0 | T92: 0 | U92: 1 | V92: 0 | W92: 0 | X92: 0 | Y92: 0 | Z92: 0 | AA92: 0 | AB92: 0 | AC92: 1 | AD92: 0 | AE92: 0 | AF92: 0 | AG92: 0 | AH92: 0 | AI92: 1 | AJ92: 0 | AK92: 0 | AL92: 0 | AM92: 0 | AN92: 0 | AO92: 0 | AP92: 0 | AQ92: 0 | AR92: 0 | AS92: 0
B93: A | C93: Japan | D93: Consumer Goods | E93: 0.00299 | F93: -5.812481892 | S93: 0 | T93: 0 | U93: 1 | V93: 0 | W93: 0 | X93: 0 | Y93: 0 | Z93: 0 | AA93: 0 | AB93: 0 | AC93: 0 | AD93: 0 | AE93: 0 | AF93: 1 | AG93: 0 | AH93: 0 | AI93: 0 | AJ93: 0 | AK93: 0 | AL93: 0 | AM93: 0 | AN93: 0 | AO93: 1 | AP93: 0 | AQ93: 0 | AR93: 0 | AS93: 0
B94: A | C94: N.Amer | D94: Industrials | E94: 0.00244 | F94: -6.01575724 | S94: 0 | T94: 0 | U94: 1 | V94: 0 | W94: 0 | X94: 0 | Y94: 0 | Z94: 1 | AA94: 0 | AB94: 0 | AC94: 0 | AD94: 0 | AE94: 0 | AF94: 0 | AG94: 0 | AH94: 0 | AI94: 0 | AJ94: 0 | AK94: 0 | AL94: 1 | AM94: 0 | AN94: 0 | AO94: 0 | AP94: 0 | AQ94: 0 | AR94: 0 | AS94: 0
B95: A | C95: Asia | D95: Financials | E95: 0.00746 | F95: -4.898199865 | S95: 0 | T95: 0 | U95: 1 | V95: 0 | W95: 0 | X95: 0 | Y95: 0 | Z95: 1 | AA95: 0 | AB95: 0 | AC95: 0 | AD95: 0 | AE95: 0 | AF95: 0 | AG95: 0 | AH95: 0 | AI95: 0 | AJ95: 1 | AK95: 0 | AL95: 0 | AM95: 0 | AN95: 0 | AO95: 0 | AP95: 0 | AQ95: 0 | AR95: 0 | AS95: 0
B96: A | C96: Asia | D96: Consumer Services | E96: 0.00678 | F96: -4.993778177 | S96: 0 | T96: 0 | U96: 1 | V96: 0 | W96: 0 | X96: 0 | Y96: 0 | Z96: 1 | AA96: 0 | AB96: 0 | AC96: 0 | AD96: 0 | AE96: 0 | AF96: 0 | AG96: 0 | AH96: 0 | AI96: 0 | AJ96: 0 | AK96: 0 | AL96: 1 | AM96: 0 | AN96: 0 | AO96: 0 | AP96: 0 | AQ96: 0 | AR96: 0 | AS96: 0
B97: A | C97: Asia | D97: Financials | E97: 0.00799 | F97: -4.829564519 | S97: 0 | T97: 0 | U97: 1 | V97: 0 | W97: 0 | X97: 0 | Y97: 0 | Z97: 0 | AA97: 0 | AB97: 1 | AC97: 0 | AD97: 0 | AE97: 0 | AF97: 0 | AG97: 0 | AH97: 0 | AI97: 0 | AJ97: 0 | AK97: 0 | AL97: 1 | AM97: 0 | AN97: 0 | AO97: 0 | AP97: 0 | AQ97: 0 | AR97: 0 | AS97: 0
B98: A | C98: Europe | D98: Financials | E98: 0.00456 | F98: -5.390432655 | S98: 0 | T98: 0 | U98: 1 | V98: 0 | W98: 0 | X98: 0 | Y98: 0 | Z98: 0 | AA98: 0 | AB98: 0 | AC98: 0 | AD98: 0 | AE98: 0 | AF98: 1 | AG98: 0 | AH98: 0 | AI98: 0 | AJ98: 0 | AK98: 0 | AL98: 0 | AM98: 0 | AN98: 0 | AO98: 0 | AP98: 0 | AQ98: 1 | AR98: 0 | AS98: 0
B99: A | C99: N.Amer | D99: Technology | E99: 0.0042 | F99: -5.472670754 | S99: 0 | T99: 0 | U99: 1 | V99: 0 | W99: 0 | X99: 0 | Y99: 0 | Z99: 0 | AA99: 0 | AB99: 0 | AC99: 0 | AD99: 0 | AE99: 0 | AF99: 1 | AG99: 0 | AH99: 0 | AI99: 0 | AJ99: 0 | AK99: 0 | AL99: 0 | AM99: 0 | AN99: 0 | AO99: 0 | AP99: 0 | AQ99: 1 | AR99: 0 | AS99: 0
B100: A | C100: N.Amer | D100: Technology | E100: 0.00457 | F100: -5.388242074 | S100: 0 | T100: 0 | U100: 1 | V100: 0 | W100: 0 | X100: 0 | Y100: 0 | Z100: 0 | AA100: 0 | AB100: 0 | AC100: 0 | AD100: 0 | AE100: 0 | AF100: 1 | AG100: 0 | AH100: 0 | AI100: 0 | AJ100: 0 | AK100: 0 | AL100: 0 | AM100: 0 | AN100: 0 | AO100: 0 | AP100: 0 | AQ100: 1 | AR100: 0 | AS100: 0
B101: A | C101: N.Amer | D101: Technology | E101: 0.00696 | F101: -4.967575805 | S101: 0 | T101: 0 | U101: 1 | V101: 0 | W101: 0 | X101: 0 | Y101: 0 | Z101: 0 | AA101: 0 | AB101: 1 | AC101: 0 | AD101: 0 | AE101: 0 | AF101: 0 | AG101: 0 | AH101: 0 | AI101: 0 | AJ101: 0 | AK101: 0 | AL101: 0 | AM101: 1 | AN101: 0 | AO101: 0 | AP101: 0 | AQ101: 0 | AR101: 0 | AS101: 0
B102: A | C102: Europe | D102: Government | E102: 0.00329 | F102: -5.716867714 | S102: 0 | T102: 0 | U102: 1 | V102: 0 | W102: 0 | X102: 0 | Y102: 0 | Z102: 0 | AA102: 0 | AB102: 0 | AC102: 0 | AD102: 1 | AE102: 0 | AF102: 0 | AG102: 0 | AH102: 0 | AI102: 0 | AJ102: 0 | AK102: 0 | AL102: 0 | AM102: 1 | AN102: 0 | AO102: 0 | AP102: 0 | AQ102: 0 | AR102: 0 | AS102: 0
B103: A | C103: MiddleEast | D103: Government | E103: 0.00484 | F103: -5.330840558 | S103: 0 | T103: 0 | U103: 1 | V103: 0 | W103: 0 | X103: 0 | Y103: 0 | Z103: 0 | AA103: 0 | AB103: 0 | AC103: 1 | AD103: 0 | AE103: 0 | AF103: 0 | AG103: 0 | AH103: 0 | AI103: 0 | AJ103: 0 | AK103: 0 | AL103: 0 | AM103: 0 | AN103: 0 | AO103: 1 | AP103: 0 | AQ103: 0 | AR103: 0 | AS103: 0
B104: A | C104: Japan | D104: Industrials | E104: 0.00334 | F104: -5.701784472 | S104: 0 | T104: 0 | U104: 1 | V104: 0 | W104: 0 | X104: 0 | Y104: 0 | Z104: 0 | AA104: 0 | AB104: 0 | AC104: 1 | AD104: 0 | AE104: 0 | AF104: 0 | AG104: 0 | AH104: 0 | AI104: 0 | AJ104: 0 | AK104: 0 | AL104: 0 | AM104: 1 | AN104: 0 | AO104: 0 | AP104: 0 | AQ104: 0 | AR104: 0 | AS104: 0
B105: A | C105: Japan | D105: Government | E105: 0.00139 | F105: -6.578451532 | S105: 0 | T105: 0 | U105: 1 | V105: 0 | W105: 0 | X105: 0 | Y105: 0 | Z105: 0 | AA105: 0 | AB105: 0 | AC105: 0 | AD105: 0 | AE105: 0 | AF105: 1 | AG105: 0 | AH105: 0 | AI105: 0 | AJ105: 0 | AK105: 0 | AL105: 1 | AM105: 0 | AN105: 0 | AO105: 0 | AP105: 0 | AQ105: 0 | AR105: 0 | AS105: 0
B106: A | C106: N.Amer | D106: Financials | E106: 0.00462 | F106: -5.377360574 | S106: 0 | T106: 0 | U106: 1 | V106: 0 | W106: 0 | X106: 0 | Y106: 0 | Z106: 1 | AA106: 0 | AB106: 0 | AC106: 0 | AD106: 0 | AE106: 0 | AF106: 0 | AG106: 0 | AH106: 0 | AI106: 0 | AJ106: 0 | AK106: 0 | AL106: 0 | AM106: 0 | AN106: 0 | AO106: 0 | AP106: 0 | AQ106: 0 | AR106: 1 | AS106: 0
B107: A | C107: Asia | D107: Telecommunications Services | E107: 0.00397 | F107: -5.528989184 | S107: 0 | T107: 0 | U107: 1 | V107: 0 | W107: 0 | X107: 0 | Y107: 0 | Z107: 0 | AA107: 0 | AB107: 0 | AC107: 1 | AD107: 0 | AE107: 0 | AF107: 0 | AG107: 0 | AH107: 0 | AI107: 0 | AJ107: 0 | AK107: 0 | AL107: 0 | AM107: 0 | AN107: 0 | AO107: 0 | AP107: 0 | AQ107: 0 | AR107: 0 | AS107: 1
B108: A | C108: Japan | D108: Utilities | E108: 0.00376 | F108: -5.583336322 | S108: 0 | T108: 0 | U108: 1 | V108: 0 | W108: 0 | X108: 0 | Y108: 0 | Z108: 0 | AA108: 0 | AB108: 0 | AC108: 0 | AD108: 0 | AE108: 0 | AF108: 1 | AG108: 0 | AH108: 0 | AI108: 1 | AJ108: 0 | AK108: 0 | AL108: 0 | AM108: 0 | AN108: 0 | AO108: 0 | AP108: 0 | AQ108: 0 | AR108: 0 | AS108: 0
B109: A | C109: N.Amer | D109: Consumer Goods | E109: 0.00446 | F109: -5.412606513 | S109: 0 | T109: 0 | U109: 1 | V109: 0 | W109: 0 | X109: 0 | Y109: 0 | Z109: 0 | AA109: 0 | AB109: 1 | AC109: 0 | AD109: 0 | AE109: 0 | AF109: 0 | AG109: 0 | AH109: 0 | AI109: 0 | AJ109: 0 | AK109: 0 | AL109: 1 | AM109: 0 | AN109: 0 | AO109: 0 | AP109: 0 | AQ109: 0 | AR109: 0 | AS109: 0
B110: A | C110: Europe | D110: Financials | E110: 0.00602 | F110: -5.11266802 | S110: 0 | T110: 0 | U110: 1 | V110: 0 | W110: 0 | X110: 0 | Y110: 0 | Z110: 0 | AA110: 0 | AB110: 1 | AC110: 0 | AD110: 0 | AE110: 0 | AF110: 0 | AG110: 0 | AH110: 0 | AI110: 0 | AJ110: 0 | AK110: 0 | AL110: 1 | AM110: 0 | AN110: 0 | AO110: 0 | AP110: 0 | AQ110: 0 | AR110: 0 | AS110: 0
B111: A | C111: Europe | D111: Financials | E111: 0.00263 | F111: -5.940771433 | S111: 0 | T111: 0 | U111: 1 | V111: 0 | W111: 0 | X111: 0 | Y111: 0 | Z111: 0 | AA111: 0 | AB111: 1 | AC111: 0 | AD111: 0 | AE111: 0 | AF111: 0 | AG111: 0 | AH111: 0 | AI111: 0 | AJ111: 0 | AK111: 0 | AL111: 1 | AM111: 0 | AN111: 0 | AO111: 0 | AP111: 0 | AQ111: 0 | AR111: 0 | AS111: 0
B112: A | C112: Europe | D112: Financials | E112: 0.0057 | F112: -5.167289104 | S112: 0 | T112: 0 | U112: 1 | V112: 0 | W112: 0 | X112: 0 | Y112: 0 | Z112: 0 | AA112: 0 | AB112: 0 | AC112: 1 | AD112: 0 | AE112: 0 | AF112: 0 | AG112: 0 | AH112: 0 | AI112: 0 | AJ112: 0 | AK112: 0 | AL112: 0 | AM112: 0 | AN112: 0 | AO112: 1 | AP112: 0 | AQ112: 0 | AR112: 0 | AS112: 0
B113: A | C113: Japan | D113: Industrials | E113: 0.00302 | F113: -5.802498448 | S113: 0 | T113: 0 | U113: 1 | V113: 0 | W113: 0 | X113: 0 | Y113: 0 | Z113: 0 | AA113: 0 | AB113: 0 | AC113: 0 | AD113: 0 | AE113: 0 | AF113: 1 | AG113: 0 | AH113: 0 | AI113: 0 | AJ113: 0 | AK113: 0 | AL113: 0 | AM113: 0 | AN113: 0 | AO113: 1 | AP113: 0 | AQ113: 0 | AR113: 0 | AS113: 0
B114: A | C114: N.Amer | D114: Industrials | E114: 0.00463 | F114: -5.375198411 | S114: 0 | T114: 0 | U114: 1 | V114: 0 | W114: 0 | X114: 0 | Y114: 0 | Z114: 0 | AA114: 0 | AB114: 1 | AC114: 0 | AD114: 0 | AE114: 0 | AF114: 0 | AG114: 0 | AH114: 0 | AI114: 0 | AJ114: 0 | AK114: 0 | AL114: 1 | AM114: 0 | AN114: 0 | AO114: 0 | AP114: 0 | AQ114: 0 | AR114: 0 | AS114: 0
B115: A | C115: Europe | D115: Financials | E115: 0.00479 | F115: -5.341224868 | S115: 0 | T115: 0 | U115: 1 | V115: 0 | W115: 0 | X115: 0 | Y115: 0 | Z115: 0 | AA115: 0 | AB115: 1 | AC115: 0 | AD115: 0 | AE115: 0 | AF115: 0 | AG115: 0 | AH115: 0 | AI115: 0 | AJ115: 0 | AK115: 0 | AL115: 1 | AM115: 0 | AN115: 0 | AO115: 0 | AP115: 0 | AQ115: 0 | AR115: 0 | AS115: 0
B116: A | C116: Europe | D116: Financials | E116: 0.00686 | F116: -4.982047837 | S116: 0 | T116: 0 | U116: 1 | V116: 0 | W116: 0 | X116: 0 | Y116: 0 | Z116: 0 | AA116: 0 | AB116: 0 | AC116: 0 | AD116: 0 | AE116: 0 | AF116: 1 | AG116: 0 | AH116: 0 | AI116: 0 | AJ116: 0 | AK116: 0 | AL116: 0 | AM116: 0 | AN116: 0 | AO116: 1 | AP116: 0 | AQ116: 0 | AR116: 0 | AS116: 0
B117: A | C117: N.Amer | D117: Industrials | E117: 0.00281 | F117: -5.874570796 | S117: 0 | T117: 0 | U117: 1 | V117: 0 | W117: 0 | X117: 0 | Y117: 0 | Z117: 0 | AA117: 0 | AB117: 0 | AC117: 0 | AD117: 0 | AE117: 0 | AF117: 0 | AG117: 1 | AH117: 0 | AI117: 0 | AJ117: 0 | AK117: 0 | AL117: 1 | AM117: 0 | AN117: 0 | AO117: 0 | AP117: 0 | AQ117: 0 | AR117: 0 | AS117: 0
B118: A | C118: Oceania | D118: Financials | E118: 0.00439 | F118: -5.428426052 | S118: 0 | T118: 0 | U118: 1 | V118: 0 | W118: 0 | X118: 0 | Y118: 0 | Z118: 1 | AA118: 0 | AB118: 0 | AC118: 0 | AD118: 0 | AE118: 0 | AF118: 0 | AG118: 0 | AH118: 0 | AI118: 0 | AJ118: 0 | AK118: 0 | AL118: 0 | AM118: 1 | AN118: 0 | AO118: 0 | AP118: 0 | AQ118: 0 | AR118: 0 | AS118: 0
B119: A | C119: Asia | D119: Government | E119: 0.00612 | F119: -5.096193182 | S119: 0 | T119: 0 | U119: 1 | V119: 0 | W119: 0 | X119: 0 | Y119: 0 | Z119: 0 | AA119: 0 | AB119: 0 | AC119: 0 | AD119: 0 | AE119: 0 | AF119: 1 | AG119: 0 | AH119: 0 | AI119: 0 | AJ119: 0 | AK119: 0 | AL119: 1 | AM119: 0 | AN119: 0 | AO119: 0 | AP119: 0 | AQ119: 0 | AR119: 0 | AS119: 0
B120: A | C120: N.Amer | D120: Financials | E120: 0.00282 | F120: -5.871018394 | S120: 0 | T120: 0 | U120: 1 | V120: 0 | W120: 0 | X120: 0 | Y120: 0 | Z120: 0 | AA120: 0 | AB120: 0 | AC120: 0 | AD120: 0 | AE120: 0 | AF120: 1 | AG120: 0 | AH120: 0 | AI120: 0 | AJ120: 0 | AK120: 0 | AL120: 0 | AM120: 0 | AN120: 1 | AO120: 0 | AP120: 0 | AQ120: 0 | AR120: 0 | AS120: 0
B121: A | C121: N.Amer | D121: Healthcare | E121: 0.00311 | F121: -5.773132553 | S121: 0 | T121: 0 | U121: 1 | V121: 0 | W121: 0 | X121: 0 | Y121: 0 | Z121: 0 | AA121: 0 | AB121: 0 | AC121: 0 | AD121: 0 | AE121: 0 | AF121: 1 | AG121: 0 | AH121: 0 | AI121: 0 | AJ121: 0 | AK121: 0 | AL121: 0 | AM121: 0 | AN121: 1 | AO121: 0 | AP121: 0 | AQ121: 0 | AR121: 0 | AS121: 0
B122: A | C122: N.Amer | D122: Healthcare | E122: 0.00164 | F122: -6.413059037 | S122: 0 | T122: 0 | U122: 1 | V122: 0 | W122: 0 | X122: 0 | Y122: 0 | Z122: 0 | AA122: 0 | AB122: 0 | AC122: 0 | AD122: 0 | AE122: 0 | AF122: 1 | AG122: 0 | AH122: 0 | AI122: 0 | AJ122: 0 | AK122: 0 | AL122: 1 | AM122: 0 | AN122: 0 | AO122: 0 | AP122: 0 | AQ122: 0 | AR122: 0 | AS122: 0
B123: A | C123: N.Amer | D123: Financials | E123: 0.00657 | F123: -5.025241446 | S123: 0 | T123: 0 | U123: 1 | V123: 0 | W123: 0 | X123: 0 | Y123: 0 | Z123: 0 | AA123: 0 | AB123: 0 | AC123: 1 | AD123: 0 | AE123: 0 | AF123: 0 | AG123: 0 | AH123: 0 | AI123: 0 | AJ123: 0 | AK123: 0 | AL123: 0 | AM123: 0 | AN123: 0 | AO123: 1 | AP123: 0 | AQ123: 0 | AR123: 0 | AS123: 0
B124: A | C124: Japan | D124: Industrials | E124: 0.00305 | F124: -5.792613688 | S124: 0 | T124: 0 | U124: 1 | V124: 0 | W124: 0 | X124: 0 | Y124: 0 | Z124: 1 | AA124: 0 | AB124: 0 | AC124: 0 | AD124: 0 | AE124: 0 | AF124: 0 | AG124: 0 | AH124: 0 | AI124: 0 | AJ124: 0 | AK124: 0 | AL124: 1 | AM124: 0 | AN124: 0 | AO124: 0 | AP124: 0 | AQ124: 0 | AR124: 0 | AS124: 0
B125: A | C125: Asia | D125: Financials | E125: 0.00404 | F125: -5.511510587 | S125: 0 | T125: 0 | U125: 1 | V125: 0 | W125: 0 | X125: 0 | Y125: 0 | Z125: 0 | AA125: 0 | AB125: 0 | AC125: 1 | AD125: 0 | AE125: 0 | AF125: 0 | AG125: 0 | AH125: 0 | AI125: 0 | AJ125: 0 | AK125: 0 | AL125: 0 | AM125: 0 | AN125: 0 | AO125: 0 | AP125: 0 | AQ125: 0 | AR125: 0 | AS125: 1
B126: A | C126: Japan | D126: Utilities | E126: 0.00271 | F126: -5.910806644 | S126: 0 | T126: 0 | U126: 1 | V126: 0 | W126: 0 | X126: 0 | Y126: 0 | Z126: 0 | AA126: 0 | AB126: 1 | AC126: 0 | AD126: 0 | AE126: 0 | AF126: 0 | AG126: 0 | AH126: 0 | AI126: 1 | AJ126: 0 | AK126: 0 | AL126: 0 | AM126: 0 | AN126: 0 | AO126: 0 | AP126: 0 | AQ126: 0 | AR126: 0 | AS126: 0
B127: A | C127: Europe | D127: Consumer Goods | E127: 0.00142 | F127: -6.557098407 | S127: 0 | T127: 0 | U127: 1 | V127: 0 | W127: 0 | X127: 0 | Y127: 0 | Z127: 0 | AA127: 0 | AB127: 0 | AC127: 0 | AD127: 0 | AE127: 0 | AF127: 1 | AG127: 0 | AH127: 0 | AI127: 0 | AJ127: 0 | AK127: 0 | AL127: 0 | AM127: 0 | AN127: 1 | AO127: 0 | AP127: 0 | AQ127: 0 | AR127: 0 | AS127: 0
B128: A | C128: N.Amer | D128: Healthcare | E128: 0.00301 | F128: -5.8058152 | S128: 0 | T128: 0 | U128: 1 | V128: 0 | W128: 0 | X128: 0 | Y128: 0 | Z128: 0 | AA128: 0 | AB128: 0 | AC128: 0 | AD128: 0 | AE128: 0 | AF128: 1 | AG128: 0 | AH128: 0 | AI128: 0 | AJ128: 0 | AK128: 0 | AL128: 1 | AM128: 0 | AN128: 0 | AO128: 0 | AP128: 0 | AQ128: 0 | AR128: 0 | AS128: 0
B129: A | C129: N.Amer | D129: Financials | E129: 0.00349 | F129: -5.657853543 | S129: 0 | T129: 0 | U129: 1 | V129: 0 | W129: 0 | X129: 0 | Y129: 0 | Z129: 0 | AA129: 0 | AB129: 0 | AC129: 0 | AD129: 0 | AE129: 0 | AF129: 1 | AG129: 0 | AH129: 0 | AI129: 0 | AJ129: 0 | AK129: 0 | AL129: 0 | AM129: 0 | AN129: 0 | AO129: 0 | AP129: 0 | AQ129: 0 | AR129: 0 | AS129: 1
B130: A | C130: N.Amer | D130: Utilities | E130: 0.00656 | F130: -5.026764676 | S130: 0 | T130: 0 | U130: 1 | V130: 0 | W130: 0 | X130: 0 | Y130: 0 | Z130: 0 | AA130: 0 | AB130: 0 | AC130: 1 | AD130: 0 | AE130: 0 | AF130: 0 | AG130: 0 | AH130: 1 | AI130: 0 | AJ130: 0 | AK130: 0 | AL130: 0 | AM130: 0 | AN130: 0 | AO130: 0 | AP130: 0 | AQ130: 0 | AR130: 0 | AS130: 0
B131: A | C131: Japan | D131: Basic Materials | E131: 0.00262 | F131: -5.944580961 | S131: 0 | T131: 0 | U131: 1 | V131: 0 | W131: 0 | X131: 0 | Y131: 0 | Z131: 0 | AA131: 0 | AB131: 0 | AC131: 1 | AD131: 0 | AE131: 0 | AF131: 0 | AG131: 0 | AH131: 0 | AI131: 0 | AJ131: 0 | AK131: 0 | AL131: 0 | AM131: 0 | AN131: 0 | AO131: 1 | AP131: 0 | AQ131: 0 | AR131: 0 | AS131: 0
B132: A | C132: Japan | D132: Industrials | E132: 0.0033 | F132: -5.713832811 | S132: 0 | T132: 0 | U132: 1 | V132: 0 | W132: 0 | X132: 0 | Y132: 0 | Z132: 0 | AA132: 0 | AB132: 0 | AC132: 1 | AD132: 0 | AE132: 0 | AF132: 0 | AG132: 0 | AH132: 0 | AI132: 0 | AJ132: 0 | AK132: 0 | AL132: 1 | AM132: 0 | AN132: 0 | AO132: 0 | AP132: 0 | AQ132: 0 | AR132: 0 | AS132: 0
B133: A | C133: Japan | D133: Financials | E133: 0.00243 | F133: -6.019864022 | S133: 0 | T133: 0 | U133: 1 | V133: 0 | W133: 0 | X133: 0 | Y133: 0 | Z133: 0 | AA133: 0 | AB133: 0 | AC133: 1 | AD133: 0 | AE133: 0 | AF133: 0 | AG133: 0 | AH133: 0 | AI133: 0 | AJ133: 0 | AK133: 0 | AL133: 0 | AM133: 0 | AN133: 0 | AO133: 1 | AP133: 0 | AQ133: 0 | AR133: 0 | AS133: 0
B134: A | C134: Japan | D134: Industrials | E134: 0.00324 | F134: -5.732181949 | S134: 0 | T134: 0 | U134: 1 | V134: 0 | W134: 0 | X134: 0 | Y134: 0 | Z134: 0 | AA134: 0 | AB134: 0 | AC134: 1 | AD134: 0 | AE134: 0 | AF134: 0 | AG134: 0 | AH134: 0 | AI134: 0 | AJ134: 0 | AK134: 1 | AL134: 0 | AM134: 0 | AN134: 0 | AO134: 0 | AP134: 0 | AQ134: 0 | AR134: 0 | AS134: 0
B135: A | C135: Japan | D135: Energy | E135: 0.00286 | F135: -5.856933654 | S135: 0 | T135: 0 | U135: 1 | V135: 0 | W135: 0 | X135: 0 | Y135: 0 | Z135: 0 | AA135: 0 | AB135: 0 | AC135: 1 | AD135: 0 | AE135: 0 | AF135: 0 | AG135: 0 | AH135: 0 | AI135: 0 | AJ135: 0 | AK135: 0 | AL135: 1 | AM135: 0 | AN135: 0 | AO135: 0 | AP135: 0 | AQ135: 0 | AR135: 0 | AS135: 0
B136: A | C136: Japan | D136: Financials | E136: 0.00306 | F136: -5.789340363 | S136: 0 | T136: 0 | U136: 1 | V136: 0 | W136: 0 | X136: 0 | Y136: 0 | Z136: 0 | AA136: 0 | AB136: 0 | AC136: 0 | AD136: 0 | AE136: 0 | AF136: 1 | AG136: 0 | AH136: 0 | AI136: 0 | AJ136: 0 | AK136: 0 | AL136: 1 | AM136: 0 | AN136: 0 | AO136: 0 | AP136: 0 | AQ136: 0 | AR136: 0 | AS136: 0
B137: A | C137: N.Amer | D137: Financials | E137: 0.0066 | F137: -5.02068563 | S137: 0 | T137: 0 | U137: 1 | V137: 0 | W137: 0 | X137: 0 | Y137: 0 | Z137: 0 | AA137: 0 | AB137: 0 | AC137: 0 | AD137: 0 | AE137: 0 | AF137: 1 | AG137: 0 | AH137: 0 | AI137: 0 | AJ137: 0 | AK137: 0 | AL137: 1 | AM137: 0 | AN137: 0 | AO137: 0 | AP137: 0 | AQ137: 0 | AR137: 0 | AS137: 0
B138: A | C138: N.Amer | D138: Financials | E138: 0.00381 | F138: -5.57012609 | S138: =IF($B139=S$9,1,0) -> 0 | T138: =IF($B139=T$9,1,0) -> 0 | U138: =IF($B139=U$9,1,0) -> 1 | V138: =IF($B139=V$9,1,0) -> 0 | W138: =IF($B139=W$9,1,0) -> 0 | X138: =IF($B139=X$9,1,0) -> 0 | Y138: =IF($B139=Y$9,1,0) -> 0 | Z138: =IF($C139=Z$9,1,0) -> 0 | AA138: =IF($C139=AA$9,1,0) -> 0 | AB138: =IF($C139=AB$9,1,0) -> 0 | AC138: =IF($C139=AC$9,1,0) -> 0 | AD138: =IF($C139=AD$9,1,0) -> 0 | AE138: =IF($C139=AE$9,1,0) -> 0 | AF138: =IF($C139=AF$9,1,0) -> 1 | AG138: =IF($C139=AG$9,1,0) -> 0 | AH138: =IF($D139=AH$9,1,0) -> 0 | AI138: =IF($D139=AI$9,1,0) -> 0 | AJ138: =IF($D139=AJ$9,1,0) -> 0 | AK138: =IF($D139=AK$9,1,0) -> 0 | AL138: =IF($D139=AL$9,1,0) -> 0 | AM138: =IF($D139=AM$9,1,0) -> 0 | AN138: =IF($D139=AN$9,1,0) -> 0 | AO138: =IF($D139=AO$9,1,0) -> 0 | AP138: =IF($D139=AP$9,1,0) -> 0 | AQ138: =IF($D139=AQ$9,1,0) -> 0 | AR138: =IF($D139=AR$9,1,0) -> 1 | AS138: =IF($D139=AS$9,1,0) -> 0
B139: A | C139: N.Amer | D139: Telecommunications Services | E139: 0.00317 | F139: -5.754023691 | S139: 0 | T139: 0 | U139: 1 | V139: 0 | W139: 0 | X139: 0 | Y139: 0 | Z139: 0 | AA139: 0 | AB139: 0 | AC139: 0 | AD139: 0 | AE139: 0 | AF139: 1 | AG139: 0 | AH139: 0 | AI139: 0 | AJ139: 0 | AK139: 0 | AL139: 0 | AM139: 0 | AN139: 0 | AO139: 0 | AP139: 0 | AQ139: 0 | AR139: 0 | AS139: 1
B140: A | C140: N.Amer | D140: Utilities | E140: 0.00657 | F140: =LN(E140) -> -5.025241446 | S140: 0 | T140: 0 | U140: 1 | V140: 0 | W140: 0 | X140: 0 | Y140: 0 | Z140: 0 | AA140: 0 | AB140: 0 | AC140: 0 | AD140: 0 | AE140: 0 | AF140: 1 | AG140: 0 | AH140: 0 | AI140: 0 | AJ140: 0 | AK140: 1 | AL140: 0 | AM140: 0 | AN140: 0 | AO140: 0 | AP140: 0 | AQ140: 0 | AR140: 0 | AS140: 0
B141: A | C141: N.Amer | D141: Energy | E141: 0.00513 | F141: -5.27264962 | S141: 0 | T141: 0 | U141: 1 | V141: 0 | W141: 0 | X141: 0 | Y141: 0 | Z141: 0 | AA141: 0 | AB141: 0 | AC141: 0 | AD141: 0 | AE141: 0 | AF141: 1 | AG141: 0 | AH141: 0 | AI141: 1 | AJ141: 0 | AK141: 0 | AL141: 0 | AM141: 0 | AN141: 0 | AO141: 0 | AP141: 0 | AQ141: 0 | AR141: 0 | AS141: 0
B142: A | C142: N.Amer | D142: Consumer Goods | E142: 0.00424 | F142: -5.46319201 | S142: 0 | T142: 0 | U142: 1 | V142: 0 | W142: 0 | X142: 0 | Y142: 0 | Z142: 0 | AA142: 0 | AB142: 0 | AC142: 1 | AD142: 0 | AE142: 0 | AF142: 0 | AG142: 0 | AH142: 0 | AI142: 0 | AJ142: 0 | AK142: 0 | AL142: 0 | AM142: 0 | AN142: 0 | AO142: 0 | AP142: 0 | AQ142: 0 | AR142: 1 | AS142: 0
B143: A | C143: Japan | D143: Telecommunications Services | E143: 0.0023 | F143: -6.074846156 | S143: 0 | T143: 0 | U143: 1 | V143: 0 | W143: 0 | X143: 0 | Y143: 0 | Z143: 0 | AA143: 0 | AB143: 0 | AC143: 1 | AD143: 0 | AE143: 0 | AF143: 0 | AG143: 0 | AH143: 0 | AI143: 1 | AJ143: 0 | AK143: 0 | AL143: 0 | AM143: 0 | AN143: 0 | AO143: 0 | AP143: 0 | AQ143: 0 | AR143: 0 | AS143: 0
B144: A | C144: Japan | D144: Consumer Goods | E144: 0.00434 | F144: -5.439880931 | S144: 0 | T144: 0 | U144: 1 | V144: 0 | W144: 0 | X144: 0 | Y144: 0 | Z144: 0 | AA144: 0 | AB144: 0 | AC144: 1 | AD144: 0 | AE144: 0 | AF144: 0 | AG144: 0 | AH144: 0 | AI144: 0 | AJ144: 0 | AK144: 0 | AL144: 1 | AM144: 0 | AN144: 0 | AO144: 0 | AP144: 0 | AQ144: 0 | AR144: 0 | AS144: 0
B145: A | C145: Japan | D145: Financials | E145: 0.00504 | F145: -5.290349197 | S145: 0 | T145: 0 | U145: 1 | V145: 0 | W145: 0 | X145: 0 | Y145: 0 | Z145: 0 | AA145: 0 | AB145: 0 | AC145: 0 | AD145: 0 | AE145: 0 | AF145: 1 | AG145: 0 | AH145: 0 | AI145: 0 | AJ145: 0 | AK145: 0 | AL145: 0 | AM145: 0 | AN145: 0 | AO145: 0 | AP145: 0 | AQ145: 1 | AR145: 0 | AS145: 0
B146: A | C146: N.Amer | D146: Technology | E146: 0.00338 | F146: -5.689879569 | S146: 0 | T146: 0 | U146: 1 | V146: 0 | W146: 0 | X146: 0 | Y146: 0 | Z146: 0 | AA146: 0 | AB146: 0 | AC146: 1 | AD146: 0 | AE146: 0 | AF146: 0 | AG146: 0 | AH146: 0 | AI146: 0 | AJ146: 0 | AK146: 0 | AL146: 1 | AM146: 0 | AN146: 0 | AO146: 0 | AP146: 0 | AQ146: 0 | AR146: 0 | AS146: 0
B147: A | C147: Japan | D147: Financials | E147: 0.0041 | F147: -5.496768305 | S147: 0 | T147: 0 | U147: 1 | V147: 0 | W147: 0 | X147: 0 | Y147: 0 | Z147: 0 | AA147: 0 | AB147: 0 | AC147: 0 | AD147: 0 | AE147: 0 | AF147: 1 | AG147: 0 | AH147: 0 | AI147: 0 | AJ147: 0 | AK147: 0 | AL147: 1 | AM147: 0 | AN147: 0 | AO147: 0 | AP147: 0 | AQ147: 0 | AR147: 0 | AS147: 0
B148: A | C148: N.Amer | D148: Financials | E148: 0.00669 | F148: -5.007141405 | S148: 0 | T148: 0 | U148: 1 | V148: 0 | W148: 0 | X148: 0 | Y148: 0 | Z148: 1 | AA148: 0 | AB148: 0 | AC148: 0 | AD148: 0 | AE148: 0 | AF148: 0 | AG148: 0 | AH148: 0 | AI148: 0 | AJ148: 0 | AK148: 1 | AL148: 0 | AM148: 0 | AN148: 0 | AO148: 0 | AP148: 0 | AQ148: 0 | AR148: 0 | AS148: 0
B149: A | C149: Asia | D149: Energy | E149: 0.00732 | F149: -4.917144951 | S149: 0 | T149: 0 | U149: 1 | V149: 0 | W149: 0 | X149: 0 | Y149: 0 | Z149: 0 | AA149: 1 | AB149: 0 | AC149: 0 | AD149: 0 | AE149: 0 | AF149: 0 | AG149: 0 | AH149: 0 | AI149: 0 | AJ149: 0 | AK149: 0 | AL149: 0 | AM149: 1 | AN149: 0 | AO149: 0 | AP149: 0 | AQ149: 0 | AR149: 0 | AS149: 0
B150: A | C150: E.Eur | D150: Government | E150: 0.00524 | F150: -5.251433781 | S150: 0 | T150: 0 | U150: 1 | V150: 0 | W150: 0 | X150: 0 | Y150: 0 | Z150: 0 | AA150: 0 | AB150: 0 | AC150: 0 | AD150: 0 | AE150: 0 | AF150: 1 | AG150: 0 | AH150: 1 | AI150: 0 | AJ150: 0 | AK150: 0 | AL150: 0 | AM150: 0 | AN150: 0 | AO150: 0 | AP150: 0 | AQ150: 0 | AR150: 0 | AS150: 0
B151: A | C151: N.Amer | D151: Basic Materials | E151: 0.00394 | F151: -5.536574556 | S151: 0 | T151: 0 | U151: 1 | V151: 0 | W151: 0 | X151: 0 | Y151: 0 | Z151: 0 | AA151: 0 | AB151: 0 | AC151: 0 | AD151: 0 | AE151: 0 | AF151: 1 | AG151: 0 | AH151: 0 | AI151: 0 | AJ151: 0 | AK151: 0 | AL151: 1 | AM151: 0 | AN151: 0 | AO151: 0 | AP151: 0 | AQ151: 0 | AR151: 0 | AS151: 0
B152: A | C152: N.Amer | D152: Financials | E152: 0.00505 | F152: -5.288367036 | S152: 0 | T152: 0 | U152: 1 | V152: 0 | W152: 0 | X152: 0 | Y152: 0 | Z152: 0 | AA152: 0 | AB152: 0 | AC152: 0 | AD152: 0 | AE152: 0 | AF152: 1 | AG152: 0 | AH152: 0 | AI152: 0 | AJ152: 0 | AK152: 0 | AL152: 1 | AM152: 0 | AN152: 0 | AO152: 0 | AP152: 0 | AQ152: 0 | AR152: 0 | AS152: 0
B153: A | C153: N.Amer | D153: Financials | E153: 0.0071 | F153: -4.947660495 | S153: 0 | T153: 0 | U153: 1 | V153: 0 | W153: 0 | X153: 0 | Y153: 0 | Z153: 0 | AA153: 0 | AB153: 0 | AC153: 0 | AD153: 0 | AE153: 0 | AF153: 1 | AG153: 0 | AH153: 0 | AI153: 0 | AJ153: 0 | AK153: 0 | AL153: 1 | AM153: 0 | AN153: 0 | AO153: 0 | AP153: 0 | AQ153: 0 | AR153: 0 | AS153: 0
B154: A | C154: N.Amer | D154: Financials | E154: 0.00673 | F154: -5.001180135 | S154: 0 | T154: 0 | U154: 1 | V154: 0 | W154: 0 | X154: 0 | Y154: 0 | Z154: 0 | AA154: 0 | AB154: 1 | AC154: 0 | AD154: 0 | AE154: 0 | AF154: 0 | AG154: 0 | AH154: 0 | AI154: 0 | AJ154: 0 | AK154: 0 | AL154: 1 | AM154: 0 | AN154: 0 | AO154: 0 | AP154: 0 | AQ154: 0 | AR154: 0 | AS154: 0
B155: A | C155: Europe | D155: Financials | E155: 0.00544 | F155: -5.213976218 | S155: 0 | T155: 0 | U155: 1 | V155: 0 | W155: 0 | X155: 0 | Y155: 0 | Z155: 0 | AA155: 0 | AB155: 0 | AC155: 0 | AD155: 0 | AE155: 0 | AF155: 0 | AG155: 1 | AH155: 0 | AI155: 0 | AJ155: 0 | AK155: 0 | AL155: 1 | AM155: 0 | AN155: 0 | AO155: 0 | AP155: 0 | AQ155: 0 | AR155: 0 | AS155: 0
B156: A | C156: Oceania | D156: Financials | E156: 0.00685 | F156: -4.983506627 | S156: 0 | T156: 0 | U156: 1 | V156: 0 | W156: 0 | X156: 0 | Y156: 0 | Z156: 0 | AA156: 0 | AB156: 0 | AC156: 0 | AD156: 0 | AE156: 0 | AF156: 1 | AG156: 0 | AH156: 0 | AI156: 0 | AJ156: 0 | AK156: 0 | AL156: 0 | AM156: 0 | AN156: 0 | AO156: 1 | AP156: 0 | AQ156: 0 | AR156: 0 | AS156: 0
B157: A | C157: N.Amer | D157: Industrials | E157: 0.00196 | F157: -6.234810806 | S157: 0 | T157: 0 | U157: 1 | V157: 0 | W157: 0 | X157: 0 | Y157: 0 | Z157: 0 | AA157: 0 | AB157: 0 | AC157: 0 | AD157: 0 | AE157: 0 | AF157: 1 | AG157: 0 | AH157: 0 | AI157: 0 | AJ157: 0 | AK157: 0 | AL157: 1 | AM157: 0 | AN157: 0 | AO157: 0 | AP157: 0 | AQ157: 0 | AR157: 0 | AS157: 0
B158: A | C158: N.Amer | D158: Financials | E158: 0.0069 | F158: -4.976233867 | S158: 0 | T158: 0 | U158: 1 | V158: 0 | W158: 0 | X158: 0 | Y158: 0 | Z158: 0 | AA158: 0 | AB158: 0 | AC158: 0 | AD158: 0 | AE158: 0 | AF158: 0 | AG158: 1 | AH158: 1 | AI158: 0 | AJ158: 0 | AK158: 0 | AL158: 0 | AM158: 0 | AN158: 0 | AO158: 0 | AP158: 0 | AQ158: 0 | AR158: 0 | AS158: 0
B159: A | C159: Oceania | D159: Basic Materials | E159: 0.00486 | F159: -5.326716841 | S159: 0 | T159: 0 | U159: 1 | V159: 0 | W159: 0 | X159: 0 | Y159: 0 | Z159: 0 | AA159: 0 | AB159: 0 | AC159: 0 | AD159: 0 | AE159: 0 | AF159: 1 | AG159: 0 | AH159: 1 | AI159: 0 | AJ159: 0 | AK159: 0 | AL159: 0 | AM159: 0 | AN159: 0 | AO159: 0 | AP159: 0 | AQ159: 0 | AR159: 0 | AS159: 0
B160: A | C160: N.Amer | D160: Basic Materials | E160: 0.0051 | F160: -5.278514739 | S160: 0 | T160: 0 | U160: 1 | V160: 0 | W160: 0 | X160: 0 | Y160: 0 | Z160: 0 | AA160: 0 | AB160: 0 | AC160: 0 | AD160: 0 | AE160: 0 | AF160: 1 | AG160: 0 | AH160: 0 | AI160: 0 | AJ160: 0 | AK160: 0 | AL160: 0 | AM160: 0 | AN160: 0 | AO160: 1 | AP160: 0 | AQ160: 0 | AR160: 0 | AS160: 0
B161: A | C161: N.Amer | D161: Industrials | E161: 0.00632 | F161: -5.064036071 | S161: 0 | T161: 0 | U161: 1 | V161: 0 | W161: 0 | X161: 0 | Y161: 0 | Z161: 0 | AA161: 0 | AB161: 1 | AC161: 0 | AD161: 0 | AE161: 0 | AF161: 0 | AG161: 0 | AH161: 0 | AI161: 0 | AJ161: 0 | AK161: 0 | AL161: 1 | AM161: 0 | AN161: 0 | AO161: 0 | AP161: 0 | AQ161: 0 | AR161: 0 | AS161: 0
B162: A | C162: Europe | D162: Financials | E162: 0.00791 | F162: -4.839627497 | S162: 0 | T162: 0 | U162: 1 | V162: 0 | W162: 0 | X162: 0 | Y162: 0 | Z162: 1 | AA162: 0 | AB162: 0 | AC162: 0 | AD162: 0 | AE162: 0 | AF162: 0 | AG162: 0 | AH162: 0 | AI162: 0 | AJ162: 0 | AK162: 0 | AL162: 0 | AM162: 0 | AN162: 0 | AO162: 0 | AP162: 0 | AQ162: 0 | AR162: 1 | AS162: 0
B163: A | C163: Asia | D163: Telecommunications Services | E163: 0.00387 | F163: -5.554500772 | S163: 0 | T163: 0 | U163: 1 | V163: 0 | W163: 0 | X163: 0 | Y163: 0 | Z163: 1 | AA163: 0 | AB163: 0 | AC163: 0 | AD163: 0 | AE163: 0 | AF163: 0 | AG163: 0 | AH163: 0 | AI163: 0 | AJ163: 0 | AK163: 0 | AL163: 0 | AM163: 1 | AN163: 0 | AO163: 0 | AP163: 0 | AQ163: 0 | AR163: 0 | AS163: 0
B164: A | C164: Asia | D164: Government | E164: 0.00527 | F164: -5.245724916 | S164: 0 | T164: 0 | U164: 1 | V164: 0 | W164: 0 | X164: 0 | Y164: 0 | Z164: 0 | AA164: 0 | AB164: 0 | AC164: 0 | AD164: 0 | AE164: 0 | AF164: 1 | AG164: 0 | AH164: 0 | AI164: 1 | AJ164: 0 | AK164: 0 | AL164: 0 | AM164: 0 | AN164: 0 | AO164: 0 | AP164: 0 | AQ164: 0 | AR164: 0 | AS164: 0
B165: A | C165: N.Amer | D165: Consumer Goods | E165: 0.0041 | F165: -5.496768305 | S165: 0 | T165: 0 | U165: 1 | V165: 0 | W165: 0 | X165: 0 | Y165: 0 | Z165: 0 | AA165: 0 | AB165: 0 | AC165: 0 | AD165: 0 | AE165: 0 | AF165: 1 | AG165: 0 | AH165: 0 | AI165: 0 | AJ165: 0 | AK165: 0 | AL165: 0 | AM165: 0 | AN165: 1 | AO165: 0 | AP165: 0 | AQ165: 0 | AR165: 0 | AS165: 0
B166: A | C166: N.Amer | D166: Healthcare | E166: 0.00338 | F166: -5.689879569 | S166: 0 | T166: 0 | U166: 1 | V166: 0 | W166: 0 | X166: 0 | Y166: 0 | Z166: 0 | AA166: 0 | AB166: 0 | AC166: 0 | AD166: 0 | AE166: 0 | AF166: 1 | AG166: 0 | AH166: 0 | AI166: 1 | AJ166: 0 | AK166: 0 | AL166: 0 | AM166: 0 | AN166: 0 | AO166: 0 | AP166: 0 | AQ166: 0 | AR166: 0 | AS166: 0
B167: A | C167: N.Amer | D167: Consumer Goods | E167: 0.00556 | F167: -5.192157171 | S167: 0 | T167: 0 | U167: 1 | V167: 0 | W167: 0 | X167: 0 | Y167: 0 | Z167: 0 | AA167: 0 | AB167: 0 | AC167: 0 | AD167: 0 | AE167: 0 | AF167: 1 | AG167: 0 | AH167: 0 | AI167: 0 | AJ167: 0 | AK167: 0 | AL167: 1 | AM167: 0 | AN167: 0 | AO167: 0 | AP167: 0 | AQ167: 0 | AR167: 0 | AS167: 0
B168: A | C168: N.Amer | D168: Financials | E168: 0.00457 | F168: -5.388242074 | S168: 0 | T168: 0 | U168: 1 | V168: 0 | W168: 0 | X168: 0 | Y168: 0 | Z168: 1 | AA168: 0 | AB168: 0 | AC168: 0 | AD168: 0 | AE168: 0 | AF168: 0 | AG168: 0 | AH168: 0 | AI168: 0 | AJ168: 0 | AK168: 0 | AL168: 1 | AM168: 0 | AN168: 0 | AO168: 0 | AP168: 0 | AQ168: 0 | AR168: 0 | AS168: 0
B169: A | C169: Asia | D169: Financials | E169: 0.00443 | F169: -5.419355695 | S169: 0 | T169: 0 | U169: 1 | V169: 0 | W169: 0 | X169: 0 | Y169: 0 | Z169: 0 | AA169: 0 | AB169: 1 | AC169: 0 | AD169: 0 | AE169: 0 | AF169: 0 | AG169: 0 | AH169: 0 | AI169: 0 | AJ169: 0 | AK169: 0 | AL169: 0 | AM169: 0 | AN169: 0 | AO169: 1 | AP169: 0 | AQ169: 0 | AR169: 0 | AS169: 0
B170: A | C170: Europe | D170: Industrials | E170: 0.0021 | F170: -6.165817934 | S170: 0 | T170: 0 | U170: 1 | V170: 0 | W170: 0 | X170: 0 | Y170: 0 | Z170: 0 | AA170: 0 | AB170: 0 | AC170: 0 | AD170: 0 | AE170: 0 | AF170: 1 | AG170: 0 | AH170: 0 | AI170: 0 | AJ170: 0 | AK170: 0 | AL170: 1 | AM170: 0 | AN170: 0 | AO170: 0 | AP170: 0 | AQ170: 0 | AR170: 0 | AS170: 0
B171: A | C171: N.Amer | D171: Financials | E171: 0.00564 | F171: -5.177871213 | S171: 0 | T171: 0 | U171: 1 | V171: 0 | W171: 0 | X171: 0 | Y171: 0 | Z171: 0 | AA171: 0 | AB171: 0 | AC171: 0 | AD171: 0 | AE171: 0 | AF171: 1 | AG171: 0 | AH171: 0 | AI171: 0 | AJ171: 0 | AK171: 0 | AL171: 1 | AM171: 0 | AN171: 0 | AO171: 0 | AP171: 0 | AQ171: 0 | AR171: 0 | AS171: 0
B172: A | C172: N.Amer | D172: Financials | E172: 0.00569 | F172: -5.169045031 | S172: 0 | T172: 0 | U172: 1 | V172: 0 | W172: 0 | X172: 0 | Y172: 0 | Z172: 1 | AA172: 0 | AB172: 0 | AC172: 0 | AD172: 0 | AE172: 0 | AF172: 0 | AG172: 0 | AH172: 0 | AI172: 0 | AJ172: 0 | AK172: 0 | AL172: 0 | AM172: 0 | AN172: 0 | AO172: 0 | AP172: 0 | AQ172: 0 | AR172: 1 | AS172: 0
B173: A | C173: Asia | D173: Telecommunications Services | E173: 0.00489 | F173: -5.320562975 | S173: 0 | T173: 0 | U173: 1 | V173: 0 | W173: 0 | X173: 0 | Y173: 0 | Z173: 0 | AA173: 0 | AB173: 0 | AC173: 0 | AD173: 0 | AE173: 0 | AF173: 0 | AG173: 1 | AH173: 0 | AI173: 0 | AJ173: 0 | AK173: 0 | AL173: 0 | AM173: 0 | AN173: 0 | AO173: 0 | AP173: 0 | AQ173: 0 | AR173: 1 | AS173: 0
B174: A | C174: Oceania | D174: Telecommunications Services | E174: 0.00513 | F174: -5.27264962 | S174: 0 | T174: 0 | U174: 1 | V174: 0 | W174: 0 | X174: 0 | Y174: 0 | Z174: 0 | AA174: 1 | AB174: 0 | AC174: 0 | AD174: 0 | AE174: 0 | AF174: 0 | AG174: 0 | AH174: 0 | AI174: 0 | AJ174: 0 | AK174: 0 | AL174: 0 | AM174: 1 | AN174: 0 | AO174: 0 | AP174: 0 | AQ174: 0 | AR174: 0 | AS174: 0
B175: A | C175: E.Eur | D175: Government | E175: 0.00356 | F175: -5.637994734 | S175: 0 | T175: 0 | U175: 1 | V175: 0 | W175: 0 | X175: 0 | Y175: 0 | Z175: 0 | AA175: 1 | AB175: 0 | AC175: 0 | AD175: 0 | AE175: 0 | AF175: 0 | AG175: 0 | AH175: 0 | AI175: 0 | AJ175: 0 | AK175: 0 | AL175: 0 | AM175: 1 | AN175: 0 | AO175: 0 | AP175: 0 | AQ175: 0 | AR175: 0 | AS175: 0
B176: A | C176: E.Eur | D176: Government | E176: 0.00632 | F176: -5.064036071 | S176: 0 | T176: 0 | U176: 1 | V176: 0 | W176: 0 | X176: 0 | Y176: 0 | Z176: 0 | AA176: 0 | AB176: 1 | AC176: 0 | AD176: 0 | AE176: 0 | AF176: 0 | AG176: 0 | AH176: 0 | AI176: 0 | AJ176: 0 | AK176: 0 | AL176: 1 | AM176: 0 | AN176: 0 | AO176: 0 | AP176: 0 | AQ176: 0 | AR176: 0 | AS176: 0
B177: A | C177: Europe | D177: Financials | E177: 0.00336 | F177: -5.695814305 | S177: 0 | T177: 0 | U177: 1 | V177: 0 | W177: 0 | X177: 0 | Y177: 0 | Z177: 0 | AA177: 0 | AB177: 0 | AC177: 0 | AD177: 0 | AE177: 0 | AF177: 1 | AG177: 0 | AH177: 0 | AI177: 0 | AJ177: 0 | AK177: 0 | AL177: 0 | AM177: 0 | AN177: 0 | AO177: 1 | AP177: 0 | AQ177: 0 | AR177: 0 | AS177: 0
B178: A | C178: N.Amer | D178: Industrials | E178: 0.00489 | F178: -5.320562975 | S178: 0 | T178: 0 | U178: 1 | V178: 0 | W178: 0 | X178: 0 | Y178: 0 | Z178: 0 | AA178: 0 | AB178: 1 | AC178: 0 | AD178: 0 | AE178: 0 | AF178: 0 | AG178: 0 | AH178: 0 | AI178: 0 | AJ178: 0 | AK178: 0 | AL178: 0 | AM178: 1 | AN178: 0 | AO178: 0 | AP178: 0 | AQ178: 0 | AR178: 0 | AS178: 0
B179: A | C179: Europe | D179: Government | E179: 0.00415 | F179: -5.484646945 | S179: 0 | T179: 0 | U179: 1 | V179: 0 | W179: 0 | X179: 0 | Y179: 0 | Z179: 0 | AA179: 0 | AB179: 1 | AC179: 0 | AD179: 0 | AE179: 0 | AF179: 0 | AG179: 0 | AH179: 0 | AI179: 0 | AJ179: 0 | AK179: 0 | AL179: 1 | AM179: 0 | AN179: 0 | AO179: 0 | AP179: 0 | AQ179: 0 | AR179: 0 | AS179: 0
B180: A | C180: Europe | D180: Financials | E180: 0.00353 | F180: -5.646457408 | S180: 0 | T180: 0 | U180: 1 | V180: 0 | W180: 0 | X180: 0 | Y180: 0 | Z180: 0 | AA180: 0 | AB180: 0 | AC180: 1 | AD180: 0 | AE180: 0 | AF180: 0 | AG180: 0 | AH180: 0 | AI180: 1 | AJ180: 0 | AK180: 0 | AL180: 0 | AM180: 0 | AN180: 0 | AO180: 0 | AP180: 0 | AQ180: 0 | AR180: 0 | AS180: 0
B181: A | C181: Japan | D181: Consumer Goods | E181: 0.00375 | F181: -5.585999439 | S181: 0 | T181: 0 | U181: 1 | V181: 0 | W181: 0 | X181: 0 | Y181: 0 | Z181: 1 | AA181: 0 | AB181: 0 | AC181: 0 | AD181: 0 | AE181: 0 | AF181: 0 | AG181: 0 | AH181: 0 | AI181: 0 | AJ181: 0 | AK181: 0 | AL181: 1 | AM181: 0 | AN181: 0 | AO181: 0 | AP181: 0 | AQ181: 0 | AR181: 0 | AS181: 0
B182: A | C182: Asia | D182: Financials | E182: 0.00726 | F182: -4.92537545 | S182: 0 | T182: 0 | U182: 1 | V182: 0 | W182: 0 | X182: 0 | Y182: 0 | Z182: 0 | AA182: 0 | AB182: 0 | AC182: 0 | AD182: 0 | AE182: 0 | AF182: 1 | AG182: 0 | AH182: 0 | AI182: 0 | AJ182: 1 | AK182: 0 | AL182: 0 | AM182: 0 | AN182: 0 | AO182: 0 | AP182: 0 | AQ182: 0 | AR182: 0 | AS182: 0
B183: A | C183: N.Amer | D183: Consumer Services | E183: 0.0059 | F183: -5.132802928 | S183: 0 | T183: 0 | U183: 1 | V183: 0 | W183: 0 | X183: 0 | Y183: 0 | Z183: 0 | AA183: 0 | AB183: 0 | AC183: 0 | AD183: 0 | AE183: 0 | AF183: 1 | AG183: 0 | AH183: 0 | AI183: 0 | AJ183: 1 | AK183: 0 | AL183: 0 | AM183: 0 | AN183: 0 | AO183: 0 | AP183: 0 | AQ183: 0 | AR183: 0 | AS183: 0
B184: A | C184: N.Amer | D184: Consumer Services | E184: 0.00376 | F184: -5.583336322 | S184: 0 | T184: 0 | U184: 1 | V184: 0 | W184: 0 | X184: 0 | Y184: 0 | Z184: 1 | AA184: 0 | AB184: 0 | AC184: 0 | AD184: 0 | AE184: 0 | AF184: 0 | AG184: 0 | AH184: 0 | AI184: 0 | AJ184: 0 | AK184: 0 | AL184: 0 | AM184: 0 | AN184: 0 | AO184: 0 | AP184: 0 | AQ184: 0 | AR184: 1 | AS184: 0
B185: A | C185: Asia | D185: Telecommunications Services | E185: 0.00751 | F185: -4.891519813 | S185: 0 | T185: 0 | U185: 1 | V185: 0 | W185: 0 | X185: 0 | Y185: 0 | Z185: 0 | AA185: 0 | AB185: 1 | AC185: 0 | AD185: 0 | AE185: 0 | AF185: 0 | AG185: 0 | AH185: 0 | AI185: 0 | AJ185: 0 | AK185: 0 | AL185: 0 | AM185: 0 | AN185: 0 | AO185: 0 | AP185: 0 | AQ185: 0 | AR185: 1 | AS185: 0
B186: A | C186: Europe | D186: Telecommunications Services | E186: 0.00203 | F186: -6.199719486 | S186: 0 | T186: 0 | U186: 1 | V186: 0 | W186: 0 | X186: 0 | Y186: 0 | Z186: 0 | AA186: 0 | AB186: 0 | AC186: 0 | AD186: 0 | AE186: 0 | AF186: 0 | AG186: 1 | AH186: 0 | AI186: 0 | AJ186: 0 | AK186: 0 | AL186: 0 | AM186: 0 | AN186: 0 | AO186: 0 | AP186: 0 | AQ186: 0 | AR186: 1 | AS186: 0
B187: A | C187: Oceania | D187: Telecommunications Services | E187: 0.00489 | F187: -5.320562975 | S187: 0 | T187: 0 | U187: 1 | V187: 0 | W187: 0 | X187: 0 | Y187: 0 | Z187: 1 | AA187: 0 | AB187: 0 | AC187: 0 | AD187: 0 | AE187: 0 | AF187: 0 | AG187: 0 | AH187: 0 | AI187: 0 | AJ187: 0 | AK187: 0 | AL187: 0 | AM187: 0 | AN187: 0 | AO187: 0 | AP187: 0 | AQ187: 0 | AR187: 0 | AS187: 1
B188: A | C188: Asia | D188: Utilities | E188: 0.00558 | F188: -5.188566503 | S188: 0 | T188: 0 | U188: 1 | V188: 0 | W188: 0 | X188: 0 | Y188: 0 | Z188: 0 | AA188: 0 | AB188: 1 | AC188: 0 | AD188: 0 | AE188: 0 | AF188: 0 | AG188: 0 | AH188: 0 | AI188: 0 | AJ188: 0 | AK188: 0 | AL188: 0 | AM188: 0 | AN188: 0 | AO188: 1 | AP188: 0 | AQ188: 0 | AR188: 0 | AS188: 0
B189: A | C189: Europe | D189: Industrials | E189: 0.00281 | F189: -5.874570796 | S189: 0 | T189: 0 | U189: 1 | V189: 0 | W189: 0 | X189: 0 | Y189: 0 | Z189: 0 | AA189: 0 | AB189: 0 | AC189: 0 | AD189: 0 | AE189: 0 | AF189: 1 | AG189: 0 | AH189: 0 | AI189: 0 | AJ189: 0 | AK189: 0 | AL189: 0 | AM189: 0 | AN189: 0 | AO189: 1 | AP189: 0 | AQ189: 0 | AR189: 0 | AS189: 0
B190: A | C190: N.Amer | D190: Industrials | E190: 0.00354 | F190: -5.643628552 | S190: 0 | T190: 0 | U190: 1 | V190: 0 | W190: 0 | X190: 0 | Y190: 0 | Z190: 0 | AA190: 0 | AB190: 0 | AC190: 0 | AD190: 0 | AE190: 0 | AF190: 1 | AG190: 0 | AH190: 0 | AI190: 0 | AJ190: 0 | AK190: 0 | AL190: 1 | AM190: 0 | AN190: 0 | AO190: 0 | AP190: 0 | AQ190: 0 | AR190: 0 | AS190: 0
B191: A | C191: N.Amer | D191: Financials | E191: 0.00558 | F191: -5.188566503 | S191: 0 | T191: 0 | U191: 1 | V191: 0 | W191: 0 | X191: 0 | Y191: 0 | Z191: 0 | AA191: 0 | AB191: 0 | AC191: 0 | AD191: 0 | AE191: 0 | AF191: 1 | AG191: 0 | AH191: 0 | AI191: 0 | AJ191: 0 | AK191: 0 | AL191: 1 | AM191: 0 | AN191: 0 | AO191: 0 | AP191: 0 | AQ191: 0 | AR191: 0 | AS191: 0
B192: A | C192: N.Amer | D192: Financials | E192: 0.00283 | F192: -5.867478567 | S192: 0 | T192: 0 | U192: 1 | V192: 0 | W192: 0 | X192: 0 | Y192: 0 | Z192: 0 | AA192: 0 | AB192: 1 | AC192: 0 | AD192: 0 | AE192: 0 | AF192: 0 | AG192: 0 | AH192: 0 | AI192: 1 | AJ192: 0 | AK192: 0 | AL192: 0 | AM192: 0 | AN192: 0 | AO192: 0 | AP192: 0 | AQ192: 0 | AR192: 0 | AS192: 0
B193: A | C193: Europe | D193: Consumer Goods | E193: 0.00143 | F193: -6.550080835 | S193: 0 | T193: 0 | U193: 1 | V193: 0 | W193: 0 | X193: 0 | Y193: 0 | Z193: 0 | AA193: 0 | AB193: 0 | AC193: 0 | AD193: 0 | AE193: 0 | AF193: 1 | AG193: 0 | AH193: 0 | AI193: 0 | AJ193: 0 | AK193: 0 | AL193: 0 | AM193: 0 | AN193: 0 | AO193: 1 | AP193: 0 | AQ193: 0 | AR193: 0 | AS193: 0
B194: A | C194: N.Amer | D194: Industrials | E194: 0.00389 | F194: -5.549346121 | S194: 0 | T194: 0 | U194: 1 | V194: 0 | W194: 0 | X194: 0 | Y194: 0 | Z194: 0 | AA194: 0 | AB194: 0 | AC194: 0 | AD194: 0 | AE194: 0 | AF194: 1 | AG194: 0 | AH194: 0 | AI194: 0 | AJ194: 0 | AK194: 0 | AL194: 0 | AM194: 0 | AN194: 1 | AO194: 0 | AP194: 0 | AQ194: 0 | AR194: 0 | AS194: 0
B195: A | C195: N.Amer | D195: Healthcare | E195: 0.00332 | F195: -5.707790496 | S195: 0 | T195: 0 | U195: 1 | V195: 0 | W195: 0 | X195: 0 | Y195: 0 | Z195: 0 | AA195: 0 | AB195: 0 | AC195: 0 | AD195: 0 | AE195: 0 | AF195: 1 | AG195: 0 | AH195: 0 | AI195: 1 | AJ195: 0 | AK195: 0 | AL195: 0 | AM195: 0 | AN195: 0 | AO195: 0 | AP195: 0 | AQ195: 0 | AR195: 0 | AS195: 0
B196: A | C196: N.Amer | D196: Consumer Goods | E196: 0.00746 | F196: -4.898199865 | S196: 0 | T196: 0 | U196: 1 | V196: 0 | W196: 0 | X196: 0 | Y196: 0 | Z196: 0 | AA196: 0 | AB196: 0 | AC196: 0 | AD196: 0 | AE196: 0 | AF196: 1 | AG196: 0 | AH196: 0 | AI196: 0 | AJ196: 1 | AK196: 0 | AL196: 0 | AM196: 0 | AN196: 0 | AO196: 0 | AP196: 0 | AQ196: 0 | AR196: 0 | AS196: 0
B197: A | C197: N.Amer | D197: Consumer Services | E197: 0.0024 | F197: -6.032286542 | S197: 0 | T197: 0 | U197: 1 | V197: 0 | W197: 0 | X197: 0 | Y197: 0 | Z197: 0 | AA197: 0 | AB197: 0 | AC197: 0 | AD197: 0 | AE197: 0 | AF197: 1 | AG197: 0 | AH197: 0 | AI197: 0 | AJ197: 0 | AK197: 0 | AL197: 1 | AM197: 0 | AN197: 0 | AO197: 0 | AP197: 0 | AQ197: 0 | AR197: 0 | AS197: 0
B198: A | C198: N.Amer | D198: Financials | E198: 0.00499 | F198: -5.300319369 | S198: 0 | T198: 0 | U198: 1 | V198: 0 | W198: 0 | X198: 0 | Y198: 0 | Z198: 0 | AA198: 0 | AB198: 0 | AC198: 0 | AD198: 0 | AE198: 0 | AF198: 1 | AG198: 0 | AH198: 0 | AI198: 0 | AJ198: 0 | AK198: 0 | AL198: 0 | AM198: 0 | AN198: 1 | AO198: 0 | AP198: 0 | AQ198: 0 | AR198: 0 | AS198: 0
B199: A | C199: N.Amer | D199: Healthcare | E199: 0.00165 | F199: -6.406979991 | S199: 0 | T199: 0 | U199: 1 | V199: 0 | W199: 0 | X199: 0 | Y199: 0 | Z199: 0 | AA199: 0 | AB199: 0 | AC199: 0 | AD199: 0 | AE199: 0 | AF199: 1 | AG199: 0 | AH199: 0 | AI199: 0 | AJ199: 1 | AK199: 0 | AL199: 0 | AM199: 0 | AN199: 0 | AO199: 0 | AP199: 0 | AQ199: 0 | AR199: 0 | AS199: 0
B200: A | C200: N.Amer | D200: Consumer Services | E200: 0.0021 | F200: -6.165817934 | S200: 0 | T200: 0 | U200: 1 | V200: 0 | W200: 0 | X200: 0 | Y200: 0 | Z200: 0 | AA200: 0 | AB200: 1 | AC200: 0 | AD200: 0 | AE200: 0 | AF200: 0 | AG200: 0 | AH200: 0 | AI200: 0 | AJ200: 0 | AK200: 0 | AL200: 1 | AM200: 0 | AN200: 0 | AO200: 0 | AP200: 0 | AQ200: 0 | AR200: 0 | AS200: 0
B201: A | C201: Europe | D201: Financials | E201: 0.00503 | F201: -5.292335295 | S201: 0 | T201: 0 | U201: 1 | V201: 0 | W201: 0 | X201: 0 | Y201: 0 | Z201: 0 | AA201: 0 | AB201: 1 | AC201: 0 | AD201: 0 | AE201: 0 | AF201: 0 | AG201: 0 | AH201: 0 | AI201: 0 | AJ201: 0 | AK201: 0 | AL201: 1 | AM201: 0 | AN201: 0 | AO201: 0 | AP201: 0 | AQ201: 0 | AR201: 0 | AS201: 0
B202: A | C202: Europe | D202: Financials | E202: 0.00321 | F202: -5.741484342 | S202: =IF($B203=S$9,1,0) -> 0 | T202: =IF($B203=T$9,1,0) -> 0 | U202: =IF($B203=U$9,1,0) -> 1 | V202: =IF($B203=V$9,1,0) -> 0 | W202: =IF($B203=W$9,1,0) -> 0 | X202: =IF($B203=X$9,1,0) -> 0 | Y202: =IF($B203=Y$9,1,0) -> 0 | Z202: =IF($C203=Z$9,1,0) -> 0 | AA202: =IF($C203=AA$9,1,0) -> 0 | AB202: =IF($C203=AB$9,1,0) -> 1 | AC202: =IF($C203=AC$9,1,0) -> 0 | AD202: =IF($C203=AD$9,1,0) -> 0 | AE202: =IF($C203=AE$9,1,0) -> 0 | AF202: =IF($C203=AF$9,1,0) -> 0 | AG202: =IF($C203=AG$9,1,0) -> 0 | AH202: =IF($D203=AH$9,1,0) -> 1 | AI202: =IF($D203=AI$9,1,0) -> 0 | AJ202: =IF($D203=AJ$9,1,0) -> 0 | AK202: =IF($D203=AK$9,1,0) -> 0 | AL202: =IF($D203=AL$9,1,0) -> 0 | AM202: =IF($D203=AM$9,1,0) -> 0 | AN202: =IF($D203=AN$9,1,0) -> 0 | AO202: =IF($D203=AO$9,1,0) -> 0 | AP202: =IF($D203=AP$9,1,0) -> 0 | AQ202: =IF($D203=AQ$9,1,0) -> 0 | AR202: =IF($D203=AR$9,1,0) -> 0 | AS202: =IF($D203=AS$9,1,0) -> 0
B203: A | C203: Europe | D203: Basic Materials | E203: 0.00313 | F203: -5.766722274 | S203: 0 | T203: 0 | U203: 1 | V203: 0 | W203: 0 | X203: 0 | Y203: 0 | Z203: 0 | AA203: 0 | AB203: 1 | AC203: 0 | AD203: 0 | AE203: 0 | AF203: 0 | AG203: 0 | AH203: 0 | AI203: 0 | AJ203: 0 | AK203: 0 | AL203: 1 | AM203: 0 | AN203: 0 | AO203: 0 | AP203: 0 | AQ203: 0 | AR203: 0 | AS203: 0
B204: A | C204: Europe | D204: Financials | E204: 0.00401 | F204: =LN(E204) -> -5.518964038 | S204: 0 | T204: 0 | U204: 1 | V204: 0 | W204: 0 | X204: 0 | Y204: 0 | Z204: 0 | AA204: 0 | AB204: 1 | AC204: 0 | AD204: 0 | AE204: 0 | AF204: 0 | AG204: 0 | AH204: 0 | AI204: 1 | AJ204: 0 | AK204: 0 | AL204: 0 | AM204: 0 | AN204: 0 | AO204: 0 | AP204: 0 | AQ204: 0 | AR204: 0 | AS204: 0
B205: A | C205: Europe | D205: Consumer Goods | E205: 0.00665 | F205: -5.013138424 | S205: 0 | T205: 0 | U205: 1 | V205: 0 | W205: 0 | X205: 0 | Y205: 0 | Z205: 0 | AA205: 0 | AB205: 1 | AC205: 0 | AD205: 0 | AE205: 0 | AF205: 0 | AG205: 0 | AH205: 0 | AI205: 0 | AJ205: 0 | AK205: 0 | AL205: 0 | AM205: 0 | AN205: 0 | AO205: 0 | AP205: 0 | AQ205: 0 | AR205: 0 | AS205: 1
B206: A | C206: Europe | D206: Utilities | E206: 0.00246 | F206: -6.007593929 | S206: 0 | T206: 0 | U206: 1 | V206: 0 | W206: 0 | X206: 0 | Y206: 0 | Z206: 0 | AA206: 0 | AB206: 1 | AC206: 0 | AD206: 0 | AE206: 0 | AF206: 0 | AG206: 0 | AH206: 1 | AI206: 0 | AJ206: 0 | AK206: 0 | AL206: 0 | AM206: 0 | AN206: 0 | AO206: 0 | AP206: 0 | AQ206: 0 | AR206: 0 | AS206: 0
B207: A | C207: Europe | D207: Basic Materials | E207: 0.00172 | F207: -6.365430988 | S207: 0 | T207: 0 | U207: 1 | V207: 0 | W207: 0 | X207: 0 | Y207: 0 | Z207: 0 | AA207: 0 | AB207: 1 | AC207: 0 | AD207: 0 | AE207: 0 | AF207: 0 | AG207: 0 | AH207: 0 | AI207: 0 | AJ207: 0 | AK207: 0 | AL207: 0 | AM207: 0 | AN207: 1 | AO207: 0 | AP207: 0 | AQ207: 0 | AR207: 0 | AS207: 0
B208: A | C208: Europe | D208: Healthcare | E208: 0.00192 | F208: -6.255430093 | S208: 0 | T208: 0 | U208: 1 | V208: 0 | W208: 0 | X208: 0 | Y208: 0 | Z208: 0 | AA208: 0 | AB208: 1 | AC208: 0 | AD208: 0 | AE208: 0 | AF208: 0 | AG208: 0 | AH208: 0 | AI208: 0 | AJ208: 0 | AK208: 0 | AL208: 1 | AM208: 0 | AN208: 0 | AO208: 0 | AP208: 0 | AQ208: 0 | AR208: 0 | AS208: 0
... 874 more rows
